Col. Code,Agency,Check No.,Payee,Month,Day,Year,Purpose,Source,Amount
48,J.F. Drake State,302689,TIMOTHY RYAN GREEN,Nov,27,2013,Instructional Salaries - Regul,UNRESTRICTED,"$4,268.56"
48,J.F. Drake State,302689,TIMOTHY RYAN GREEN,Nov,27,2013,Instructional Salaries - Tempo,UNRESTRICTED,"$1,462.50"
48,J.F. Drake State,90006963,DEMICA SHERMIR ALLISON,Nov,27,2013,Hourly Wages,,$500.00
48,J.F. Drake State,90006964,TRINA A ALTMAN,Nov,27,2013,Instructional Salaries - Regul,UNRESTRICTED,"$3,753.42"
48,J.F. Drake State,90006965,CEDRIC D ARRINGTON SR,Nov,27,2013,Other Professional Salaries -,UNRESTRICTED,"$6,450.08"
48,J.F. Drake State,90006966,KEVIN STEVEN ATCHLEY,Nov,27,2013,Hourly Wages,,$450.00
48,J.F. Drake State,90006967,LYSA AUGUSTIN,Nov,27,2013,Instructional Salaries - Tempo,ADULT ED,$528.00
48,J.F. Drake State,90006969,CAROLYN AVRITTE,Nov,27,2013,Instructional Salaries - Tempo,UNRESTRICTED,"$2,550.00"
48,J.F. Drake State,90006970,ZELDA M AZOR,Nov,27,2013,Instructional Salaries - Tempo,UNRESTRICTED,"$3,080.00"
48,J.F. Drake State,90006971,NELSON E BARNES,Nov,27,2013,Instructional Salaries - Tempo,UNRESTRICTED,$675.00
48,J.F. Drake State,90006972,NICOLE CLARESE BARNETT,Nov,27,2013,Administrative Salaries- Sched,,"$8,205.34"
48,J.F. Drake State,90006973,BEN BATTLE,Nov,27,2013,Instructional Salaries - Regul,UNRESTRICTED,"$5,602.89"
48,J.F. Drake State,90006974,ANGELA NICOLE BELL,Nov,27,2013,Instructional Salaries - Regul,UNRESTRICTED,"$5,668.56"
48,J.F. Drake State,90006974,ANGELA NICOLE BELL,Nov,27,2013,Employee Taxable Per Diem,,$11.25
48,J.F. Drake State,90006976,PATRICE BIVINS,Nov,27,2013,Support Personnel Salaries - S,,"$2,484.92"
48,J.F. Drake State,90006977,STEPHANIE JONES BOUNDS,Nov,27,2013,Instructional Salaries - Tempo,UNRESTRICTED,$900.00
48,J.F. Drake State,90006978,CHERYL BRAWLEY-KELLY,Nov,27,2013,Instructional Salaries - Tempo,UNRESTRICTED,"$2,400.00"
48,J.F. Drake State,90006979,BRUCE A BULLUCK,Nov,27,2013,Other Professional Salaries -,UNRESTRICTED,"$6,450.08"
48,J.F. Drake State,90006980,KHALILAH BURTON,Nov,27,2013,Instructional Salaries - Tempo,UNRESTRICTED,"$1,125.00"
48,J.F. Drake State,90006981,DERICK R CARPENAY,Nov,27,2013,Instructional Salaries - Tempo,UNRESTRICTED,$675.00
48,J.F. Drake State,90006982,KATIE E CHANCE,Nov,27,2013,Support Personnel Salaries - S,UNRESTRICTED,"$3,526.58"
48,J.F. Drake State,90006983,ROGER CHEN,Nov,27,2013,Support Personnel Salaries - S,,"$3,451.67"
48,J.F. Drake State,90006984,FRANCES E CHURCH,Nov,27,2013,Instructional Salaries - Tempo,UNRESTRICTED,$337.50
48,J.F. Drake State,90006985,ADAM CLARK,Nov,27,2013,Instructional Salaries - Regul,UNRESTRICTED,"$5,379.11"
48,J.F. Drake State,90006986,TASKA S CLARK,Nov,27,2013,Support Personnel Salaries - S,UNRESTRICTED,"$2,336.50"
48,J.F. Drake State,90006988,CARLA R CLIFT,Nov,27,2013,Instructional Salaries - Regul,UNRESTRICTED,"$5,609.75"
48,J.F. Drake State,90006989,RICHARD COLLIE,Nov,27,2013,Other Professional Salaries -,STUDENT SUPPORT SERVICES,"$3,769.42"
48,J.F. Drake State,90006990,DARLENE COWAN,Nov,27,2013,Support Personnel Salaries - S,UNRESTRICTED,"$1,889.83"
48,J.F. Drake State,90006991,TOMACENIA CHANTRELL CROSB,Nov,27,2013,Hourly Wages,,$500.00
48,J.F. Drake State,90006992,TOMEKA CROSS,Nov,27,2013,Support Personnel Salaries - S,UNRESTRICTED,"$2,261.83"
48,J.F. Drake State,90006993,DEIONE L CRUTCHER,Nov,27,2013,Instructional Salaries - Tempo,ADULT ED,"$1,147.50"
48,J.F. Drake State,90006994,CHRISTINE H DAVIS,Nov,27,2013,Instructional Salaries - Regul,UNRESTRICTED,"$3,361.73"
48,J.F. Drake State,90006995,CODY GLENN DAVIS,Nov,27,2013,Hourly Wages,,$600.00
48,J.F. Drake State,90006996,DENISE RAYNAL DAVIS,Nov,27,2013,Hourly Wages,,$65.00
48,J.F. Drake State,90006997,MATTIE D DAVIS,Nov,27,2013,Instructional Salaries - Regul,UNRESTRICTED,"$6,790.11"
48,J.F. Drake State,90006998,BRANDIE A DEL VALLE,Nov,27,2013,Instructional Salaries - Tempo,UNRESTRICTED,$750.00
48,J.F. Drake State,90006999,MONICA L DILLIHUNT,Nov,27,2013,Instructional Salaries - Tempo,UNRESTRICTED,$337.50
48,J.F. Drake State,90007001,MARLO DRAKE,Nov,27,2013,Support Personnel Salaries - S,UNRESTRICTED,"$2,533.25"
48,J.F. Drake State,90007001,MARLO DRAKE,Nov,27,2013,Support Personnel Salaries - S,,$844.42
48,J.F. Drake State,90007002,AMELIA J DUKEMINEER,Nov,27,2013,Hourly Wages,,"$1,720.00"
48,J.F. Drake State,90007003,DARRELL J ECHOLS,Nov,27,2013,Instructional Salaries - Regul,UNRESTRICTED,"$4,713.33"
48,J.F. Drake State,90007003,DARRELL J ECHOLS,Nov,27,2013,Instructional Salaries - Tempo,UNRESTRICTED,$787.50
48,J.F. Drake State,90007005,MONICA L EDMONDS,Nov,27,2013,Instructional Salaries - Tempo,UNRESTRICTED,$675.00
48,J.F. Drake State,90007006,VERNESSA M EDWARDS,Nov,27,2013,Instructional Salaries - Tempo,UNRESTRICTED,"$1,125.00"
48,J.F. Drake State,90007007,RONALD E EGSON,Nov,27,2013,Instructional Salaries - Tempo,UNRESTRICTED,$337.50
48,J.F. Drake State,90007007,RONALD E EGSON,Nov,27,2013,Instructional Salaries - Regul,UNRESTRICTED,"$4,527.33"
48,J.F. Drake State,90007008,JAMES J EISNER,Nov,27,2013,Support Personnel Salaries - S,UNRESTRICTED,"$2,633.83"
48,J.F. Drake State,90007009,ROSELINE C ELIKE,Nov,27,2013,Instructional Salaries - Tempo,UNRESTRICTED,"$2,280.00"
48,J.F. Drake State,90007010,LESLEY-ANNE TOYO ENG,Nov,27,2013,Support Personnel Salaries - S,UNRESTRICTED,"$2,038.67"
48,J.F. Drake State,90007011,TIMOTHY J FAIRCHILD,Nov,27,2013,Hourly Wages,,"$2,336.00"
48,J.F. Drake State,90007012,AMY E FANNING,Nov,27,2013,Instructional Salaries - Regul,UNRESTRICTED,"$5,268.56"
48,J.F. Drake State,90007013,VICTORIA FARRAR LONG,Nov,27,2013,Support Personnel Salaries - S,UNRESTRICTED,"$2,336.50"
48,J.F. Drake State,90007014,GAIL E FISCH,Nov,27,2013,Instructional Salaries - Regul,ADULT ED,"$2,687.50"
48,J.F. Drake State,90007015,EDWIN T FORBES,Nov,27,2013,Instructional Salaries - Regul,UNRESTRICTED,"$4,062.58"
48,J.F. Drake State,90007016,HORACE L FRANKLIN JR,Nov,27,2013,Administrative Salaries- Sched,UNRESTRICTED,"$7,311.08"
48,J.F. Drake State,90007017,DAVID E FREEMAN,Nov,27,2013,Instructional Salaries - Tempo,UNRESTRICTED,$180.00
48,J.F. Drake State,90007018,MATTIE B FREEMAN,Nov,27,2013,Hourly Wages,,"$1,770.00"
48,J.F. Drake State,90007019,YIBELI GALINDO-BAIRD,Nov,27,2013,Other Professional Salaries -,UNRESTRICTED,"$4,062.92"
48,J.F. Drake State,90007020,BONNIE GARRETT,Nov,27,2013,Instructional Salaries - Tempo,UNRESTRICTED,$562.50
48,J.F. Drake State,90007021,DENISE CLEOSHI GAYMON,Nov,27,2013,Instructional Salaries - Regul,,"$4,152.75"
48,J.F. Drake State,90007022,SYMMETRIS K GOHANNA,Nov,27,2013,Instructional Salaries - Regul,UNRESTRICTED,"$4,990.33"
48,J.F. Drake State,90007023,LARDELL GOODLOE JR,Nov,27,2013,Instructional Salaries - Regul,UNRESTRICTED,"$5,009.89"
48,J.F. Drake State,90007024,WILLIAM TAYLOR GORDON,Nov,27,2013,Hourly Wages,,$600.00
48,J.F. Drake State,90007025,TIFFANY R GREEN,Nov,27,2013,Support Personnel Salaries - S,,"$3,303.17"
48,J.F. Drake State,90007026,VICKIE E GREEN,Nov,27,2013,Instructional Salaries - Regul,,"$5,120.33"
48,J.F. Drake State,90007027,ROBERT N GRISSIM,Nov,27,2013,Instructional Salaries - Regul,UNRESTRICTED,"$3,757.42"
48,J.F. Drake State,90007028,CHARLES GROSS,Nov,27,2013,Instructional Salaries - Tempo,UNRESTRICTED,$675.00
48,J.F. Drake State,90007029,SAMUEL V GUISHARD,Nov,27,2013,Instructional Salaries - Tempo,UNRESTRICTED,"$1,687.50"
48,J.F. Drake State,90007030,MANELZA CRAWFORD HAMBRICK,Nov,27,2013,Support Personnel Salaries - S,UNRESTRICTED,"$2,485.42"
48,J.F. Drake State,90007031,ARCHIE LEE HAMLET,Nov,27,2013,Hourly Wages,UNRESTRICTED,"$1,008.00"
48,J.F. Drake State,90007032,SHELIA D HAMMON,Nov,27,2013,Instructional Salaries - Regul,UNRESTRICTED,"$5,416.78"
48,J.F. Drake State,90007032,SHELIA D HAMMON,Nov,27,2013,Instructional Salaries - Tempo,UNRESTRICTED,$337.50
48,J.F. Drake State,90007033,AUNDREA D HANSON,Nov,27,2013,Instructional Salaries - Tempo,UNRESTRICTED,$337.50
48,J.F. Drake State,90007034,GEORGE VICTOR HARLOW III,Nov,27,2013,Hourly Wages,,$435.00
48,J.F. Drake State,90007035,KATRINA J HARRIS,Nov,27,2013,Support Personnel Salaries - S,UNRESTRICTED,$993.13
48,J.F. Drake State,90007035,KATRINA J HARRIS,Nov,27,2013,Support Personnel Salaries - S,,"$2,979.38"
48,J.F. Drake State,90007036,NEDA L HAULE,Nov,27,2013,Hourly Wages,,$960.00
48,J.F. Drake State,90007037,CAROLYN HENDERSON,Nov,27,2013,Instructional Salaries - Tempo,UNRESTRICTED,$337.50
48,J.F. Drake State,90007037,CAROLYN HENDERSON,Nov,27,2013,Instructional Salaries - Regul,UNRESTRICTED,"$4,362.58"
48,J.F. Drake State,90007038,DEXTER R HENRY,Nov,27,2013,Instructional Salaries - Regul,UNRESTRICTED,"$6,416.89"
48,J.F. Drake State,90007039,KARL W HENRY SR,Nov,27,2013,Instructional Salaries - Regul,UNRESTRICTED,"$7,261.67"
48,J.F. Drake State,90007039,KARL W HENRY SR,Nov,27,2013,Instructional Salaries - Tempo,UNRESTRICTED,$900.00
48,J.F. Drake State,90007040,ELBREY WARREN HERRING,Nov,27,2013,Instructional Salaries - Tempo,ADULT ED,"$1,392.00"
48,J.F. Drake State,90007041,ISSAC D HINES,Nov,27,2013,Instructional Salaries - Tempo,UNRESTRICTED,"$1,350.00"
48,J.F. Drake State,90007041,ISSAC D HINES,Nov,27,2013,Hourly Wages,,$600.00
48,J.F. Drake State,90007042,KHALID HOLMES,Nov,27,2013,Instructional Salaries - Regul,UNRESTRICTED,"$3,395.50"
48,J.F. Drake State,90007042,KHALID HOLMES,Nov,27,2013,Instructional Salaries - Tempo,UNRESTRICTED,$337.50
48,J.F. Drake State,90007042,KHALID HOLMES,Nov,27,2013,Employee Taxable Per Diem,,$11.25
48,J.F. Drake State,90007043,PORTIA S HOUSTON,Nov,27,2013,Instructional Salaries - Tempo,UNRESTRICTED,"$1,575.00"
48,J.F. Drake State,90007044,ANDREA L HOWARD-KENNEDY,Nov,27,2013,Instructional Salaries - Regul,,"$4,713.33"
48,J.F. Drake State,90007045,JAN J HYMAN,Nov,27,2013,Support Personnel Salaries - S,,"$3,229.00"
48,J.F. Drake State,90007047,NEOKA JANE IVEY,Nov,27,2013,Support Personnel Salaries - S,UNRESTRICTED,"$2,038.67"
48,J.F. Drake State,90007048,TERELL L JACKSON,Nov,27,2013,Support Personnel Salaries - S,UNRESTRICTED,"$2,262.08"
48,J.F. Drake State,90007049,SARAH J JAMAR,Nov,27,2013,Hourly Wages,STUDENT SUPPORT SERVICES,$232.50
48,J.F. Drake State,90007050,VICTORIA L JOINER-MILLER,Nov,27,2013,Instructional Salaries - Tempo,UNRESTRICTED,$337.50
48,J.F. Drake State,90007051,VICTOR G JOLLEY,Nov,27,2013,Instructional Salaries - Tempo,UNRESTRICTED,$562.50
48,J.F. Drake State,90007052,DONYALE D JONES,Nov,27,2013,Support Personnel Salaries - S,UNRESTRICTED,"$3,452.33"
48,J.F. Drake State,90007053,PINEY L JORDAN,Nov,27,2013,Instructional Salaries - Tempo,UNRESTRICTED,"$2,520.00"
48,J.F. Drake State,90007054,NGOZI A KAMALU,Nov,27,2013,Instructional Salaries - Tempo,UNRESTRICTED,"$2,430.00"
48,J.F. Drake State,90007055,JUSTIN M KELLY,Nov,27,2013,Instructional Salaries - Tempo,UNRESTRICTED,$675.00
48,J.F. Drake State,90007056,CHERYL P KEMP,Nov,27,2013,Instructional Salaries - Tempo,UNRESTRICTED,"$1,050.00"
48,J.F. Drake State,90007057,JAPHETH K KESSIO,Nov,27,2013,Instructional Salaries - Tempo,UNRESTRICTED,$337.50
48,J.F. Drake State,90007058,THOMAS B KIBLER,Nov,27,2013,Hourly Wages,,"$1,555.08"
48,J.F. Drake State,90007059,NICHOLAS PAUL KSEPKA,Nov,27,2013,Hourly Wages,UNRESTRICTED,"$2,931.58"
48,J.F. Drake State,90007060,HONG THUYDUC LAM,Nov,27,2013,Instructional Salaries - Regul,UNRESTRICTED,"$6,990.11"
48,J.F. Drake State,90007061,JOYCE P LAMAR,Nov,27,2013,Support Personnel Salaries - S,UNRESTRICTED,"$4,568.08"
48,J.F. Drake State,90007062,JOHN CHRISTOPHER LEE JR,Nov,27,2013,Hourly Wages,,$400.00
48,J.F. Drake State,90007063,PAMELA LONG,Nov,27,2013,Instructional Salaries - Tempo,UNRESTRICTED,"$1,575.00"
48,J.F. Drake State,90007063,PAMELA LONG,Nov,27,2013,Hourly Wages,,$400.00
48,J.F. Drake State,90007064,KATHERINE MARIE LONGMORE,Nov,27,2013,Hourly Wages,,$700.00
48,J.F. Drake State,90007065,VALERIE E LOTZ,Nov,27,2013,Instructional Salaries - Tempo,ADULT ED,"$1,233.00"
48,J.F. Drake State,90007066,MICHEAL V MAXTON,Nov,27,2013,Instructional Salaries - Tempo,UNRESTRICTED,$675.00
48,J.F. Drake State,90007067,HELEN T MCALPINE,Nov,27,2013,Administrative Salaries- Sched,UNRESTRICTED,"$14,266.42"
48,J.F. Drake State,90007067,HELEN T MCALPINE,Nov,27,2013,President's Expense Allowance,UNRESTRICTED,$200.00
48,J.F. Drake State,90007067,HELEN T MCALPINE,Nov,27,2013,Housing Allowance,UNRESTRICTED,"$1,000.00"
48,J.F. Drake State,90007067,HELEN T MCALPINE,Nov,27,2013,Employee Taxable Per Diem,UNRESTRICTED,$11.25
48,J.F. Drake State,90007069,DEMETIUS L MCCARTY,Nov,27,2013,Support Personnel Salaries - S,UNRESTRICTED,"$2,262.08"
48,J.F. Drake State,90007071,JERRY L MCCAULLEY,Nov,27,2013,Instructional Salaries - Tempo,UNRESTRICTED,"$1,350.00"
48,J.F. Drake State,90007072,DARVIN D MCDANIEL,Nov,27,2013,Instructional Salaries - Tempo,UNRESTRICTED,"$2,062.50"
48,J.F. Drake State,90007073,SCOTTY MCLAUGHLIN,Nov,27,2013,Instructional Salaries - Tempo,UNRESTRICTED,$112.50
48,J.F. Drake State,90007073,SCOTTY MCLAUGHLIN,Nov,27,2013,Instructional Salaries - Regul,UNRESTRICTED,"$7,401.89"
48,J.F. Drake State,90007074,MARIA YVETTE MEADOR,Nov,27,2013,Support Personnel Salaries - S,STUDENT SUPPORT SERVICES,"$2,633.83"
48,J.F. Drake State,90007075,DEBORAH A MILLING,Nov,27,2013,Instructional Salaries - Regul,UNRESTRICTED,"$5,451.42"
48,J.F. Drake State,90007076,JOHN W MILLING,Nov,27,2013,Instructional Salaries - Tempo,UNRESTRICTED,$337.50
48,J.F. Drake State,90007077,SAMMY J MILTON,Nov,27,2013,Support Personnel Salaries - S,UNRESTRICTED,"$3,452.83"
48,J.F. Drake State,90007078,ACOLEA J MOORE,Nov,27,2013,Instructional Salaries - Tempo,UNRESTRICTED,$675.00
48,J.F. Drake State,90007079,BRUCE D MORRISON,Nov,27,2013,Support Personnel Salaries - S,UNRESTRICTED,"$4,196.17"
48,J.F. Drake State,90007080,JENNIFER O'LINGER,Nov,27,2013,Other Professional Salaries -,UNRESTRICTED,"$6,159.00"
48,J.F. Drake State,90007081,AKUA K OPOKU-BOATENG,Nov,27,2013,Support Personnel Salaries - S,CAREER COACHES,"$2,559.33"
48,J.F. Drake State,90007082,DONALD ORR,Nov,27,2013,Support Personnel Salaries - S,UNRESTRICTED,"$3,824.67"
48,J.F. Drake State,90007083,VALARIE L OWENS,Nov,27,2013,Support Personnel Salaries - S,STUDENT SUPPORT SERVICES,"$2,262.08"
48,J.F. Drake State,90007084,TINA HARDIN PATTON,Nov,27,2013,Support Personnel Salaries - S,UNRESTRICTED,"$1,964.25"
48,J.F. Drake State,90007085,JERROLD DION PHIPPS,Nov,27,2013,Instructional Salaries - Tempo,UNRESTRICTED,"$1,575.00"
48,J.F. Drake State,90007086,MARK PAUL PILOTTE,Nov,27,2013,Instructional Salaries - Tempo,UNRESTRICTED,"$1,012.50"
48,J.F. Drake State,90007087,JAMES W PLEASURE,Nov,27,2013,Hourly Wages,,"$1,490.00"
48,J.F. Drake State,90007088,GWENDOLYN D POPE,Nov,27,2013,Instructional Salaries - Tempo,UNRESTRICTED,$675.00
48,J.F. Drake State,90007088,GWENDOLYN D POPE,Nov,27,2013,Instructional Salaries - Regul,UNRESTRICTED,"$5,651.75"
48,J.F. Drake State,90007089,MICHAEL RADDEN,Nov,27,2013,Instructional Salaries - Tempo,UNRESTRICTED,$337.50
48,J.F. Drake State,90007090,ALICE G RAYMOND,Nov,27,2013,Other Professional Salaries -,,"$8,233.58"
48,J.F. Drake State,90007091,JOYCE L RENTZ,Nov,27,2013,Other Professional Salaries -,UNRESTRICTED,"$8,503.50"
48,J.F. Drake State,90007092,JOHN REUTTER III,Nov,27,2013,Other Professional Salaries -,,"$7,053.24"
48,J.F. Drake State,90007093,LYSCELLE M REYES,Nov,27,2013,Instructional Salaries - Tempo,UNRESTRICTED,$900.00
48,J.F. Drake State,90007093,LYSCELLE M REYES,Nov,27,2013,Hourly Wages,,$900.00
48,J.F. Drake State,90007094,DEBORAH L RHYNES,Nov,27,2013,Instructional Salaries - Tempo,,"$3,045.00"
48,J.F. Drake State,90007095,BILL E RICE,Nov,27,2013,Instructional Salaries - Tempo,UNRESTRICTED,"$1,012.50"
48,J.F. Drake State,90007096,BEVERLY NICOLE RICKS-CULB,Nov,27,2013,Hourly Wages,,$410.00
48,J.F. Drake State,90007097,RALPH W ROBERTS,Nov,27,2013,Instructional Salaries - Tempo,UNRESTRICTED,"$1,575.00"
48,J.F. Drake State,90007098,WENDY L ROBERTS,Nov,27,2013,Other Professional Salaries -,ADULT ED,"$4,350.83"
48,J.F. Drake State,90007099,ERIC SCOTT RODGERS,Nov,27,2013,Hourly Wages,,$640.00
48,J.F. Drake State,90007100,CHARLOTTE F SCHRIMSHER,Nov,27,2013,Support Personnel Salaries - S,UNRESTRICTED,"$2,485.42"
48,J.F. Drake State,90007101,LAODECEA T SEAY,Nov,27,2013,Support Personnel Salaries - S,UNRESTRICTED,"$3,452.08"
48,J.F. Drake State,90007103,JACQUELINE M SHIVERS,Nov,27,2013,Instructional Salaries - Tempo,ADULT ED,"$2,018.75"
48,J.F. Drake State,90007104,LESLEY SHOTTS,Nov,27,2013,Instructional Salaries - Tempo,,"$4,750.00"
48,J.F. Drake State,90007106,AMANDA R SIMPSON,Nov,27,2013,Support Personnel Salaries - S,UNRESTRICTED,"$2,262.08"
48,J.F. Drake State,90007107,PATRICIA GORDON SIMS,Nov,27,2013,Administrative Salaries- Sched,UNRESTRICTED,"$9,245.09"
48,J.F. Drake State,90007108,BHESHAM JERRY SINGH,Nov,27,2013,Hourly Wages,,"$1,555.08"
48,J.F. Drake State,90007109,DELORIS A SMOTHERS,Nov,27,2013,Instructional Salaries - Tempo,UNRESTRICTED,$675.00
48,J.F. Drake State,90007109,DELORIS A SMOTHERS,Nov,27,2013,Instructional Salaries - Regul,UNRESTRICTED,"$7,261.67"
48,J.F. Drake State,90007110,JULIE P SPURGEON,Nov,27,2013,Support Personnel Salaries - S,UNRESTRICTED,"$3,377.67"
48,J.F. Drake State,90007111,STEPHANY L STEINFAITH,Nov,27,2013,Instructional Salaries - Tempo,UNRESTRICTED,$337.50
48,J.F. Drake State,90007112,JASON M STEPHENS,Nov,27,2013,Hourly Wages,STUDENT SUPPORT SERVICES,"$1,170.00"
48,J.F. Drake State,90007113,JON D STEPHENSON,Nov,27,2013,Support Personnel Salaries - S,,"$3,392.67"
48,J.F. Drake State,90007114,VERLINDSEY B STEWART,Nov,27,2013,Instructional Salaries - Regul,UNRESTRICTED,"$7,001.89"
48,J.F. Drake State,90007114,VERLINDSEY B STEWART,Nov,27,2013,Instructional Salaries - Tempo,UNRESTRICTED,$337.50
48,J.F. Drake State,90007115,MONICA SUDEALL-HAWKINS,Nov,27,2013,Instructional Salaries - Tempo,UNRESTRICTED,$337.50
48,J.F. Drake State,90007116,CHARLES A SULLINS JR,Nov,27,2013,Instructional Salaries - Tempo,UNRESTRICTED,$337.50
48,J.F. Drake State,90007117,KIMBERLY DEE SULLIVAN,Nov,27,2013,Hourly Wages,,$500.00
48,J.F. Drake State,90007118,SHANNON SUMMERS,Nov,27,2013,Instructional Salaries - Tempo,ADULT ED,$675.00
48,J.F. Drake State,90007119,NATHAN W TATE JR,Nov,27,2013,Hourly Wages,,"$1,140.00"
48,J.F. Drake State,90007120,DOCQUINN N TAYLOR,Nov,27,2013,Instructional Salaries - Regul,UNRESTRICTED,"$4,934.33"
48,J.F. Drake State,90007120,DOCQUINN N TAYLOR,Nov,27,2013,Employee Taxable Per Diem,,$30.00
48,J.F. Drake State,90007121,MALCOLM G TAYLOR,Nov,27,2013,Instructional Salaries - Tempo,UNRESTRICTED,"$1,012.50"
48,J.F. Drake State,90007122,FORREST BRYANT TEAGUE,Nov,27,2013,Instructional Salaries - Regul,UNRESTRICTED,"$5,547.11"
48,J.F. Drake State,90007123,DAWN G THOMAS,Nov,27,2013,Hourly Wages,,$400.00
48,J.F. Drake State,90007124,HUGH L THOMPSON JR,Nov,27,2013,Instructional Salaries - Tempo,UNRESTRICTED,"$1,462.50"
48,J.F. Drake State,90007125,YOLANDA R TONEY,Nov,27,2013,Instructional Salaries - Tempo,UNRESTRICTED,"$1,012.50"
48,J.F. Drake State,90007126,JOY D TORNQUIST,Nov,27,2013,Instructional Salaries - Tempo,UNRESTRICTED,"$1,515.00"
48,J.F. Drake State,90007127,KRISTIN TREADWAY,Nov,27,2013,Support Personnel Salaries - S,,"$3,005.67"
48,J.F. Drake State,90007128,ELIZABETH A TUGGLE,Nov,27,2013,Instructional Salaries - Tempo,ADULT ED,"$1,846.00"
48,J.F. Drake State,90007129,GILBERT T TURLEY,Nov,27,2013,Other Professional Salaries -,UNRESTRICTED,"$6,886.58"
48,J.F. Drake State,90007130,LARRY CHARLES TURNER,Nov,27,2013,Hourly Wages,,"$1,065.00"
48,J.F. Drake State,90007131,KAROL C WADDELL,Nov,27,2013,Hourly Wages,READY TO WORK,"$2,280.00"
48,J.F. Drake State,90007132,PAULA M WADE,Nov,27,2013,Hourly Wages,STUDENT SUPPORT SERVICES,$330.00
48,J.F. Drake State,90007133,ANITA G WALKER,Nov,27,2013,Hourly Wages,,"$1,720.00"
48,J.F. Drake State,90007134,LETITIA E WALKER,Nov,27,2013,Support Personnel Salaries - S,UNRESTRICTED,"$3,229.42"
48,J.F. Drake State,90007135,DEVONA WARNER,Nov,27,2013,Hourly Wages,,$675.00
48,J.F. Drake State,90007136,BETH S WESTER,Nov,27,2013,Other Professional Salaries -,,"$6,013.50"
48,J.F. Drake State,90007137,DWAYNIA WILKERSON,Nov,27,2013,Instructional Salaries - Tempo,UNRESTRICTED,$675.00
48,J.F. Drake State,90007138,CALANDRA S WILLIAMS,Nov,27,2013,Instructional Salaries - Tempo,ADULT ED,$552.00
48,J.F. Drake State,90007139,DAYMETRIE D WILLIAMS,Nov,27,2013,Hourly Wages,,$710.00
48,J.F. Drake State,90007140,KELLY L WILLIAMS,Nov,27,2013,Instructional Salaries - Tempo,UNRESTRICTED,"$1,350.00"
48,J.F. Drake State,90007141,TANESHA MICHELLE WILLIAMS,Nov,27,2013,Hourly Wages,,$645.00
48,J.F. Drake State,90007142,TRACEY L WILSON,Nov,27,2013,Instructional Salaries - Tempo,UNRESTRICTED,$900.00
48,J.F. Drake State,90007143,BRANDI G WINCHESTER,Nov,27,2013,Instructional Salaries - Regul,UNRESTRICTED,"$3,729.00"
48,J.F. Drake State,90007143,BRANDI G WINCHESTER,Nov,27,2013,Instructional Salaries - Tempo,UNRESTRICTED,$675.00
48,J.F. Drake State,90007144,GEORGE R WINN,Nov,27,2013,Instructional Salaries - Regul,UNRESTRICTED,"$5,823.89"
48,J.F. Drake State,90007144,GEORGE R WINN,Nov,27,2013,Instructional Salaries - Tempo,UNRESTRICTED,$337.50
48,J.F. Drake State,90007145,CHARLES R WINTER,Nov,27,2013,Support Personnel Salaries - S,UNRESTRICTED,"$1,889.83"
48,J.F. Drake State,90007146,DELESHIA D YOUNG,Nov,27,2013,Support Personnel Salaries - S,UNRESTRICTED,"$3,154.25"
48,J.F. Drake State,90007147,TARA L YOUNG,Nov,27,2013,Instructional Salaries - Tempo,UNRESTRICTED,$337.50
48,J.F. Drake State,90006588,DEMICA SHERMIR ALLISON,Oct,31,2013,Hourly Wages,,$400.00
48,J.F. Drake State,90006589,TRINA A ALTMAN,Oct,31,2013,Instructional Salaries - Regul,UNRESTRICTED,"$3,753.42"
48,J.F. Drake State,90006590,CEDRIC D ARRINGTON SR,Oct,31,2013,Other Professional Salaries -,UNRESTRICTED,"$6,450.08"
48,J.F. Drake State,90006590,CEDRIC D ARRINGTON SR,Oct,31,2013,In-State Travel,,$33.75
48,J.F. Drake State,90006591,KEVIN STEVEN ATCHLEY,Oct,31,2013,Hourly Wages,,$400.00
48,J.F. Drake State,90006592,LYSA AUGUSTIN,Oct,31,2013,Instructional Salaries - Tempo,ADULT ED,$528.00
48,J.F. Drake State,90006594,CAROLYN AVRITTE,Oct,31,2013,Instructional Salaries - Tempo,UNRESTRICTED,"$2,130.00"
48,J.F. Drake State,90006595,ZELDA M AZOR,Oct,31,2013,Instructional Salaries - Tempo,UNRESTRICTED,"$2,660.00"
48,J.F. Drake State,90006596,NELSON E BARNES,Oct,31,2013,Instructional Salaries - Tempo,UNRESTRICTED,$675.00
48,J.F. Drake State,90006597,NICOLE CLARESE BARNETT,Oct,31,2013,Administrative Salaries- Sched,,"$8,205.34"
48,J.F. Drake State,90006598,BEN BATTLE,Oct,31,2013,Instructional Salaries - Regul,UNRESTRICTED,"$5,602.89"
48,J.F. Drake State,90006599,ANGELA NICOLE BELL,Oct,31,2013,Instructional Salaries - Regul,UNRESTRICTED,"$5,668.56"
48,J.F. Drake State,90006601,PATRICE BIVINS,Oct,31,2013,Support Personnel Salaries - S,,"$2,484.92"
48,J.F. Drake State,90006602,STEPHANIE JONES BOUNDS,Oct,31,2013,Instructional Salaries - Tempo,UNRESTRICTED,$900.00
48,J.F. Drake State,90006603,CHERYL BRAWLEY-KELLY,Oct,31,2013,Instructional Salaries - Tempo,UNRESTRICTED,"$2,520.00"
48,J.F. Drake State,90006604,BRUCE A BULLUCK,Oct,31,2013,Other Professional Salaries -,UNRESTRICTED,"$6,450.08"
48,J.F. Drake State,90006605,KHALILAH BURTON,Oct,31,2013,Instructional Salaries - Tempo,UNRESTRICTED,"$1,125.00"
48,J.F. Drake State,90006606,DERICK R CARPENAY,Oct,31,2013,Instructional Salaries - Tempo,UNRESTRICTED,$675.00
48,J.F. Drake State,90006607,KATIE E CHANCE,Oct,31,2013,Support Personnel Salaries - S,UNRESTRICTED,"$3,526.58"
48,J.F. Drake State,90006608,ROGER CHEN,Oct,31,2013,Hourly Wages,,"$2,455.50"
48,J.F. Drake State,90006609,FRANCES E CHURCH,Oct,31,2013,Instructional Salaries - Tempo,UNRESTRICTED,$337.50
48,J.F. Drake State,90006610,ADAM CLARK,Oct,31,2013,Instructional Salaries - Regul,UNRESTRICTED,"$5,379.11"
48,J.F. Drake State,90006611,TASKA S CLARK,Oct,31,2013,Support Personnel Salaries - S,UNRESTRICTED,"$2,336.50"
48,J.F. Drake State,90006613,CARLA R CLIFT,Oct,31,2013,Other Professional Salaries -,UNRESTRICTED,"$5,609.75"
48,J.F. Drake State,90006614,RICHARD COLLIE,Oct,31,2013,Other Professional Salaries -,STUDENT SUPPORT SERVICES,"$3,769.42"
48,J.F. Drake State,90006615,DARLENE COWAN,Oct,31,2013,Support Personnel Salaries - S,UNRESTRICTED,"$1,889.83"
48,J.F. Drake State,90006616,TOMACENIA CHANTRELL CROSB,Oct,31,2013,Hourly Wages,,$400.00
48,J.F. Drake State,90006617,TOMEKA CROSS,Oct,31,2013,Support Personnel Salaries - S,UNRESTRICTED,"$2,261.83"
48,J.F. Drake State,90006618,DEIONE L CRUTCHER,Oct,31,2013,Instructional Salaries - Tempo,ADULT ED,"$1,230.00"
48,J.F. Drake State,90006619,CHRISTINE H DAVIS,Oct,31,2013,Instructional Salaries - Regul,UNRESTRICTED,"$3,361.73"
48,J.F. Drake State,90006620,CODY GLENN DAVIS,Oct,31,2013,Hourly Wages,,$450.00
48,J.F. Drake State,90006621,DENISE RAYNAL DAVIS,Oct,31,2013,Hourly Wages,,$215.00
48,J.F. Drake State,90006622,MATTIE D DAVIS,Oct,31,2013,Instructional Salaries - Regul,UNRESTRICTED,"$6,790.11"
48,J.F. Drake State,90006623,BRANDIE A DEL VALLE,Oct,31,2013,Instructional Salaries - Tempo,UNRESTRICTED,$705.00
48,J.F. Drake State,90006624,MONICA L DILLIHUNT,Oct,31,2013,Instructional Salaries - Tempo,UNRESTRICTED,$337.50
48,J.F. Drake State,90006626,MARLO DRAKE,Oct,31,2013,Support Personnel Salaries - S,UNRESTRICTED,"$2,533.25"
48,J.F. Drake State,90006626,MARLO DRAKE,Oct,31,2013,Support Personnel Salaries - S,,$844.42
48,J.F. Drake State,90006627,AMELIA J DUKEMINEER,Oct,31,2013,Hourly Wages,,"$1,520.00"
48,J.F. Drake State,90006628,DARRELL J ECHOLS,Oct,31,2013,Instructional Salaries - Regul,UNRESTRICTED,"$4,713.33"
48,J.F. Drake State,90006628,DARRELL J ECHOLS,Oct,31,2013,Instructional Salaries - Tempo,UNRESTRICTED,$787.50
48,J.F. Drake State,90006630,MONICA L EDMONDS,Oct,31,2013,Instructional Salaries - Tempo,UNRESTRICTED,$675.00
48,J.F. Drake State,90006631,VERNESSA M EDWARDS,Oct,31,2013,Instructional Salaries - Tempo,UNRESTRICTED,"$1,125.00"
48,J.F. Drake State,90006632,RONALD E EGSON,Oct,31,2013,Instructional Salaries - Tempo,UNRESTRICTED,$337.50
48,J.F. Drake State,90006632,RONALD E EGSON,Oct,31,2013,Instructional Salaries - Regul,UNRESTRICTED,"$4,527.33"
48,J.F. Drake State,90006633,JAMES J EISNER,Oct,31,2013,Support Personnel Salaries - S,UNRESTRICTED,"$2,633.83"
48,J.F. Drake State,90006633,JAMES J EISNER,Oct,31,2013,In-State Travel,,$33.75
48,J.F. Drake State,90006634,ROSELINE C ELIKE,Oct,31,2013,Instructional Salaries - Tempo,UNRESTRICTED,"$2,670.00"
48,J.F. Drake State,90006635,LESLEY-ANNE TOYO ENG,Oct,31,2013,Support Personnel Salaries - S,UNRESTRICTED,"$2,038.67"
48,J.F. Drake State,90006636,TIMOTHY J FAIRCHILD,Oct,31,2013,Hourly Wages,,"$2,336.00"
48,J.F. Drake State,90006637,AMY E FANNING,Oct,31,2013,Instructional Salaries - Regul,UNRESTRICTED,"$5,268.56"
48,J.F. Drake State,90006638,VICTORIA FARRAR LONG,Oct,31,2013,Support Personnel Salaries - S,UNRESTRICTED,"$2,336.50"
48,J.F. Drake State,90006639,GAIL E FISCH,Oct,31,2013,Instructional Salaries - Regul,ADULT ED,"$2,687.50"
48,J.F. Drake State,90006640,EDWIN T FORBES,Oct,31,2013,Instructional Salaries - Regul,UNRESTRICTED,"$4,062.58"
48,J.F. Drake State,90006641,HORACE L FRANKLIN JR,Oct,31,2013,Administrative Salaries- Sched,UNRESTRICTED,"$7,311.08"
48,J.F. Drake State,90006642,DAVID E FREEMAN,Oct,31,2013,Instructional Salaries - Tempo,UNRESTRICTED,$180.00
48,J.F. Drake State,90006643,MATTIE B FREEMAN,Oct,31,2013,Hourly Wages,,"$1,485.00"
48,J.F. Drake State,90006644,YIBELI GALINDO-BAIRD,Oct,31,2013,Other Professional Salaries -,UNRESTRICTED,"$4,062.92"
48,J.F. Drake State,90006645,BONNIE GARRETT,Oct,31,2013,Instructional Salaries - Tempo,UNRESTRICTED,$562.50
48,J.F. Drake State,90006646,DENISE CLEOSHI GAYMON,Oct,31,2013,Other Professional Salaries -,,"$4,152.75"
48,J.F. Drake State,90006647,SYMMETRIS K GOHANNA,Oct,31,2013,Instructional Salaries - Regul,UNRESTRICTED,"$4,990.33"
48,J.F. Drake State,90006648,LARDELL GOODLOE JR,Oct,31,2013,Instructional Salaries - Regul,UNRESTRICTED,"$5,009.89"
48,J.F. Drake State,90006649,WILLIAM TAYLOR GORDON,Oct,31,2013,Hourly Wages,,$600.00
48,J.F. Drake State,90006650,TIFFANY R GREEN,Oct,31,2013,Support Personnel Salaries - S,,"$3,303.17"
48,J.F. Drake State,90006651,TIMOTHY RYAN GREEN,Oct,31,2013,Instructional Salaries - Regul,UNRESTRICTED,"$4,268.56"
48,J.F. Drake State,90006651,TIMOTHY RYAN GREEN,Oct,31,2013,Instructional Salaries - Tempo,UNRESTRICTED,"$1,462.50"
48,J.F. Drake State,90006652,VICKIE E GREEN,Oct,31,2013,Instructional Salaries - Regul,,"$5,120.33"
48,J.F. Drake State,90006653,ROBERT N GRISSIM,Oct,31,2013,Instructional Salaries - Regul,UNRESTRICTED,"$3,757.42"
48,J.F. Drake State,90006654,CHARLES GROSS,Oct,31,2013,Instructional Salaries - Tempo,UNRESTRICTED,$675.00
48,J.F. Drake State,90006655,SAMUEL V GUISHARD,Oct,31,2013,Instructional Salaries - Tempo,UNRESTRICTED,"$1,687.50"
48,J.F. Drake State,90006656,MANELZA CRAWFORD HAMBRICK,Oct,31,2013,Support Personnel Salaries - S,UNRESTRICTED,"$2,485.42"
48,J.F. Drake State,90006657,ARCHIE LEE HAMLET,Oct,31,2013,Hourly Wages,UNRESTRICTED,$948.00
48,J.F. Drake State,90006658,SHELIA D HAMMON,Oct,31,2013,Instructional Salaries - Regul,UNRESTRICTED,"$5,416.78"
48,J.F. Drake State,90006658,SHELIA D HAMMON,Oct,31,2013,Instructional Salaries - Tempo,UNRESTRICTED,$337.50
48,J.F. Drake State,90006659,AUNDREA D HANSON,Oct,31,2013,Instructional Salaries - Tempo,UNRESTRICTED,$337.50
48,J.F. Drake State,90006660,GEORGE VICTOR HARLOW III,Oct,31,2013,Hourly Wages,,$400.00
48,J.F. Drake State,90006661,KATRINA J HARRIS,Oct,31,2013,Support Personnel Salaries - S,UNRESTRICTED,$993.13
48,J.F. Drake State,90006661,KATRINA J HARRIS,Oct,31,2013,Support Personnel Salaries - S,,"$2,979.38"
48,J.F. Drake State,90006662,NEDA L HAULE,Oct,31,2013,Hourly Wages,,$952.50
48,J.F. Drake State,90006663,CAROLYN HENDERSON,Oct,31,2013,Instructional Salaries - Tempo,UNRESTRICTED,$337.50
48,J.F. Drake State,90006663,CAROLYN HENDERSON,Oct,31,2013,Instructional Salaries - Regul,UNRESTRICTED,"$4,362.58"
48,J.F. Drake State,90006664,DEXTER R HENRY,Oct,31,2013,Instructional Salaries - Regul,UNRESTRICTED,"$6,416.89"
48,J.F. Drake State,90006665,KARL W HENRY SR,Oct,31,2013,Instructional Salaries - Regul,UNRESTRICTED,"$7,261.67"
48,J.F. Drake State,90006665,KARL W HENRY SR,Oct,31,2013,Instructional Salaries - Tempo,UNRESTRICTED,$900.00
48,J.F. Drake State,90006665,KARL W HENRY SR,Oct,31,2013,Instructional Salaries - Tempo,,"$2,939.30"
48,J.F. Drake State,90006666,ELBREY WARREN HERRING,Oct,31,2013,Instructional Salaries - Tempo,ADULT ED,"$1,344.00"
48,J.F. Drake State,90006667,ISSAC D HINES,Oct,31,2013,Instructional Salaries - Tempo,UNRESTRICTED,"$1,350.00"
48,J.F. Drake State,90006667,ISSAC D HINES,Oct,31,2013,Hourly Wages,,$560.00
48,J.F. Drake State,90006668,KHALID HOLMES,Oct,31,2013,Instructional Salaries - Regul,UNRESTRICTED,"$3,395.50"
48,J.F. Drake State,90006668,KHALID HOLMES,Oct,31,2013,Instructional Salaries - Tempo,UNRESTRICTED,$337.50
48,J.F. Drake State,90006669,PORTIA S HOUSTON,Oct,31,2013,Instructional Salaries - Tempo,UNRESTRICTED,"$1,575.00"
48,J.F. Drake State,90006670,ANDREA L HOWARD-KENNEDY,Oct,31,2013,Instructional Salaries - Regul,,"$4,713.33"
48,J.F. Drake State,90006671,JAN J HYMAN,Oct,31,2013,Support Personnel Salaries - S,,"$3,229.00"
48,J.F. Drake State,90006673,NEOKA JANE IVEY,Oct,31,2013,Support Personnel Salaries - S,UNRESTRICTED,"$2,038.67"
48,J.F. Drake State,90006674,TERELL L JACKSON,Oct,31,2013,Support Personnel Salaries - S,UNRESTRICTED,"$2,262.08"
48,J.F. Drake State,90006675,SARAH J JAMAR,Oct,31,2013,Hourly Wages,STUDENT SUPPORT SERVICES,$165.00
48,J.F. Drake State,90006676,VICTORIA L JOINER-MILLER,Oct,31,2013,Instructional Salaries - Tempo,UNRESTRICTED,$337.50
48,J.F. Drake State,90006677,VICTOR G JOLLEY,Oct,31,2013,Instructional Salaries - Tempo,UNRESTRICTED,$562.50
48,J.F. Drake State,90006678,DONYALE D JONES,Oct,31,2013,Support Personnel Salaries - S,UNRESTRICTED,"$3,452.33"
48,J.F. Drake State,90006679,PINEY L JORDAN,Oct,31,2013,Instructional Salaries - Tempo,UNRESTRICTED,"$2,280.00"
48,J.F. Drake State,90006680,NGOZI A KAMALU,Oct,31,2013,Instructional Salaries - Tempo,UNRESTRICTED,"$1,845.00"
48,J.F. Drake State,90006681,JUSTIN M KELLY,Oct,31,2013,Instructional Salaries - Tempo,UNRESTRICTED,$675.00
48,J.F. Drake State,90006682,CHERYL P KEMP,Oct,31,2013,Instructional Salaries - Tempo,UNRESTRICTED,"$2,490.00"
48,J.F. Drake State,90006683,JAPHETH K KESSIO,Oct,31,2013,Instructional Salaries - Tempo,UNRESTRICTED,$337.50
48,J.F. Drake State,90006684,THOMAS B KIBLER,Oct,31,2013,Hourly Wages,,"$1,555.08"
48,J.F. Drake State,90006685,NICHOLAS PAUL KSEPKA,Oct,31,2013,Hourly Wages,UNRESTRICTED,"$2,931.58"
48,J.F. Drake State,90006686,HONG THUYDUC LAM,Oct,31,2013,Instructional Salaries - Regul,UNRESTRICTED,"$6,990.11"
48,J.F. Drake State,90006686,HONG THUYDUC LAM,Oct,31,2013,Employee Taxable Per Diem,,$11.25
48,J.F. Drake State,90006687,JOYCE P LAMAR,Oct,31,2013,Support Personnel Salaries - S,UNRESTRICTED,"$4,568.08"
48,J.F. Drake State,90006688,DIANNE T LANZA,Oct,31,2013,Instructional Salaries - Tempo,ADULT ED,$273.00
48,J.F. Drake State,90006689,JOHN CHRISTOPHER LEE JR,Oct,31,2013,Hourly Wages,,$400.00
48,J.F. Drake State,90006690,PAMELA LONG,Oct,31,2013,Instructional Salaries - Tempo,UNRESTRICTED,"$1,575.00"
48,J.F. Drake State,90006690,PAMELA LONG,Oct,31,2013,Hourly Wages,,$390.00
48,J.F. Drake State,90006691,KATHERINE MARIE LONGMORE,Oct,31,2013,Hourly Wages,,$520.00
48,J.F. Drake State,90006692,VALERIE E LOTZ,Oct,31,2013,Instructional Salaries - Tempo,ADULT ED,"$1,260.00"
48,J.F. Drake State,90006693,MICHEAL V MAXTON,Oct,31,2013,Instructional Salaries - Tempo,UNRESTRICTED,$675.00
48,J.F. Drake State,90006694,HELEN T MCALPINE,Oct,31,2013,Administrative Salaries- Sched,UNRESTRICTED,"$14,266.42"
48,J.F. Drake State,90006694,HELEN T MCALPINE,Oct,31,2013,President's Expense Allowance,UNRESTRICTED,$200.00
48,J.F. Drake State,90006694,HELEN T MCALPINE,Oct,31,2013,Housing Allowance,UNRESTRICTED,"$1,000.00"
48,J.F. Drake State,90006696,DEMETIUS L MCCARTY,Oct,31,2013,Support Personnel Salaries - S,UNRESTRICTED,"$2,262.08"
48,J.F. Drake State,90006698,JERRY L MCCAULLEY,Oct,31,2013,Instructional Salaries - Tempo,UNRESTRICTED,"$1,350.00"
48,J.F. Drake State,90006699,DARVIN D MCDANIEL,Oct,31,2013,Instructional Salaries - Tempo,UNRESTRICTED,"$1,912.50"
48,J.F. Drake State,90006700,SCOTTY MCLAUGHLIN,Oct,31,2013,Instructional Salaries - Tempo,UNRESTRICTED,$112.50
48,J.F. Drake State,90006700,SCOTTY MCLAUGHLIN,Oct,31,2013,Instructional Salaries - Regul,UNRESTRICTED,"$7,401.89"
48,J.F. Drake State,90006701,MARIA YVETTE MEADOR,Oct,31,2013,Support Personnel Salaries - S,STUDENT SUPPORT SERVICES,"$2,633.83"
48,J.F. Drake State,90006702,DEBORAH A MILLING,Oct,31,2013,Instructional Salaries - Regul,UNRESTRICTED,"$5,451.42"
48,J.F. Drake State,90006703,JOHN W MILLING,Oct,31,2013,Instructional Salaries - Tempo,UNRESTRICTED,$337.50
48,J.F. Drake State,90006704,SAMMY J MILTON,Oct,31,2013,Support Personnel Salaries - S,UNRESTRICTED,"$3,452.83"
48,J.F. Drake State,90006705,ACOLEA J MOORE,Oct,31,2013,Instructional Salaries - Tempo,UNRESTRICTED,$675.00
48,J.F. Drake State,90006706,BRUCE D MORRISON,Oct,31,2013,Support Personnel Salaries - S,UNRESTRICTED,"$4,196.17"
48,J.F. Drake State,90006707,JENNIFER O'LINGER,Oct,31,2013,Other Professional Salaries -,UNRESTRICTED,"$6,159.00"
48,J.F. Drake State,90006708,AKUA K OPOKU-BOATENG,Oct,31,2013,Support Personnel Salaries - S,,"$2,559.33"
48,J.F. Drake State,90006709,DONALD ORR,Oct,31,2013,Support Personnel Salaries - S,UNRESTRICTED,"$3,824.67"
48,J.F. Drake State,90006710,VALARIE L OWENS,Oct,31,2013,Support Personnel Salaries - S,STUDENT SUPPORT SERVICES,"$2,262.08"
48,J.F. Drake State,90006711,TINA HARDIN PATTON,Oct,31,2013,Support Personnel Salaries - S,UNRESTRICTED,"$1,964.25"
48,J.F. Drake State,90006712,JERROLD DION PHIPPS,Oct,31,2013,Instructional Salaries - Tempo,UNRESTRICTED,"$1,575.00"
48,J.F. Drake State,90006713,MARK PAUL PILOTTE,Oct,31,2013,Instructional Salaries - Tempo,UNRESTRICTED,"$1,012.50"
48,J.F. Drake State,90006714,JAMES W PLEASURE,Oct,31,2013,Hourly Wages,,"$1,390.00"
48,J.F. Drake State,90006715,GWENDOLYN D POPE,Oct,31,2013,Instructional Salaries - Tempo,UNRESTRICTED,$675.00
48,J.F. Drake State,90006715,GWENDOLYN D POPE,Oct,31,2013,Instructional Salaries - Regul,UNRESTRICTED,"$5,651.75"
48,J.F. Drake State,90006716,SHAHLA POURSAIED,Oct,31,2013,Instructional Salaries - Tempo,UNRESTRICTED,$927.50
48,J.F. Drake State,90006717,MICHAEL RADDEN,Oct,31,2013,Instructional Salaries - Tempo,UNRESTRICTED,$337.50
48,J.F. Drake State,90006718,ALICE G RAYMOND,Oct,31,2013,Other Professional Salaries -,,"$8,233.58"
48,J.F. Drake State,90006719,JOYCE L RENTZ,Oct,31,2013,Other Professional Salaries -,UNRESTRICTED,"$8,503.50"
48,J.F. Drake State,90006720,JOHN REUTTER III,Oct,31,2013,Other Professional Salaries -,,"$7,053.24"
48,J.F. Drake State,90006720,JOHN REUTTER III,Oct,31,2013,In-State Travel,,$41.25
48,J.F. Drake State,90006721,LYSCELLE M REYES,Oct,31,2013,Instructional Salaries - Tempo,UNRESTRICTED,$900.00
48,J.F. Drake State,90006721,LYSCELLE M REYES,Oct,31,2013,Hourly Wages,,$800.00
48,J.F. Drake State,90006722,DEBORAH L RHYNES,Oct,31,2013,Instructional Salaries - Tempo,,"$1,995.00"
48,J.F. Drake State,90006723,BILL E RICE,Oct,31,2013,Instructional Salaries - Tempo,UNRESTRICTED,"$1,012.50"
48,J.F. Drake State,90006724,ROXANNE D RICHARDSON,Oct,31,2013,Support Personnel Salaries - S,UNRESTRICTED,"$2,049.17"
48,J.F. Drake State,90006725,BEVERLY NICOLE RICKS-CULB,Oct,31,2013,Hourly Wages,,$305.00
48,J.F. Drake State,90006726,RALPH W ROBERTS,Oct,31,2013,Instructional Salaries - Tempo,UNRESTRICTED,"$1,575.00"
48,J.F. Drake State,90006727,WENDY L ROBERTS,Oct,31,2013,Other Professional Salaries -,ADULT ED,"$3,750.00"
48,J.F. Drake State,90006728,ERIC SCOTT RODGERS,Oct,31,2013,Hourly Wages,,$600.00
48,J.F. Drake State,90006729,CHARLOTTE F SCHRIMSHER,Oct,31,2013,Support Personnel Salaries - S,UNRESTRICTED,"$2,485.42"
48,J.F. Drake State,90006730,LAODECEA T SEAY,Oct,31,2013,Support Personnel Salaries - S,UNRESTRICTED,"$3,452.08"
48,J.F. Drake State,90006730,LAODECEA T SEAY,Oct,31,2013,In-State Travel,,$33.75
48,J.F. Drake State,90006732,JACQUELINE M SHIVERS,Oct,31,2013,Instructional Salaries - Tempo,ADULT ED,"$1,900.00"
48,J.F. Drake State,90006733,LESLEY SHOTTS,Oct,31,2013,Instructional Salaries - Tempo,,"$4,750.00"
48,J.F. Drake State,90006735,AMANDA R SIMPSON,Oct,31,2013,Support Personnel Salaries - S,UNRESTRICTED,"$2,959.80"
48,J.F. Drake State,90006736,PATRICIA GORDON SIMS,Oct,31,2013,Administrative Salaries- Sched,UNRESTRICTED,"$9,245.09"
48,J.F. Drake State,90006737,BHESHAM JERRY SINGH,Oct,31,2013,Hourly Wages,,"$1,555.08"
48,J.F. Drake State,90006738,DELORIS A SMOTHERS,Oct,31,2013,Instructional Salaries - Tempo,UNRESTRICTED,$675.00
48,J.F. Drake State,90006738,DELORIS A SMOTHERS,Oct,31,2013,Instructional Salaries - Regul,UNRESTRICTED,"$7,261.67"
48,J.F. Drake State,90006739,JULIE P SPURGEON,Oct,31,2013,Support Personnel Salaries - S,UNRESTRICTED,"$3,377.67"
48,J.F. Drake State,90006739,JULIE P SPURGEON,Oct,31,2013,Employee Taxable Per Diem,,$11.25
48,J.F. Drake State,90006740,STEPHANY L STEINFAITH,Oct,31,2013,Instructional Salaries - Tempo,UNRESTRICTED,$337.50
48,J.F. Drake State,90006741,JASON M STEPHENS,Oct,31,2013,Hourly Wages,STUDENT SUPPORT SERVICES,"$1,057.50"
48,J.F. Drake State,90006742,JON D STEPHENSON,Oct,31,2013,Support Personnel Salaries - S,,"$3,392.67"
48,J.F. Drake State,90006742,JON D STEPHENSON,Oct,31,2013,In-State Travel,,$11.25
48,J.F. Drake State,90006743,VERLINDSEY B STEWART,Oct,31,2013,Instructional Salaries - Regul,UNRESTRICTED,"$7,001.89"
48,J.F. Drake State,90006743,VERLINDSEY B STEWART,Oct,31,2013,Instructional Salaries - Tempo,UNRESTRICTED,"$1,297.50"
48,J.F. Drake State,90006744,MONICA SUDEALL-HAWKINS,Oct,31,2013,Instructional Salaries - Tempo,UNRESTRICTED,$337.50
48,J.F. Drake State,90006745,CHARLES A SULLINS JR,Oct,31,2013,Instructional Salaries - Tempo,UNRESTRICTED,$337.50
48,J.F. Drake State,90006746,KIMBERLY DEE SULLIVAN,Oct,31,2013,Hourly Wages,,$400.00
48,J.F. Drake State,90006747,SHANNON SUMMERS,Oct,31,2013,Instructional Salaries - Tempo,ADULT ED,$612.50
48,J.F. Drake State,90006748,NATHAN W TATE JR,Oct,31,2013,Hourly Wages,,"$1,840.00"
48,J.F. Drake State,90006749,DOCQUINN N TAYLOR,Oct,31,2013,Instructional Salaries - Regul,UNRESTRICTED,"$4,934.33"
48,J.F. Drake State,90006750,MALCOLM G TAYLOR,Oct,31,2013,Instructional Salaries - Tempo,UNRESTRICTED,"$1,012.50"
48,J.F. Drake State,90006751,FORREST BRYANT TEAGUE,Oct,31,2013,Instructional Salaries - Tempo,UNRESTRICTED,"$5,547.11"
48,J.F. Drake State,90006752,DAWN G THOMAS,Oct,31,2013,Hourly Wages,,$440.00
48,J.F. Drake State,90006753,HUGH L THOMPSON JR,Oct,31,2013,Instructional Salaries - Tempo,UNRESTRICTED,"$1,462.50"
48,J.F. Drake State,90006754,YOLANDA R TONEY,Oct,31,2013,Instructional Salaries - Tempo,UNRESTRICTED,"$1,012.50"
48,J.F. Drake State,90006755,JOY D TORNQUIST,Oct,31,2013,Instructional Salaries - Tempo,UNRESTRICTED,"$2,280.00"
48,J.F. Drake State,90006756,KRISTIN TREADWAY,Oct,31,2013,Support Personnel Salaries - S,,"$3,005.67"
48,J.F. Drake State,90006756,KRISTIN TREADWAY,Oct,31,2013,In-State Travel,,$33.75
48,J.F. Drake State,90006757,ELIZABETH A TUGGLE,Oct,31,2013,Instructional Salaries - Tempo,ADULT ED,"$1,378.00"
48,J.F. Drake State,90006758,GILBERT T TURLEY,Oct,31,2013,Other Professional Salaries -,UNRESTRICTED,"$6,886.58"
48,J.F. Drake State,90006759,LARRY CHARLES TURNER,Oct,31,2013,Hourly Wages,,$615.00
48,J.F. Drake State,90006760,KAROL C WADDELL,Oct,31,2013,Hourly Wages,READY TO WORK,"$2,700.00"
48,J.F. Drake State,90006761,PAULA M WADE,Oct,31,2013,Hourly Wages,STUDENT SUPPORT SERVICES,$266.25
48,J.F. Drake State,90006762,ANITA G WALKER,Oct,31,2013,Hourly Wages,,"$1,520.00"
48,J.F. Drake State,90006763,LETITIA E WALKER,Oct,31,2013,Support Personnel Salaries - S,UNRESTRICTED,"$3,229.42"
48,J.F. Drake State,90006764,DEVONA WARNER,Oct,31,2013,Hourly Wages,,$600.00
48,J.F. Drake State,90006765,BETH S WESTER,Oct,31,2013,Other Professional Salaries -,,"$6,013.50"
48,J.F. Drake State,90006766,DWAYNIA WILKERSON,Oct,31,2013,Instructional Salaries - Tempo,UNRESTRICTED,$675.00
48,J.F. Drake State,90006767,CALANDRA S WILLIAMS,Oct,31,2013,Instructional Salaries - Tempo,ADULT ED,$586.50
48,J.F. Drake State,90006768,DAYMETRIE D WILLIAMS,Oct,31,2013,Hourly Wages,,$630.00
48,J.F. Drake State,90006769,KELLY L WILLIAMS,Oct,31,2013,Instructional Salaries - Tempo,UNRESTRICTED,"$1,350.00"
48,J.F. Drake State,90006770,TANESHA MICHELLE WILLIAMS,Oct,31,2013,Hourly Wages,,$545.00
48,J.F. Drake State,90006771,TRACEY L WILSON,Oct,31,2013,Instructional Salaries - Tempo,UNRESTRICTED,$900.00
48,J.F. Drake State,90006772,BRANDI G WINCHESTER,Oct,31,2013,Instructional Salaries - Regul,UNRESTRICTED,"$3,729.00"
48,J.F. Drake State,90006772,BRANDI G WINCHESTER,Oct,31,2013,Instructional Salaries - Tempo,UNRESTRICTED,$675.00
48,J.F. Drake State,90006773,GEORGE R WINN,Oct,31,2013,Instructional Salaries - Regul,UNRESTRICTED,"$5,823.89"
48,J.F. Drake State,90006773,GEORGE R WINN,Oct,31,2013,Instructional Salaries - Tempo,UNRESTRICTED,$337.50
48,J.F. Drake State,90006774,CHARLES R WINTER,Oct,31,2013,Support Personnel Salaries - S,UNRESTRICTED,"$1,889.83"
48,J.F. Drake State,90006775,DELESHIA D YOUNG,Oct,31,2013,Support Personnel Salaries - S,UNRESTRICTED,"$3,154.25"
48,J.F. Drake State,90006776,TARA L YOUNG,Oct,31,2013,Instructional Salaries - Tempo,UNRESTRICTED,$337.50
48,J.F. Drake State,100313,AMERICAN EXPRESS,Oct,3,2013,Out-of-State Travel,,"$8,314.36"
48,J.F. Drake State,930131,AMERICAN EXPRESS,Oct,3,2013,Out-of-State Travel,,$633.60
48,J.F. Drake State,210498,DOMINGO SILVAS III,Sep,30,2013,Other Contractual Services,,$200.00
48,J.F. Drake State,210499,LIBRARY VIDEO CO,Sep,30,2013,Audiovisuals,,$39.90
48,J.F. Drake State,210500,SEXTON WELDING SUPPLY,Sep,30,2013,Materials and Supplies,,"$1,867.07"
48,J.F. Drake State,107560,BANKS INDUSTRIES INC.,Sep,30,2013,Materials and Supplies,UNRESTRICTED,$198.72
48,J.F. Drake State,107561,CDW-G,Sep,30,2013,Institutional Use,UNRESTRICTED,"$1,801.31"
48,J.F. Drake State,107562,"OFFICE DEPOT, INC.",Sep,30,2013,Materials and Supplies,ADULT ED,$886.06
48,J.F. Drake State,107563,OVERHEAD DOOR,Sep,30,2013,Maintenance and Repairs,PLANT FUNDS,$696.00
48,J.F. Drake State,107564,SYSCO CENTRAL ALABAMA,Sep,30,2013,Purchases for Resale,UNRESTRICTED,$721.47
48,J.F. Drake State,107564,SYSCO CENTRAL ALABAMA,Sep,30,2013,Materials and Supplies,UNRESTRICTED,$437.45
48,J.F. Drake State,210505,BERNEY OFFICE SOLUTIONS,Sep,30,2013,Furniture and Equipment,,"$5,643.00"
48,J.F. Drake State,107584,TECHNICAL TRAINING AIDS,Sep,30,2013,Computer Software,UNRESTRICTED,"$5,250.00"
48,J.F. Drake State,210508,"OFFICE DEPOT, INC.",Sep,30,2013,Materials and Supplies,,$29.99
48,J.F. Drake State,120131,CHASE,Sep,30,2013,In-State Travel,,$979.00
48,J.F. Drake State,120131,CHASE,Sep,30,2013,Out-of-State Travel,,$100.00
48,J.F. Drake State,120131,CHASE,Sep,30,2013,Materials and Supplies,,$103.09
48,J.F. Drake State,201301,CHASE,Sep,30,2013,Out-of-State Travel,UNRESTRICTED,$200.00
48,J.F. Drake State,201301,CHASE,Sep,30,2013,Materials and Supplies,UNRESTRICTED,$237.95
48,J.F. Drake State,132013,CHASE,Sep,30,2013,Materials and Supplies,UNRESTRICTED,$56.00
48,J.F. Drake State,132013,CHASE,Sep,30,2013,In-State Travel,UNRESTRICTED,$569.00
48,J.F. Drake State,9301332,CHASE,Sep,30,2013,Out-of-State Travel,,$595.78
48,J.F. Drake State,90006191,DEMICA SHERMIR ALLISON,Sep,30,2013,Hourly Wages,,$720.00
48,J.F. Drake State,90006192,TRINA A ALTMAN,Sep,30,2013,Instructional Salaries - Regul,UNRESTRICTED,"$3,753.42"
48,J.F. Drake State,90006193,CEDRIC D ARRINGTON SR,Sep,30,2013,Other Professional Salaries -,UNRESTRICTED,"$6,450.08"
48,J.F. Drake State,90006193,CEDRIC D ARRINGTON SR,Sep,30,2013,Employee Taxable Per Diem,,$33.75
48,J.F. Drake State,90006194,KEVIN STEVEN ATCHLEY,Sep,30,2013,Hourly Wages,,$650.00
48,J.F. Drake State,90006195,LYSA AUGUSTIN,Sep,30,2013,Instructional Salaries - Tempo,ADULT ED,$616.00
48,J.F. Drake State,90006197,CAROLYN AVRITTE,Sep,30,2013,Instructional Salaries - Tempo,UNRESTRICTED,"$2,490.00"
48,J.F. Drake State,90006198,ZELDA M AZOR,Sep,30,2013,Instructional Salaries - Tempo,UNRESTRICTED,"$2,580.00"
48,J.F. Drake State,90006199,NELSON E BARNES,Sep,30,2013,Instructional Salaries - Tempo,UNRESTRICTED,$675.00
48,J.F. Drake State,90006200,NICOLE CLARESE BARNETT,Sep,30,2013,Administrative Salaries- Sched,,"$7,792.02"
48,J.F. Drake State,90006201,BEN BATTLE,Sep,30,2013,Instructional Salaries - Regul,UNRESTRICTED,"$5,602.89"
48,J.F. Drake State,90006202,ANGELA NICOLE BELL,Sep,30,2013,Instructional Salaries - Regul,UNRESTRICTED,"$5,668.56"
48,J.F. Drake State,90006204,PATRICE BIVINS,Sep,30,2013,Support Personnel Salaries - S,,"$2,484.92"
48,J.F. Drake State,90006205,STEPHANIE JONES BOUNDS,Sep,30,2013,Instructional Salaries - Tempo,UNRESTRICTED,$900.00
48,J.F. Drake State,90006206,CHERYL BRAWLEY-KELLY,Sep,30,2013,Instructional Salaries - Tempo,UNRESTRICTED,"$2,850.00"
48,J.F. Drake State,90006207,BRUCE A BULLUCK,Sep,30,2013,Other Professional Salaries -,UNRESTRICTED,"$6,450.08"
48,J.F. Drake State,90006208,KHALILAH BURTON,Sep,30,2013,Instructional Salaries - Tempo,UNRESTRICTED,"$1,125.00"
48,J.F. Drake State,90006209,DERICK R CARPENAY,Sep,30,2013,Instructional Salaries - Tempo,UNRESTRICTED,$675.00
48,J.F. Drake State,90006210,KATIE E CHANCE,Sep,30,2013,Support Personnel Salaries - S,UNRESTRICTED,"$3,526.58"
48,J.F. Drake State,90006211,ROGER CHEN,Sep,30,2013,Hourly Wages,,"$3,526.50"
48,J.F. Drake State,90006212,FRANCES E CHURCH,Sep,30,2013,Instructional Salaries - Tempo,UNRESTRICTED,$337.50
48,J.F. Drake State,90006213,ADAM CLARK,Sep,30,2013,Instructional Salaries - Regul,UNRESTRICTED,"$5,379.11"
48,J.F. Drake State,90006214,TASKA S CLARK,Sep,30,2013,Support Personnel Salaries - S,UNRESTRICTED,"$2,336.50"
48,J.F. Drake State,90006216,CARLA R CLIFT,Sep,30,2013,Other Professional Salaries -,UNRESTRICTED,"$5,609.75"
48,J.F. Drake State,90006217,RICHARD COLLIE,Sep,30,2013,Other Professional Salaries -,STUDENT SUPPORT SERVICES,"$3,769.42"
48,J.F. Drake State,90006218,DARLENE COWAN,Sep,30,2013,Support Personnel Salaries - S,UNRESTRICTED,"$1,889.83"
48,J.F. Drake State,90006219,TOMACENIA CHANTRELL CROSB,Sep,30,2013,Hourly Wages,,$600.00
48,J.F. Drake State,90006220,TOMEKA CROSS,Sep,30,2013,Support Personnel Salaries - S,UNRESTRICTED,"$2,261.83"
48,J.F. Drake State,90006221,DEIONE L CRUTCHER,Sep,30,2013,Instructional Salaries - Tempo,ADULT ED,"$1,140.00"
48,J.F. Drake State,90006221,DEIONE L CRUTCHER,Sep,30,2013,In-State Travel,,$90.00
48,J.F. Drake State,90006223,CODY GLENN DAVIS,Sep,30,2013,Hourly Wages,,$600.00
48,J.F. Drake State,90006224,MATTIE D DAVIS,Sep,30,2013,Instructional Salaries - Regul,UNRESTRICTED,"$6,790.11"
48,J.F. Drake State,90006225,BRANDIE A DEL VALLE,Sep,30,2013,Instructional Salaries - Tempo,UNRESTRICTED,$870.00
48,J.F. Drake State,90006226,MONICA L DILLIHUNT,Sep,30,2013,Instructional Salaries - Tempo,UNRESTRICTED,$337.50
48,J.F. Drake State,90006228,MARLO DRAKE,Sep,30,2013,Support Personnel Salaries - S,UNRESTRICTED,"$2,533.25"
48,J.F. Drake State,90006228,MARLO DRAKE,Sep,30,2013,Support Personnel Salaries - S,,$844.42
48,J.F. Drake State,90006229,AMELIA J DUKEMINEER,Sep,30,2013,Hourly Wages,,"$1,800.00"
48,J.F. Drake State,90006230,DARRELL J ECHOLS,Sep,30,2013,Instructional Salaries - Regul,UNRESTRICTED,"$4,713.33"
48,J.F. Drake State,90006230,DARRELL J ECHOLS,Sep,30,2013,Instructional Salaries - Tempo,UNRESTRICTED,$787.50
48,J.F. Drake State,90006232,MONICA L EDMONDS,Sep,30,2013,Instructional Salaries - Tempo,UNRESTRICTED,$675.00
48,J.F. Drake State,90006233,VERNESSA M EDWARDS,Sep,30,2013,Instructional Salaries - Tempo,UNRESTRICTED,"$1,125.00"
48,J.F. Drake State,90006234,RONALD E EGSON,Sep,30,2013,Instructional Salaries - Tempo,UNRESTRICTED,$337.50
48,J.F. Drake State,90006234,RONALD E EGSON,Sep,30,2013,Instructional Salaries - Regul,UNRESTRICTED,"$4,527.33"
48,J.F. Drake State,90006235,JAMES J EISNER,Sep,30,2013,Support Personnel Salaries - S,UNRESTRICTED,"$2,633.83"
48,J.F. Drake State,90006235,JAMES J EISNER,Sep,30,2013,Employee Taxable Per Diem,,$33.75
48,J.F. Drake State,90006236,ROSELINE C ELIKE,Sep,30,2013,Instructional Salaries - Tempo,UNRESTRICTED,"$1,290.00"
48,J.F. Drake State,90006237,LESLEY-ANNE TOYO ENG,Sep,30,2013,Hourly Wages,UNRESTRICTED,$970.00
48,J.F. Drake State,90006237,LESLEY-ANNE TOYO ENG,Sep,30,2013,Support Personnel Salaries - S,UNRESTRICTED,"$1,669.92"
48,J.F. Drake State,90006238,TIMOTHY J FAIRCHILD,Sep,30,2013,Hourly Wages,,"$2,336.00"
48,J.F. Drake State,90006239,VICTORIA FARRAR LONG,Sep,30,2013,Support Personnel Salaries - S,UNRESTRICTED,"$2,336.50"
48,J.F. Drake State,90006240,GAIL E FISCH,Sep,30,2013,Instructional Salaries - Regul,ADULT ED,"$2,687.50"
48,J.F. Drake State,90006241,EDWIN T FORBES,Sep,30,2013,Instructional Salaries - Regul,UNRESTRICTED,"$4,062.58"
48,J.F. Drake State,90006242,AMY E FANNING,Sep,30,2013,Instructional Salaries - Regul,UNRESTRICTED,"$2,557.67"
48,J.F. Drake State,90006243,HORACE L FRANKLIN JR,Sep,30,2013,Administrative Salaries- Sched,UNRESTRICTED,"$7,311.08"
48,J.F. Drake State,90006244,DAVID E FREEMAN,Sep,30,2013,Instructional Salaries - Tempo,UNRESTRICTED,$180.00
48,J.F. Drake State,90006245,MATTIE B FREEMAN,Sep,30,2013,Hourly Wages,,"$2,130.00"
48,J.F. Drake State,90006246,YIBELI GALINDO-BAIRD,Sep,30,2013,Other Professional Salaries -,UNRESTRICTED,"$4,062.92"
48,J.F. Drake State,90006247,BONNIE GARRETT,Sep,30,2013,Instructional Salaries - Tempo,UNRESTRICTED,$562.50
48,J.F. Drake State,90006248,DENISE CLEOSHI GAYMON,Sep,30,2013,Other Professional Salaries -,,"$4,152.75"
48,J.F. Drake State,90006249,SYMMETRIS K GOHANNA,Sep,30,2013,Instructional Salaries - Regul,UNRESTRICTED,"$4,990.33"
48,J.F. Drake State,90006250,LARDELL GOODLOE JR,Sep,30,2013,Instructional Salaries - Regul,UNRESTRICTED,"$5,009.89"
48,J.F. Drake State,90006251,WILLIAM TAYLOR GORDON,Sep,30,2013,Hourly Wages,,$450.00
48,J.F. Drake State,90006252,TIFFANY R GREEN,Sep,30,2013,Support Personnel Salaries - S,,"$3,303.17"
48,J.F. Drake State,90006253,TIMOTHY RYAN GREEN,Sep,30,2013,Instructional Salaries - Regul,UNRESTRICTED,"$4,268.56"
48,J.F. Drake State,90006253,TIMOTHY RYAN GREEN,Sep,30,2013,Instructional Salaries - Tempo,UNRESTRICTED,"$1,462.50"
48,J.F. Drake State,90006254,VICKIE E GREEN,Sep,30,2013,Instructional Salaries - Regul,,"$5,120.33"
48,J.F. Drake State,90006255,ROBERT N GRISSIM,Sep,30,2013,Instructional Salaries - Regul,UNRESTRICTED,"$3,757.42"
48,J.F. Drake State,90006256,CHARLES GROSS,Sep,30,2013,Instructional Salaries - Tempo,UNRESTRICTED,$675.00
48,J.F. Drake State,90006257,SAMUEL V GUISHARD,Sep,30,2013,Instructional Salaries - Tempo,UNRESTRICTED,"$1,687.50"
48,J.F. Drake State,90006258,MANELZA CRAWFORD HAMBRICK,Sep,30,2013,Support Personnel Salaries - S,UNRESTRICTED,"$2,485.42"
48,J.F. Drake State,90006259,ARCHIE LEE HAMLET,Sep,30,2013,Hourly Wages,UNRESTRICTED,"$1,056.00"
48,J.F. Drake State,90006260,SHELIA D HAMMON,Sep,30,2013,Instructional Salaries - Regul,UNRESTRICTED,"$5,416.78"
48,J.F. Drake State,90006260,SHELIA D HAMMON,Sep,30,2013,Instructional Salaries - Tempo,UNRESTRICTED,$337.50
48,J.F. Drake State,90006261,AUNDREA D HANSON,Sep,30,2013,Instructional Salaries - Tempo,UNRESTRICTED,$337.50
48,J.F. Drake State,90006262,GEORGE VICTOR HARLOW III,Sep,30,2013,Hourly Wages,,$410.00
48,J.F. Drake State,90006263,KATRINA J HARRIS,Sep,30,2013,Support Personnel Salaries - S,UNRESTRICTED,$993.13
48,J.F. Drake State,90006263,KATRINA J HARRIS,Sep,30,2013,Support Personnel Salaries - S,,"$2,979.38"
48,J.F. Drake State,90006264,NEDA L HAULE,Sep,30,2013,Hourly Wages,,"$1,125.00"
48,J.F. Drake State,90006265,CAROLYN HENDERSON,Sep,30,2013,Instructional Salaries - Tempo,UNRESTRICTED,$337.50
48,J.F. Drake State,90006265,CAROLYN HENDERSON,Sep,30,2013,Instructional Salaries - Regul,UNRESTRICTED,"$4,362.58"
48,J.F. Drake State,90006266,DEXTER R HENRY,Sep,30,2013,Instructional Salaries - Regul,UNRESTRICTED,"$6,416.89"
48,J.F. Drake State,90006267,KARL W HENRY SR,Sep,30,2013,Instructional Salaries - Regul,UNRESTRICTED,"$7,261.67"
48,J.F. Drake State,90006267,KARL W HENRY SR,Sep,30,2013,Instructional Salaries - Tempo,UNRESTRICTED,$900.00
48,J.F. Drake State,90006268,ELBREY WARREN HERRING,Sep,30,2013,Instructional Salaries - Tempo,ADULT ED,"$1,248.00"
48,J.F. Drake State,90006268,ELBREY WARREN HERRING,Sep,30,2013,In-State Travel,,$144.00
48,J.F. Drake State,90006269,ISSAC D HINES,Sep,30,2013,Instructional Salaries - Tempo,UNRESTRICTED,"$1,350.00"
48,J.F. Drake State,90006269,ISSAC D HINES,Sep,30,2013,Hourly Wages,,$540.00
48,J.F. Drake State,90006270,KHALID HOLMES,Sep,30,2013,Instructional Salaries - Regul,UNRESTRICTED,"$3,395.50"
48,J.F. Drake State,90006270,KHALID HOLMES,Sep,30,2013,Instructional Salaries - Tempo,UNRESTRICTED,$337.50
48,J.F. Drake State,90006271,PORTIA S HOUSTON,Sep,30,2013,Instructional Salaries - Tempo,UNRESTRICTED,"$1,575.00"
48,J.F. Drake State,90006272,ANDREA L HOWARD-KENNEDY,Sep,30,2013,Instructional Salaries - Regul,,"$4,713.33"
48,J.F. Drake State,90006273,JAN J HYMAN,Sep,30,2013,Support Personnel Salaries - S,,"$3,229.00"
48,J.F. Drake State,90006275,NEOKA JANE IVEY,Sep,30,2013,Support Personnel Salaries - S,UNRESTRICTED,"$2,038.67"
48,J.F. Drake State,90006276,TERELL L JACKSON,Sep,30,2013,Support Personnel Salaries - S,UNRESTRICTED,"$2,262.08"
48,J.F. Drake State,90006277,SARAH J JAMAR,Sep,30,2013,Hourly Wages,STUDENT SUPPORT SERVICES,$705.00
48,J.F. Drake State,90006278,VICTORIA L JOINER-MILLER,Sep,30,2013,Instructional Salaries - Tempo,UNRESTRICTED,$337.50
48,J.F. Drake State,90006279,VICTOR G JOLLEY,Sep,30,2013,Instructional Salaries - Tempo,UNRESTRICTED,$562.50
48,J.F. Drake State,90006280,DONYALE D JONES,Sep,30,2013,Support Personnel Salaries - S,UNRESTRICTED,"$3,452.33"
48,J.F. Drake State,90006281,PINEY L JORDAN,Sep,30,2013,Instructional Salaries - Tempo,UNRESTRICTED,"$2,475.00"
48,J.F. Drake State,90006282,NGOZI A KAMALU,Sep,30,2013,Instructional Salaries - Tempo,UNRESTRICTED,"$2,850.00"
48,J.F. Drake State,90006283,JUSTIN M KELLY,Sep,30,2013,Instructional Salaries - Tempo,UNRESTRICTED,$675.00
48,J.F. Drake State,90006284,CHERYL P KEMP,Sep,30,2013,Instructional Salaries - Tempo,UNRESTRICTED,"$1,500.00"
48,J.F. Drake State,90006285,JAPHETH K KESSIO,Sep,30,2013,Instructional Salaries - Tempo,UNRESTRICTED,$337.50
48,J.F. Drake State,90006286,THOMAS B KIBLER,Sep,30,2013,Hourly Wages,,"$2,185.08"
48,J.F. Drake State,90006287,NICHOLAS PAUL KSEPKA,Sep,30,2013,Hourly Wages,UNRESTRICTED,"$3,824.08"
48,J.F. Drake State,90006288,HONG THUYDUC LAM,Sep,30,2013,Instructional Salaries - Regul,UNRESTRICTED,"$6,990.11"
48,J.F. Drake State,90006289,JOYCE P LAMAR,Sep,30,2013,Support Personnel Salaries - S,UNRESTRICTED,"$4,568.08"
48,J.F. Drake State,90006290,DIANNE T LANZA,Sep,30,2013,Instructional Salaries - Tempo,ADULT ED,$728.00
48,J.F. Drake State,90006291,JOHN CHRISTOPHER LEE JR,Sep,30,2013,Hourly Wages,,$650.00
48,J.F. Drake State,90006292,PAMELA LONG,Sep,30,2013,Instructional Salaries - Tempo,UNRESTRICTED,"$1,575.00"
48,J.F. Drake State,90006292,PAMELA LONG,Sep,30,2013,Hourly Wages,NAT'L SCIENCE FOUNDATION,$460.00
48,J.F. Drake State,90006293,KATHERINE MARIE LONGMORE,Sep,30,2013,Hourly Wages,,$600.00
48,J.F. Drake State,90006294,VALERIE E LOTZ,Sep,30,2013,Instructional Salaries - Tempo,ADULT ED,$810.00
48,J.F. Drake State,90006294,VALERIE E LOTZ,Sep,30,2013,In-State Travel,,$108.00
48,J.F. Drake State,90006295,MICHEAL V MAXTON,Sep,30,2013,Instructional Salaries - Tempo,UNRESTRICTED,$675.00
48,J.F. Drake State,90006296,HELEN T MCALPINE,Sep,30,2013,Administrative Salaries- Sched,UNRESTRICTED,"$14,266.42"
48,J.F. Drake State,90006296,HELEN T MCALPINE,Sep,30,2013,President's Expense Allowance,UNRESTRICTED,$200.00
48,J.F. Drake State,90006296,HELEN T MCALPINE,Sep,30,2013,Housing Allowance,UNRESTRICTED,"$1,000.00"
48,J.F. Drake State,90006298,DEMETIUS L MCCARTY,Sep,30,2013,Support Personnel Salaries - S,UNRESTRICTED,"$2,262.08"
48,J.F. Drake State,90006300,JERRY L MCCAULLEY,Sep,30,2013,Instructional Salaries - Tempo,UNRESTRICTED,"$1,350.00"
48,J.F. Drake State,90006301,DARVIN D MCDANIEL,Sep,30,2013,Instructional Salaries - Tempo,UNRESTRICTED,"$1,912.50"
48,J.F. Drake State,90006302,SCOTTY MCLAUGHLIN,Sep,30,2013,Instructional Salaries - Tempo,UNRESTRICTED,$112.50
48,J.F. Drake State,90006302,SCOTTY MCLAUGHLIN,Sep,30,2013,Instructional Salaries - Regul,UNRESTRICTED,"$7,401.89"
48,J.F. Drake State,90006303,MARIA YVETTE MEADOR,Sep,30,2013,Support Personnel Salaries - S,STUDENT SUPPORT SERVICES,"$2,633.83"
48,J.F. Drake State,90006304,DEBORAH A MILLING,Sep,30,2013,Instructional Salaries - Regul,UNRESTRICTED,"$5,451.42"
48,J.F. Drake State,90006305,JOHN W MILLING,Sep,30,2013,Instructional Salaries - Tempo,UNRESTRICTED,$337.50
48,J.F. Drake State,90006306,SAMMY J MILTON,Sep,30,2013,Support Personnel Salaries - S,UNRESTRICTED,"$3,452.83"
48,J.F. Drake State,90006307,ACOLEA J MOORE,Sep,30,2013,Instructional Salaries - Tempo,UNRESTRICTED,$675.00
48,J.F. Drake State,90006308,MICHAEL M MORRIS,Sep,30,2013,Instructional Salaries - Tempo,,$570.00
48,J.F. Drake State,90006309,BRUCE D MORRISON,Sep,30,2013,Support Personnel Salaries - S,UNRESTRICTED,"$4,196.17"
48,J.F. Drake State,90006310,JENNIFER O'LINGER,Sep,30,2013,Other Professional Salaries -,UNRESTRICTED,"$6,159.00"
48,J.F. Drake State,90006311,AKUA K OPOKU-BOATENG,Sep,30,2013,Support Personnel Salaries - S,,"$1,279.67"
48,J.F. Drake State,90006311,AKUA K OPOKU-BOATENG,Sep,30,2013,Support Personnel Salaries - S,CAREER COACHES,"$1,279.67"
48,J.F. Drake State,90006312,DONALD ORR,Sep,30,2013,Support Personnel Salaries - S,UNRESTRICTED,"$3,824.67"
48,J.F. Drake State,90006313,VALARIE L OWENS,Sep,30,2013,Support Personnel Salaries - S,STUDENT SUPPORT SERVICES,"$2,262.08"
48,J.F. Drake State,90006314,TINA HARDIN PATTON,Sep,30,2013,Support Personnel Salaries - S,UNRESTRICTED,"$1,461.57"
48,J.F. Drake State,90006315,JERROLD DION PHIPPS,Sep,30,2013,Instructional Salaries - Tempo,UNRESTRICTED,"$1,575.00"
48,J.F. Drake State,90006316,MARK PAUL PILOTTE,Sep,30,2013,Instructional Salaries - Tempo,UNRESTRICTED,"$1,012.50"
48,J.F. Drake State,90006317,JAMES W PLEASURE,Sep,30,2013,Hourly Wages,,$930.00
48,J.F. Drake State,90006318,GWENDOLYN D POPE,Sep,30,2013,Instructional Salaries - Tempo,UNRESTRICTED,$675.00
48,J.F. Drake State,90006318,GWENDOLYN D POPE,Sep,30,2013,Instructional Salaries - Regul,UNRESTRICTED,"$5,651.75"
48,J.F. Drake State,90006319,SHAHLA POURSAIED,Sep,30,2013,Instructional Salaries - Tempo,UNRESTRICTED,"$1,207.50"
48,J.F. Drake State,90006320,MICHAEL RADDEN,Sep,30,2013,Instructional Salaries - Tempo,UNRESTRICTED,$337.50
48,J.F. Drake State,90006321,ALICE G RAYMOND,Sep,30,2013,Other Professional Salaries -,,"$8,233.58"
48,J.F. Drake State,90006322,JOYCE L RENTZ,Sep,30,2013,Other Professional Salaries -,UNRESTRICTED,"$8,503.50"
48,J.F. Drake State,90006323,JOHN REUTTER III,Sep,30,2013,Other Professional Salaries -,,"$7,053.24"
48,J.F. Drake State,90006324,LYSCELLE M REYES,Sep,30,2013,Instructional Salaries - Tempo,UNRESTRICTED,$900.00
48,J.F. Drake State,90006324,LYSCELLE M REYES,Sep,30,2013,Hourly Wages,,$960.00
48,J.F. Drake State,90006325,BILL E RICE,Sep,30,2013,Instructional Salaries - Tempo,UNRESTRICTED,"$1,012.50"
48,J.F. Drake State,90006326,ROXANNE D RICHARDSON,Sep,30,2013,Support Personnel Salaries - S,UNRESTRICTED,"$3,079.83"
48,J.F. Drake State,90006327,BEVERLY NICOLE RICKS-CULB,Sep,30,2013,Hourly Wages,,$470.00
48,J.F. Drake State,90006328,JAMES T ROBERTS,Sep,30,2013,Instructional Salaries - Tempo,,"$3,240.00"
48,J.F. Drake State,90006329,RALPH W ROBERTS,Sep,30,2013,Instructional Salaries - Tempo,UNRESTRICTED,"$1,575.00"
48,J.F. Drake State,90006330,WENDY L ROBERTS,Sep,30,2013,Other Professional Salaries -,ADULT ED,"$3,750.00"
48,J.F. Drake State,90006330,WENDY L ROBERTS,Sep,30,2013,Employee Taxable Per Diem,ADULT ED,$30.00
48,J.F. Drake State,90006331,ERIC SCOTT RODGERS,Sep,30,2013,Hourly Wages,,$390.00
48,J.F. Drake State,90006332,CHARLOTTE F SCHRIMSHER,Sep,30,2013,Support Personnel Salaries - S,UNRESTRICTED,"$1,849.86"
48,J.F. Drake State,90006333,LAODECEA T SEAY,Sep,30,2013,Support Personnel Salaries - S,UNRESTRICTED,"$3,452.08"
48,J.F. Drake State,90006333,LAODECEA T SEAY,Sep,30,2013,Employee Taxable Per Diem,,$33.75
48,J.F. Drake State,90006335,JACQUELINE M SHIVERS,Sep,30,2013,Instructional Salaries - Tempo,ADULT ED,"$2,137.50"
48,J.F. Drake State,90006335,JACQUELINE M SHIVERS,Sep,30,2013,In-State Travel,,$150.00
48,J.F. Drake State,90006336,LESLEY SHOTTS,Sep,30,2013,Instructional Salaries - Tempo,,"$4,750.00"
48,J.F. Drake State,90006338,AMANDA R SIMPSON,Sep,30,2013,Support Personnel Salaries - S,UNRESTRICTED,"$2,352.00"
48,J.F. Drake State,90006339,PATRICIA GORDON SIMS,Sep,30,2013,Administrative Salaries- Sched,UNRESTRICTED,"$9,245.09"
48,J.F. Drake State,90006340,BHESHAM JERRY SINGH,Sep,30,2013,Hourly Wages,,"$2,170.08"
48,J.F. Drake State,90006341,DELORIS A SMOTHERS,Sep,30,2013,Instructional Salaries - Tempo,UNRESTRICTED,$675.00
48,J.F. Drake State,90006341,DELORIS A SMOTHERS,Sep,30,2013,Instructional Salaries - Regul,UNRESTRICTED,"$7,261.67"
48,J.F. Drake State,90006342,JULIE P SPURGEON,Sep,30,2013,Support Personnel Salaries - S,UNRESTRICTED,"$3,377.67"
48,J.F. Drake State,90006343,STEPHANY L STEINFAITH,Sep,30,2013,Instructional Salaries - Tempo,UNRESTRICTED,$337.50
48,J.F. Drake State,90006344,JASON M STEPHENS,Sep,30,2013,Hourly Wages,STUDENT SUPPORT SERVICES,"$1,207.50"
48,J.F. Drake State,90006345,JON D STEPHENSON,Sep,30,2013,Support Personnel Salaries - S,,"$2,137.38"
48,J.F. Drake State,90006345,JON D STEPHENSON,Sep,30,2013,Support Personnel Salaries - S,CAREER COACHES,"$1,255.29"
48,J.F. Drake State,90006346,VERLINDSEY B STEWART,Sep,30,2013,Instructional Salaries - Regul,UNRESTRICTED,"$7,001.89"
48,J.F. Drake State,90006346,VERLINDSEY B STEWART,Sep,30,2013,Instructional Salaries - Tempo,UNRESTRICTED,$817.50
48,J.F. Drake State,90006347,MONICA SUDEALL-HAWKINS,Sep,30,2013,Instructional Salaries - Tempo,UNRESTRICTED,$337.50
48,J.F. Drake State,90006348,CHARLES A SULLINS JR,Sep,30,2013,Instructional Salaries - Tempo,UNRESTRICTED,$337.50
48,J.F. Drake State,90006349,KIMBERLY DEE SULLIVAN,Sep,30,2013,Hourly Wages,,$590.00
48,J.F. Drake State,90006350,SHANNON SUMMERS,Sep,30,2013,Instructional Salaries - Tempo,ADULT ED,$875.00
48,J.F. Drake State,90006351,NATHAN W TATE JR,Sep,30,2013,Hourly Wages,,$360.00
48,J.F. Drake State,90006352,DOCQUINN N TAYLOR,Sep,30,2013,Instructional Salaries - Regul,UNRESTRICTED,"$4,934.33"
48,J.F. Drake State,90006353,MALCOLM G TAYLOR,Sep,30,2013,Instructional Salaries - Tempo,UNRESTRICTED,"$1,012.50"
48,J.F. Drake State,90006354,FORREST BRYANT TEAGUE,Sep,30,2013,Instructional Salaries - Tempo,UNRESTRICTED,"$5,547.11"
48,J.F. Drake State,90006355,DAWN G THOMAS,Sep,30,2013,Hourly Wages,,$550.00
48,J.F. Drake State,90006356,HUGH L THOMPSON JR,Sep,30,2013,Instructional Salaries - Tempo,UNRESTRICTED,"$1,462.50"
48,J.F. Drake State,90006357,YOLANDA R TONEY,Sep,30,2013,Instructional Salaries - Tempo,UNRESTRICTED,"$1,012.50"
48,J.F. Drake State,90006358,JOY D TORNQUIST,Sep,30,2013,Instructional Salaries - Tempo,UNRESTRICTED,"$2,820.00"
48,J.F. Drake State,90006359,KRISTIN TREADWAY,Sep,30,2013,Support Personnel Salaries - S,,"$3,005.67"
48,J.F. Drake State,90006359,KRISTIN TREADWAY,Sep,30,2013,Employee Taxable Per Diem,,$33.75
48,J.F. Drake State,90006360,ELIZABETH A TUGGLE,Sep,30,2013,Instructional Salaries - Tempo,ADULT ED,"$1,339.00"
48,J.F. Drake State,90006360,ELIZABETH A TUGGLE,Sep,30,2013,In-State Travel,,$156.00
48,J.F. Drake State,90006361,GILBERT T TURLEY,Sep,30,2013,Other Professional Salaries -,UNRESTRICTED,"$6,886.58"
48,J.F. Drake State,90006362,LARRY CHARLES TURNER,Sep,30,2013,Hourly Wages,,$900.00
48,J.F. Drake State,90006363,KAROL C WADDELL,Sep,30,2013,Hourly Wages,READY TO WORK,"$2,850.00"
48,J.F. Drake State,90006364,PAULA M WADE,Sep,30,2013,Hourly Wages,STUDENT SUPPORT SERVICES,$393.75
48,J.F. Drake State,90006365,ANITA G WALKER,Sep,30,2013,Hourly Wages,,"$1,800.00"
48,J.F. Drake State,90006366,LETITIA E WALKER,Sep,30,2013,Support Personnel Salaries - S,UNRESTRICTED,"$3,229.42"
48,J.F. Drake State,90006367,DEVONA WARNER,Sep,30,2013,Hourly Wages,,$690.00
48,J.F. Drake State,90006368,BETH S WESTER,Sep,30,2013,Other Professional Salaries -,,"$6,013.50"
48,J.F. Drake State,90006369,DWAYNIA WILKERSON,Sep,30,2013,Instructional Salaries - Tempo,UNRESTRICTED,$675.00
48,J.F. Drake State,90006370,CALANDRA S WILLIAMS,Sep,30,2013,Instructional Salaries - Tempo,ADULT ED,$644.00
48,J.F. Drake State,90006371,DAYMETRIE D WILLIAMS,Sep,30,2013,Hourly Wages,,$750.00
48,J.F. Drake State,90006372,KELLY L WILLIAMS,Sep,30,2013,Instructional Salaries - Tempo,UNRESTRICTED,"$1,350.00"
48,J.F. Drake State,90006373,TANESHA MICHELLE WILLIAMS,Sep,30,2013,Hourly Wages,,$535.00
48,J.F. Drake State,90006374,TRACEY L WILSON,Sep,30,2013,Instructional Salaries - Tempo,UNRESTRICTED,$900.00
48,J.F. Drake State,90006375,BRANDI G WINCHESTER,Sep,30,2013,Instructional Salaries - Regul,UNRESTRICTED,"$3,729.00"
48,J.F. Drake State,90006375,BRANDI G WINCHESTER,Sep,30,2013,Instructional Salaries - Tempo,UNRESTRICTED,$675.00
48,J.F. Drake State,90006376,GEORGE R WINN,Sep,30,2013,Instructional Salaries - Regul,UNRESTRICTED,"$5,823.89"
48,J.F. Drake State,90006376,GEORGE R WINN,Sep,30,2013,Instructional Salaries - Tempo,UNRESTRICTED,$337.50
48,J.F. Drake State,90006377,CHARLES R WINTER,Sep,30,2013,Support Personnel Salaries - S,UNRESTRICTED,"$1,889.83"
48,J.F. Drake State,90006378,DELESHIA D YOUNG,Sep,30,2013,Support Personnel Salaries - S,UNRESTRICTED,"$3,154.25"
48,J.F. Drake State,90006379,TARA L YOUNG,Sep,30,2013,Instructional Salaries - Tempo,UNRESTRICTED,$337.50
48,J.F. Drake State,302683,CHRISTINE H DAVIS,Sep,30,2013,Instructional Salaries - Regul,UNRESTRICTED,"$3,361.73"
48,J.F. Drake State,302684,DENISE CLEOSHI GAYMON,Sep,30,2013,Other Staff Benefits,,$210.11
48,J.F. Drake State,302685,ZELDA M AZOR,Sep,30,2013,Instructional Salaries - Tempo,UNRESTRICTED,$430.00
48,J.F. Drake State,302686,ZELDA M AZOR,Sep,30,2013,Instructional Salaries - Tempo,UNRESTRICTED,$193.50
48,J.F. Drake State,302687,ISSAC D HINES,Sep,30,2013,Instructional Salaries - Tempo,UNRESTRICTED,$141.75
48,J.F. Drake State,91360,AT&T,Sep,27,2013,Communications,UNRESTRICTED,$331.90
48,J.F. Drake State,91361,HUNTSVILLE UTILITIES,Sep,27,2013,Electricity,ARMY GRANT,"$2,344.98"
48,J.F. Drake State,91361,HUNTSVILLE UTILITIES,Sep,27,2013,Gas and Heating Fuel,ARMY GRANT,$7.00
48,J.F. Drake State,91361,HUNTSVILLE UTILITIES,Sep,27,2013,Water and Sewer,UNRESTRICTED,$6.59
48,J.F. Drake State,91362,WEX BANK,Sep,27,2013,Gasoline and Oil - Motor Vehic,UNRESTRICTED,$275.77
48,J.F. Drake State,91363,WOW! BUSINESS,Sep,27,2013,Communications,UNRESTRICTED,"$1,008.21"
48,J.F. Drake State,91364,HUNTSVILLE UTILITIES,Sep,27,2013,Water and Sewer,UNRESTRICTED,$435.94
48,J.F. Drake State,210491,CEDRIC ARRINGTON,Sep,27,2013,In-State Travel,,$225.00
48,J.F. Drake State,210492,ENTERPRISE RENT-A-CAR,Sep,27,2013,Out-of-State Travel,,$328.52
48,J.F. Drake State,210493,MICHIGAN TECH UNIVERSITY,Sep,27,2013,Institutional Use,,"$7,969.13"
48,J.F. Drake State,210494,MICHIGAN TECH UNIVERSITY,Sep,27,2013,Institutional Use,,"$16,500.42"
48,J.F. Drake State,210495,PENSACOLA STATE COLLEGE,Sep,27,2013,Other Contractual Services,,"$3,600.00"
48,J.F. Drake State,210496,"SIMS, PATRICIA G.",Sep,27,2013,In-State Travel,,$150.00
48,J.F. Drake State,210497,JULIE SPURGEON,Sep,27,2013,In-State Travel,,$134.44
48,J.F. Drake State,107558,"LANIER,FORD,SHAVER &",Sep,27,2013,Legal Services,UNRESTRICTED,"$1,856.00"
48,J.F. Drake State,210488,ACCSISA                .,Sep,26,2013,In-State Travel,,$300.00
48,J.F. Drake State,210489,MOTION INDUSTRIES,Sep,26,2013,Materials and Supplies,,$69.85
48,J.F. Drake State,210490,PAPERCLIP COMMUNICATIONS,Sep,26,2013,Materials and Supplies,,$289.00
48,J.F. Drake State,107551,BANKS INDUSTRIES INC.,Sep,26,2013,Materials and Supplies,UNRESTRICTED,"$2,643.45"
48,J.F. Drake State,107552,DEPT OF FINANCE,Sep,26,2013,Communications,UNRESTRICTED,$45.78
48,J.F. Drake State,107553,"DYNAMIC SECURITY, INC.",Sep,26,2013,Other Contractual Services,UNRESTRICTED,"$4,082.40"
48,J.F. Drake State,107554,GRAINGER,Sep,26,2013,Materials and Supplies,,$406.13
48,J.F. Drake State,107555,"MOBILE MINI, INC",Sep,26,2013,Materials and Supplies,UNRESTRICTED,$345.03
48,J.F. Drake State,107556,WASTE MANAGEMENT OF NORTH,Sep,26,2013,Other Contractual Services,UNRESTRICTED,$350.00
48,J.F. Drake State,107542,"ALLIANT DATA SYSTEM,INC",Sep,25,2013,Other Contractual Services,UNRESTRICTED,"$16,405.25"
48,J.F. Drake State,107543,CDW-G,Sep,25,2013,Computer Software,UNRESTRICTED,"$3,289.50"
48,J.F. Drake State,107544,DENISE GAYMON,Sep,25,2013,Materials and Supplies,UNRESTRICTED,$100.00
48,J.F. Drake State,107545,DENISE GAYMON,Sep,25,2013,Materials and Supplies,UNRESTRICTED,$100.00
48,J.F. Drake State,107546,MIDWEST LIBRARY SERVICE,Sep,25,2013,Books,UNRESTRICTED,$137.07
48,J.F. Drake State,107547,PAPERCLIP COMMUNICATIONS,Sep,25,2013,Institutional Use,ADULT ED,$296.00
48,J.F. Drake State,107548,SIGNS BY TOMORROW,Sep,25,2013,Materials and Supplies,UNRESTRICTED,$971.00
48,J.F. Drake State,107549,"Y&S PAVING, INC.",Sep,25,2013,Buildings and Fixed Equipment,PLANT FUNDS,"$3,628.00"
48,J.F. Drake State,107550,4IMPRINT,Sep,25,2013,Advertising and Promotions,UNRESTRICTED,"$2,172.23"
48,J.F. Drake State,210481,MIDWEST LIBRARY SERVICE,Sep,25,2013,Books,,"$4,175.88"
48,J.F. Drake State,210482,"NOEL-LEVITZ, INC",Sep,25,2013,Other Contractual Services,,"$1,199.63"
48,J.F. Drake State,210483,STAPLES BUS ADVANTAGE,Sep,25,2013,Materials and Supplies,,"$2,328.39"
48,J.F. Drake State,210484,TUSCALOOSA LIBRARY BINDER,Sep,25,2013,Materials and Supplies,,$427.65
48,J.F. Drake State,210461,AIR CONDITIONING CONTRACT,Sep,24,2013,Audiovisuals,,"$1,464.90"
48,J.F. Drake State,210462,AKUA OPOKU BOATENG,Sep,24,2013,In-State Travel,,$401.53
48,J.F. Drake State,210463,ARMSTRONG MEDICAL INDUSTR,Sep,24,2013,Materials and Supplies,,$98.67
48,J.F. Drake State,210464,CAE HEALTHCARE INC,Sep,24,2013,Service Contracts on Equipment,,"$18,235.00"
48,J.F. Drake State,210465,C.A.R.D.,Sep,24,2013,Memberships,,$100.00
48,J.F. Drake State,210466,CDW-G,Sep,24,2013,Materials and Supplies,,$74.99
48,J.F. Drake State,210467,HOMEWOOD SUITES,Sep,24,2013,Out-of-State Travel,,$516.00
48,J.F. Drake State,210468,JOY DUKEMINEER,Sep,24,2013,In-State Travel,,$88.71
48,J.F. Drake State,210469,LAERDAL,Sep,24,2013,Materials and Supplies,,$247.69
48,J.F. Drake State,210470,LIBRARY VIDEO CO,Sep,24,2013,Audiovisuals,,$596.87
48,J.F. Drake State,210471,LOWE'S,Sep,24,2013,Materials and Supplies,,$57.26
48,J.F. Drake State,210472,"OFFICE DEPOT, INC.",Sep,24,2013,Materials and Supplies,,"$1,391.11"
48,J.F. Drake State,210473,POCKET NURSE,Sep,24,2013,Materials and Supplies,,$106.56
48,J.F. Drake State,210473,POCKET NURSE,Sep,24,2013,Institutional Use,,"$2,947.95"
48,J.F. Drake State,210474,PODS STORAGE,Sep,24,2013,Other Contractual Services,,$159.00
48,J.F. Drake State,210475,PROFESSIONAL SALES,Sep,24,2013,Materials and Supplies,,$168.00
48,J.F. Drake State,210476,DR. JOHN REUTTER,Sep,24,2013,In-State Travel,,$150.00
48,J.F. Drake State,210477,RONALD EGSON,Sep,24,2013,Out-of-State Travel,,$196.61
48,J.F. Drake State,210478,SARGENT-WELCH,Sep,24,2013,Materials and Supplies,,$0.00
48,J.F. Drake State,210479,SEXTON WELDING SUPPLY,Sep,24,2013,Materials and Supplies,,$650.00
48,J.F. Drake State,210480,UNIVERSITY OF NEW MEXICO,Sep,24,2013,Institutional Use,,"$9,056.43"
48,J.F. Drake State,107530,CENGAGE LEARNING,Sep,24,2013,Materials and Supplies,,"$2,511.34"
48,J.F. Drake State,107531,"DEAN PLUMBING, INC.",Sep,24,2013,Maintenance and Repairs,UNRESTRICTED,$417.11
48,J.F. Drake State,107532,"DYNAMIC SECURITY, INC.",Sep,24,2013,Other Contractual Services,UNRESTRICTED,"$8,164.80"
48,J.F. Drake State,107533,ENTERPRISE RENT-A-CAR,Sep,24,2013,In-State Travel,UNRESTRICTED,$166.77
48,J.F. Drake State,107534,GRAYBAR,Sep,24,2013,Materials and Supplies,UNRESTRICTED,$570.15
48,J.F. Drake State,107535,LOWE'S,Sep,24,2013,Materials and Supplies,,"$2,735.85"
48,J.F. Drake State,107536,LOWE'S,Sep,24,2013,Materials and Supplies,,"$3,600.00"
48,J.F. Drake State,107537,"MCALPINE, HELEN",Sep,24,2013,Employee Taxable Per Diem,UNRESTRICTED,$486.03
48,J.F. Drake State,107538,PROFESSIONAL SALES CO,Sep,24,2013,Materials and Supplies,,"$4,502.00"
48,J.F. Drake State,107539,RANDALL A SCHRIMSHER,Sep,24,2013,Rent - Facilities,UNRESTRICTED,"$6,475.00"
48,J.F. Drake State,107540,SEXTON WELDING SUPPLY,Sep,24,2013,Institutional Use,PLANT FUNDS,"$5,222.64"
48,J.F. Drake State,107541,SOUTHEASTERN TEMPERATURE,Sep,24,2013,Maintenance and Repairs,PLANT FUNDS,"$1,060.00"
48,J.F. Drake State,210451,"OFFICE DEPOT, INC.",Sep,19,2013,Materials and Supplies,,"$4,531.24"
48,J.F. Drake State,210452,SARGENT-WELCH,Sep,19,2013,Materials and Supplies,,"$3,500.31"
48,J.F. Drake State,210453,SEXTON WELDING SUPPLY,Sep,19,2013,Materials and Supplies,,"$16,778.41"
48,J.F. Drake State,210454,SEXTON WELDING SUPPLY,Sep,19,2013,Materials and Supplies,,"$1,886.40"
48,J.F. Drake State,210455,SEXTON WELDING SUPPLY,Sep,19,2013,Materials and Supplies,,"$4,814.18"
48,J.F. Drake State,210456,STAPLES BUS ADVANTAGE,Sep,19,2013,Materials and Supplies,STUDENT SUPPORT SERVICES,$966.36
48,J.F. Drake State,210457,STARFISH RETENTION SOLUTI,Sep,19,2013,Computer Software,,"$45,100.00"
48,J.F. Drake State,210458,SURVEYMONKEY.COM LLC,Sep,19,2013,Other Contractual Services,,$300.00
48,J.F. Drake State,107451,AT&T,Sep,19,2013,Communications,UNRESTRICTED,"$1,019.94"
48,J.F. Drake State,107452,"BURMAX, INC.",Sep,19,2013,Materials and Supplies,UNRESTRICTED,$431.55
48,J.F. Drake State,107452,"BURMAX, INC.",Sep,19,2013,Purchases for Resale,UNRESTRICTED,$430.82
48,J.F. Drake State,107453,CDW-G,Sep,19,2013,Computer Software,UNRESTRICTED,"$7,910.85"
48,J.F. Drake State,107454,"DYNAMIC SECURITY, INC.",Sep,19,2013,Other Contractual Services,UNRESTRICTED,"$12,539.05"
48,J.F. Drake State,107455,FEDEX,Sep,19,2013,Freight,UNRESTRICTED,$98.72
48,J.F. Drake State,107456,GAIL FISCH,Sep,19,2013,In-State Travel,,$80.23
48,J.F. Drake State,107457,GLIDDEN PROFESSIONAL PAI,Sep,19,2013,Materials and Supplies,UNRESTRICTED,$69.38
48,J.F. Drake State,107458,GRAINGER,Sep,19,2013,Materials and Supplies,UNRESTRICTED,$360.88
48,J.F. Drake State,107458,GRAINGER,Sep,19,2013,Materials and Supplies,,$406.13
48,J.F. Drake State,107459,HERRING WARREN,Sep,19,2013,In-State Travel,,$80.23
48,J.F. Drake State,107460,LOOMIS,Sep,19,2013,Other Contractual Services,UNRESTRICTED,$142.92
48,J.F. Drake State,107461,"OFFICE DEPOT, INC.",Sep,19,2013,Institutional Use,ADULT ED,$109.99
48,J.F. Drake State,107462,OVERHEAD DOOR,Sep,19,2013,Maintenance and Repairs,UNRESTRICTED,"$2,221.00"
48,J.F. Drake State,107463,PPG ARCHITECTURAL COATING,Sep,19,2013,Materials and Supplies,ARMY GRANT,$51.32
48,J.F. Drake State,107464,QUICK SOURCE LEARNING,Sep,19,2013,Materials and Supplies,UNRESTRICTED,$392.43
48,J.F. Drake State,107465,SAFELITE AUTO GLASS,Sep,19,2013,Maintenance and Repairs,UNRESTRICTED,$226.89
48,J.F. Drake State,107466,SCREENVISION,Sep,19,2013,Advertising and Promotions,UNRESTRICTED,$992.00
48,J.F. Drake State,107467,SEXTON WELDING SUPPLY,Sep,19,2013,Materials and Supplies,UNRESTRICTED,"$3,435.18"
48,J.F. Drake State,107468,STAPLES BUS ADVANTAGE,Sep,19,2013,Materials and Supplies,UNRESTRICTED,$155.97
48,J.F. Drake State,107469,SUCCESS MARKETING,Sep,19,2013,Advertising and Promotions,UNRESTRICTED,$940.00
48,J.F. Drake State,107470,"THE SOLUTIONS TEAM, INC",Sep,19,2013,Other Contractual Services,UNRESTRICTED,$200.00
48,J.F. Drake State,107471,"WOODY ANDERSON FORD, INC.",Sep,19,2013,Maintenance and Repairs,UNRESTRICTED,$45.86
48,J.F. Drake State,182013,CHASE,Sep,17,2013,Materials and Supplies,UNRESTRICTED,$101.82
48,J.F. Drake State,182013,CHASE,Sep,17,2013,In-State Travel,UNRESTRICTED,$284.40
48,J.F. Drake State,282013,CHASE,Sep,17,2013,Institutional Use,,$165.00
48,J.F. Drake State,282013,CHASE,Sep,17,2013,Out-of-State Travel,,$534.54
48,J.F. Drake State,172013,CHASE,Sep,17,2013,Materials and Supplies,UNRESTRICTED,$218.00
48,J.F. Drake State,172013,CHASE,Sep,17,2013,Maintenance and Repairs,UNRESTRICTED,$401.65
48,J.F. Drake State,172013,CHASE,Sep,17,2013,Out-of-State Travel,UNRESTRICTED,-$194.22
48,J.F. Drake State,172013,CHASE,Sep,17,2013,Institutional Use,UNRESTRICTED,$219.00
48,J.F. Drake State,272013,CHASE,Sep,17,2013,Materials and Supplies,,$463.42
48,J.F. Drake State,272013,CHASE,Sep,17,2013,Out-of-State Travel,,$436.00
48,J.F. Drake State,262013,CHASE,Sep,17,2013,Out-of-State Travel,,"$3,072.90"
48,J.F. Drake State,262013,CHASE,Sep,17,2013,In-State Travel,,"$1,034.00"
48,J.F. Drake State,71013,AMERICAN EXPRESS,Sep,16,2013,Out-of-State Travel,,$633.60
48,J.F. Drake State,142013,CHASE,Sep,16,2013,Out-of-State Travel,UNRESTRICTED,"$1,338.71"
48,J.F. Drake State,142014,CHASE,Sep,16,2013,Materials and Supplies,UNRESTRICTED,$424.04
48,J.F. Drake State,242013,CHASE,Sep,16,2013,Out-of-State Travel,,$314.14
48,J.F. Drake State,107436,ACCA,Sep,13,2013,Memberships,UNRESTRICTED,"$1,000.00"
48,J.F. Drake State,107437,ACT,Sep,13,2013,Materials and Supplies,UNRESTRICTED,"$1,270.00"
48,J.F. Drake State,107438,AT&T,Sep,13,2013,Communications,UNRESTRICTED,$112.49
48,J.F. Drake State,107439,CAMBRIDGE UNIVERSITY PRES,Sep,13,2013,Materials and Supplies,ADULT ED,$20.80
48,J.F. Drake State,107440,CDW-G,Sep,13,2013,Technology - Capitalized,UNRESTRICTED,"$13,781.92"
48,J.F. Drake State,107440,CDW-G,Sep,13,2013,Institutional Use,UNRESTRICTED,-$70.50
48,J.F. Drake State,107441,DEIONE CRUTCHER,Sep,13,2013,In-State Travel,,$80.23
48,J.F. Drake State,107442,DENISE GAYMON,Sep,13,2013,Materials and Supplies,UNRESTRICTED,$200.00
48,J.F. Drake State,107443,GRAINGER,Sep,13,2013,Materials and Supplies,,"$1,242.16"
48,J.F. Drake State,107444,JACQUELINE M SHIVERS,Sep,13,2013,In-State Travel,,$80.23
48,J.F. Drake State,107445,MINUTEMAN PRESS,Sep,13,2013,Other Contractual Services,UNRESTRICTED,$373.14
48,J.F. Drake State,107446,"OFFICE DEPOT, INC.",Sep,13,2013,Materials and Supplies,UNRESTRICTED,$605.99
48,J.F. Drake State,107447,THE ALABAMA LAWNMASTERS,Sep,13,2013,Other Contractual Services,UNRESTRICTED,"$2,395.00"
48,J.F. Drake State,107448,"TRUESCREEN, INC",Sep,13,2013,Other Contractual Services,UNRESTRICTED,$208.00
48,J.F. Drake State,107449,UAH,Sep,13,2013,Memberships,UNRESTRICTED,$150.00
48,J.F. Drake State,107450,WENDY ROBERTS,Sep,13,2013,In-State Travel,,$80.23
48,J.F. Drake State,210443,BAUDVILLE COMPUTER PRODUC,Sep,13,2013,Materials and Supplies,STUDENT SUPPORT SERVICES,"$5,126.40"
48,J.F. Drake State,210445,SYMMETRIS GOHANNA,Sep,13,2013,Out-of-State Travel,,$164.30
48,J.F. Drake State,210446,HD SUPPLY,Sep,13,2013,Materials and Supplies,,$380.06
48,J.F. Drake State,210447,JANPAK,Sep,13,2013,Materials and Supplies,,"$4,924.80"
48,J.F. Drake State,210448,JON STEPHENSON,Sep,13,2013,In-State Travel,,$318.37
48,J.F. Drake State,210449,MOORE MEDICAL CORP,Sep,13,2013,Materials and Supplies,,$497.30
48,J.F. Drake State,210450,"OFFICE DEPOT, INC.",Sep,13,2013,Materials and Supplies,,"$1,775.68"
48,J.F. Drake State,91348,AT&T,Sep,11,2013,Communications,UNRESTRICTED,"$1,926.14"
48,J.F. Drake State,91349,HUNTSVILLE UTILITIES,Sep,11,2013,Electricity,UNRESTRICTED,"$21,294.98"
48,J.F. Drake State,91349,HUNTSVILLE UTILITIES,Sep,11,2013,Water and Sewer,UNRESTRICTED,"$1,058.06"
48,J.F. Drake State,91349,HUNTSVILLE UTILITIES,Sep,11,2013,Gas and Heating Fuel,UNRESTRICTED,$327.00
48,J.F. Drake State,81348,AT&T,Sep,11,2013,Communications,UNRESTRICTED,$328.35
48,J.F. Drake State,81349,HUNTSVILLE UTILITIES,Sep,11,2013,Water and Sewer,UNRESTRICTED,"$1,293.02"
48,J.F. Drake State,21350,CHASE,Sep,11,2013,Out-of-State Travel,,"$1,772.54"
48,J.F. Drake State,21350,CHASE,Sep,11,2013,Materials and Supplies,,$91.61
48,J.F. Drake State,21351,AMERICAN EXPRESS,Sep,11,2013,Out-of-State Travel,,"$3,298.60"
48,J.F. Drake State,32813,AMERICAN EXPRESS,Sep,11,2013,Out-of-State Travel,UNRESTRICTED,"$1,751.80"
48,J.F. Drake State,51350,AMERICAN EXPRESS,Sep,11,2013,Out-of-State Travel,,"$5,444.40"
48,J.F. Drake State,51351,AMERICAN EXPRESS,Sep,11,2013,Out-of-State Travel,UNRESTRICTED,"$1,639.00"
48,J.F. Drake State,61350,AMERICAN EXPRESS,Sep,11,2013,Out-of-State Travel,UNRESTRICTED,"$4,108.00"
48,J.F. Drake State,61350,AMERICAN EXPRESS,Sep,11,2013,In-State Travel,UNRESTRICTED,$343.60
48,J.F. Drake State,61351,AMERICAN EXPRESS,Sep,11,2013,Out-of-State Travel,,$683.60
48,J.F. Drake State,61312,COOK'S PEST CONTROL,Sep,10,2013,Other Contractual Services,UNRESTRICTED,$70.00
48,J.F. Drake State,61313,PITNEY BOWES,Sep,10,2013,Postage,UNRESTRICTED,"$1,200.00"
48,J.F. Drake State,61314,WASTE MANAGEMENT OF NORTH,Sep,10,2013,Other Contractual Services,UNRESTRICTED,$322.41
48,J.F. Drake State,61315,WEX BANK,Sep,10,2013,Gasoline and Oil - Motor Vehic,UNRESTRICTED,$466.61
48,J.F. Drake State,81350,AT&T,Sep,10,2013,Communications,UNRESTRICTED,"$3,023.13"
48,J.F. Drake State,81351,COOK'S PEST CONTROL,Sep,10,2013,Other Contractual Services,UNRESTRICTED,$386.00
48,J.F. Drake State,81352,WEX BANK,Sep,10,2013,Gasoline and Oil - Motor Vehic,UNRESTRICTED,$745.94
48,J.F. Drake State,81355,EARTHLINK/DELTACOM,Sep,10,2013,Communications,UNRESTRICTED,"$5,737.33"
48,J.F. Drake State,81356,HUNTSVILLE UTILITIES,Sep,10,2013,Water and Sewer,UNRESTRICTED,$480.11
48,J.F. Drake State,81356,HUNTSVILLE UTILITIES,Sep,10,2013,Gas and Heating Fuel,ARMY GRANT,"$3,464.64"
48,J.F. Drake State,81357,WASTE MANAGEMENT OF NORTH,Sep,10,2013,Other Contractual Services,UNRESTRICTED,$792.34
48,J.F. Drake State,81358,WEX BANK,Sep,10,2013,Gasoline and Oil - Motor Vehic,UNRESTRICTED,$208.13
48,J.F. Drake State,81359,WOW! BUSINESS,Sep,10,2013,Communications,UNRESTRICTED,"$1,008.22"
48,J.F. Drake State,81361,AT&T,Sep,10,2013,Communications,UNRESTRICTED,"$1,894.45"
48,J.F. Drake State,81362,EARTHLINK/DELTACOM,Sep,10,2013,Communications,UNRESTRICTED,"$5,946.98"
48,J.F. Drake State,81363,HUNTSVILLE UTILITIES,Sep,10,2013,Electricity,ARMY GRANT,"$3,479.61"
48,J.F. Drake State,81363,HUNTSVILLE UTILITIES,Sep,10,2013,Gas and Heating Fuel,ARMY GRANT,$7.00
48,J.F. Drake State,81363,HUNTSVILLE UTILITIES,Sep,10,2013,Electricity,UNRESTRICTED,"$24,831.65"
48,J.F. Drake State,81363,HUNTSVILLE UTILITIES,Sep,10,2013,Water and Sewer,UNRESTRICTED,$638.00
48,J.F. Drake State,81363,HUNTSVILLE UTILITIES,Sep,10,2013,Gas and Heating Fuel,UNRESTRICTED,$351.30
48,J.F. Drake State,81364,PITNEY BOWES,Sep,10,2013,Postage,UNRESTRICTED,"$1,200.00"
48,J.F. Drake State,81365,WOW! BUSINESS,Sep,10,2013,Communications,UNRESTRICTED,"$1,114.38"
48,J.F. Drake State,91352,HUNTSVILLE UTILITIES,Sep,10,2013,Water and Sewer,UNRESTRICTED,"$2,351.08"
48,J.F. Drake State,91352,HUNTSVILLE UTILITIES,Sep,10,2013,Communications,UNRESTRICTED,"$2,254.49"
48,J.F. Drake State,91352,HUNTSVILLE UTILITIES,Sep,10,2013,Electricity,UNRESTRICTED,"$21,294.98"
48,J.F. Drake State,91352,HUNTSVILLE UTILITIES,Sep,10,2013,Gas and Heating Fuel,UNRESTRICTED,$327.00
48,J.F. Drake State,91353,EARTHLINK/DELTACOM,Sep,10,2013,Communications,UNRESTRICTED,"$5,720.83"
48,J.F. Drake State,91354,WOW! BUSINESS,Sep,10,2013,Communications,UNRESTRICTED,$106.16
48,J.F. Drake State,81366,AT&T,Sep,10,2013,Communications,UNRESTRICTED,"$2,254.49"
48,J.F. Drake State,61316,WASTE MANAGEMENT OF NORTH,Sep,10,2013,Other Contractual Services,UNRESTRICTED,$790.97
48,J.F. Drake State,61317,WOW! BUSINESS,Sep,10,2013,Communications,UNRESTRICTED,$105.80
48,J.F. Drake State,61320,AT&T,Sep,10,2013,Communications,UNRESTRICTED,$805.35
48,J.F. Drake State,71820,HUNTSVILLE UTILITIES,Sep,10,2013,Electricity,UNRESTRICTED,"$24,354.15"
48,J.F. Drake State,71820,HUNTSVILLE UTILITIES,Sep,10,2013,Gas and Heating Fuel,UNRESTRICTED,$446.86
48,J.F. Drake State,71820,HUNTSVILLE UTILITIES,Sep,10,2013,Water and Sewer,UNRESTRICTED,"$1,225.06"
48,J.F. Drake State,107428,ALABAMA CARD SYSTEMS,Sep,9,2013,Other Contractual Services,UNRESTRICTED,"$1,830.00"
48,J.F. Drake State,107429,CDW-G,Sep,9,2013,Computer Software,UNRESTRICTED,"$8,427.00"
48,J.F. Drake State,107429,CDW-G,Sep,9,2013,Institutional Use,UNRESTRICTED,"-$1,720.79"
48,J.F. Drake State,107430,CONDITIONED AIR SOLUTIONS,Sep,9,2013,Maintenance and Repairs,PLANT FUNDS,$310.00
48,J.F. Drake State,107430,CONDITIONED AIR SOLUTIONS,Sep,9,2013,Maintenance and Repairs,UNRESTRICTED,$160.00
48,J.F. Drake State,107431,FOREIGN LANGUAGE SERVICES,Sep,9,2013,Advertising and Promotions,UNRESTRICTED,$733.00
48,J.F. Drake State,107432,GIFTS OF HEALTH,Sep,9,2013,Purchases for Resale,UNRESTRICTED,$975.00
48,J.F. Drake State,107434,"OFFICE DEPOT, INC.",Sep,9,2013,Materials and Supplies,ADULT ED,"$1,567.50"
48,J.F. Drake State,107435,VERIZON WIRELESS,Sep,9,2013,Communications,UNRESTRICTED,"$1,836.00"
48,J.F. Drake State,210424,ALTMAN TRINA,Sep,9,2013,Out-of-State Travel,,$619.82
48,J.F. Drake State,210425,BERNEY OFFICE SOLUTIONS,Sep,9,2013,Service Contracts on Equipment,,"$1,537.85"
48,J.F. Drake State,210426,GAIL WALKER,Sep,9,2013,In-State Travel,,$158.76
48,J.F. Drake State,210427,LITTLEMACHINESHOP.COM,Sep,9,2013,Audiovisuals,,$312.42
48,J.F. Drake State,210428,"OFFICE DEPOT, INC.",Sep,9,2013,Materials and Supplies,,$799.16
48,J.F. Drake State,210429,"OFFICE DEPOT, INC.",Sep,9,2013,Materials and Supplies,,$27.78
48,J.F. Drake State,210430,PODS STORAGE,Sep,9,2013,Other Contractual Services,,$159.00
48,J.F. Drake State,210431,WESTER BETH,Sep,9,2013,In-State Travel,,$45.00
48,J.F. Drake State,107420,ALA COMMUNITY COLLEGE,Sep,5,2013,In-State Travel,UNRESTRICTED,$400.00
48,J.F. Drake State,107421,ALA. SUPERCOMPUTER FUND,Sep,5,2013,Other Contractual Services,UNRESTRICTED,"$4,383.00"
48,J.F. Drake State,107422,CENTER FOR APPLIED LINGUI,Sep,5,2013,Materials and Supplies,ADULT ED,$45.00
48,J.F. Drake State,107423,ELSEVIER/HESI,Sep,5,2013,Purchases for Resale,AUXILIARY,"$1,835.00"
48,J.F. Drake State,107424,GED TESTING PROGRAM,Sep,5,2013,Materials and Supplies,UNRESTRICTED,$142.00
48,J.F. Drake State,107425,MCGRAW HILL EDUCATION,Sep,5,2013,Materials and Supplies,ADULT ED,$521.85
48,J.F. Drake State,107426,"SIRIUS XM RADIO, INC",Sep,5,2013,Other Contractual Services,UNRESTRICTED,$507.34
48,J.F. Drake State,107427,TEBIN,Sep,5,2013,Memberships,UNRESTRICTED,$150.00
48,J.F. Drake State,210364,"ELLUCIAN CO,LP",Sep,4,2013,Construction in Progress,,"$64,516.73"
48,J.F. Drake State,210365,TIFFANY GREEN,Sep,4,2013,In-State Travel,,$179.67
48,J.F. Drake State,107392,AUTO-CHLOR SERVICES,Sep,4,2013,Materials and Supplies,UNRESTRICTED,$154.20
48,J.F. Drake State,107393,BANKS INDUSTRIES INC.,Sep,4,2013,Materials and Supplies,UNRESTRICTED,$426.42
48,J.F. Drake State,107394,MINUTEMAN PRESS,Sep,4,2013,Other Contractual Services,UNRESTRICTED,$282.11
48,J.F. Drake State,107395,NICOLE BARNETT,Sep,4,2013,Materials and Supplies,UNRESTRICTED,$96.76
48,J.F. Drake State,107396,PEARSON,Sep,4,2013,Materials and Supplies,,"$23,947.46"
48,J.F. Drake State,107397,PROGRESSIVE INS,Sep,4,2013,Insurance and Bonding,UNRESTRICTED,$892.00
48,J.F. Drake State,107398,SALSBURY IND,Sep,4,2013,Materials and Supplies,,"$1,259.21"
48,J.F. Drake State,107399,SYSCO CENTRAL ALABAMA,Sep,4,2013,Purchases for Resale,UNRESTRICTED,"$1,842.76"
48,J.F. Drake State,107379,ACT,Sep,3,2013,Materials and Supplies,UNRESTRICTED,$708.00
48,J.F. Drake State,107380,AT&T,Sep,3,2013,Communications,UNRESTRICTED,$498.21
48,J.F. Drake State,107381,BERNEY OFFICE SOLUTIONS,Sep,3,2013,Other Contractual Services,UNRESTRICTED,$403.59
48,J.F. Drake State,107382,CDW-G,Sep,3,2013,Institutional Use,UNRESTRICTED,"$19,362.79"
48,J.F. Drake State,107382,CDW-G,Sep,3,2013,Technology - Capitalized,UNRESTRICTED,$838.00
48,J.F. Drake State,107383,CHEVRON CARD SERVICES,Sep,3,2013,Gasoline and Oil - Motor Vehic,UNRESTRICTED,$232.39
48,J.F. Drake State,107384,"DYNAMIC SECURITY, INC.",Sep,3,2013,Other Contractual Services,UNRESTRICTED,"$4,082.40"
48,J.F. Drake State,107385,FEDEX,Sep,3,2013,Freight,UNRESTRICTED,$42.98
48,J.F. Drake State,107385,FEDEX,Sep,3,2013,Materials and Supplies,UNRESTRICTED,$21.59
48,J.F. Drake State,107386,"LANIER,FORD,SHAVER &",Sep,3,2013,Legal Services,UNRESTRICTED,$608.00
48,J.F. Drake State,107387,LOWE'S,Sep,3,2013,Materials and Supplies,,$297.50
48,J.F. Drake State,107387,LOWE'S,Sep,3,2013,Materials and Supplies,UNRESTRICTED,$281.88
48,J.F. Drake State,107388,MCGRAW HILL EDUCATION,Sep,3,2013,Materials and Supplies,ADULT ED,"$1,821.17"
48,J.F. Drake State,107389,"MOBILE MINI, INC",Sep,3,2013,Materials and Supplies,UNRESTRICTED,$345.03
48,J.F. Drake State,107390,PRESIDENTS ROUND TABLE,Sep,3,2013,Memberships,UNRESTRICTED,$750.00
48,J.F. Drake State,107391,WBCNA,Sep,3,2013,Advertising and Promotions,UNRESTRICTED,"$1,000.00"
48,J.F. Drake State,302679,MARIA YVETTE MEADOR,Aug,30,2013,Support Personnel Salaries - S,STUDENT SUPPORT SERVICES,"$2,559.37"
48,J.F. Drake State,302680,BHESHAM JERRY SINGH,Aug,30,2013,Hourly Wages,,$660.00
48,J.F. Drake State,90006017,DEMICA SHERMIR ALLISON,Aug,30,2013,Hourly Wages,,$600.00
48,J.F. Drake State,90006018,TRINA A ALTMAN,Aug,30,2013,Instructional Salaries - Regul,UNRESTRICTED,"$3,753.42"
48,J.F. Drake State,90006019,CEDRIC D ARRINGTON SR,Aug,30,2013,Other Professional Salaries -,UNRESTRICTED,"$6,450.08"
48,J.F. Drake State,90006020,KEVIN STEVEN ATCHLEY,Aug,30,2013,Hourly Wages,,$600.00
48,J.F. Drake State,90006021,LYSA AUGUSTIN,Aug,30,2013,Instructional Salaries - Tempo,ADULT ED,$418.00
48,J.F. Drake State,90006023,CAROLYN AVRITTE,Aug,30,2013,Instructional Salaries - Tempo,UNRESTRICTED,$270.00
48,J.F. Drake State,90006024,ZELDA M AZOR,Aug,30,2013,Instructional Salaries - Tempo,UNRESTRICTED,$960.00
48,J.F. Drake State,90006025,NELSON E BARNES,Aug,30,2013,Instructional Salaries - Tempo,UNRESTRICTED,$450.00
48,J.F. Drake State,90006026,NICOLE CLARESE BARNETT,Aug,30,2013,Other Professional Salaries -,,"$5,743.55"
48,J.F. Drake State,90006027,BEN BATTLE,Aug,30,2013,Instructional Salaries - Regul,UNRESTRICTED,"$5,198.34"
48,J.F. Drake State,90006028,ANGELA NICOLE BELL,Aug,30,2013,Instructional Salaries - Regul,UNRESTRICTED,"$5,147.00"
48,J.F. Drake State,90006030,PATRICE BIVINS,Aug,30,2013,Support Personnel Salaries - S,,"$2,484.00"
48,J.F. Drake State,90006031,BOEDVAR INGI BOEDVARSSON,Aug,30,2013,Hourly Wages,,$190.00
48,J.F. Drake State,90006032,CHERYL BRAWLEY-KELLY,Aug,30,2013,Instructional Salaries - Tempo,UNRESTRICTED,$640.00
48,J.F. Drake State,90006033,BRUCE A BULLUCK,Aug,30,2013,Other Professional Salaries -,UNRESTRICTED,"$6,450.12"
48,J.F. Drake State,90006034,KWAME OMARIO BURNETT,Aug,30,2013,Hourly Wages,,$480.00
48,J.F. Drake State,90006035,KHALILAH BURTON,Aug,30,2013,Instructional Salaries - Tempo,UNRESTRICTED,"$1,500.00"
48,J.F. Drake State,90006036,DERICK R CARPENAY,Aug,30,2013,Instructional Salaries - Tempo,UNRESTRICTED,$450.00
48,J.F. Drake State,90006037,KEMBA CHAMBERS,Aug,30,2013,Other Professional Salaries -,UNRESTRICTED,"$1,698.55"
48,J.F. Drake State,90006038,KATIE E CHANCE,Aug,30,2013,Support Personnel Salaries - S,UNRESTRICTED,"$3,452.12"
48,J.F. Drake State,90006039,ROGER CHEN,Aug,30,2013,Hourly Wages,,"$3,181.50"
48,J.F. Drake State,90006040,ADAM CLARK,Aug,30,2013,Instructional Salaries - Regul,UNRESTRICTED,"$4,847.00"
48,J.F. Drake State,90006041,TASKA S CLARK,Aug,30,2013,Support Personnel Salaries - S,UNRESTRICTED,"$2,262.12"
48,J.F. Drake State,90006043,CARLA R CLIFT,Aug,30,2013,Other Professional Salaries -,UNRESTRICTED,"$5,609.75"
48,J.F. Drake State,90006044,RICHARD COLLIE,Aug,30,2013,Other Professional Salaries -,STUDENT SUPPORT SERVICES,"$3,750.00"
48,J.F. Drake State,90006045,DARLENE COWAN,Aug,30,2013,Support Personnel Salaries - S,UNRESTRICTED,"$1,645.90"
48,J.F. Drake State,90006046,TOMACENIA CHANTRELL CROSB,Aug,30,2013,Hourly Wages,,$450.00
48,J.F. Drake State,90006047,TOMEKA CROSS,Aug,30,2013,Employee Taxable Per Diem,UNRESTRICTED,$11.25
48,J.F. Drake State,90006047,TOMEKA CROSS,Aug,30,2013,Support Personnel Salaries - S,UNRESTRICTED,"$2,187.37"
48,J.F. Drake State,90006048,DEIONE L CRUTCHER,Aug,30,2013,Hourly Wages,ADULT ED,"$1,042.50"
48,J.F. Drake State,90006049,CODY GLENN DAVIS,Aug,30,2013,Hourly Wages,,$300.00
48,J.F. Drake State,90006050,MATTIE D DAVIS,Aug,30,2013,Instructional Salaries - Regul,UNRESTRICTED,"$6,157.00"
48,J.F. Drake State,90006052,MARLO DRAKE,Aug,30,2013,Support Personnel Salaries - S,UNRESTRICTED,"$2,477.32"
48,J.F. Drake State,90006052,MARLO DRAKE,Aug,30,2013,Support Personnel Salaries - S,,$825.80
48,J.F. Drake State,90006054,ANTHONY H DRAPER,Aug,30,2013,Instructional Salaries - Tempo,UNRESTRICTED,$140.00
48,J.F. Drake State,90006055,AMELIA J DUKEMINEER,Aug,30,2013,Hourly Wages,,"$1,620.00"
48,J.F. Drake State,90006056,DARRELL J ECHOLS,Aug,30,2013,Instructional Salaries - Regul,UNRESTRICTED,"$4,232.34"
48,J.F. Drake State,90006058,RONALD E EGSON,Aug,30,2013,Instructional Salaries - Tempo,UNRESTRICTED,"$4,506.66"
48,J.F. Drake State,90006059,JAMES J EISNER,Aug,30,2013,Support Personnel Salaries - S,UNRESTRICTED,"$2,633.83"
48,J.F. Drake State,90006060,ROSELINE C ELIKE,Aug,30,2013,Instructional Salaries - Tempo,UNRESTRICTED,$840.00
48,J.F. Drake State,90006061,LESLEY-ANNE TOYO ENG,Aug,30,2013,Hourly Wages,UNRESTRICTED,"$1,690.00"
48,J.F. Drake State,90006062,TIMOTHY J FAIRCHILD,Aug,30,2013,Hourly Wages,,"$2,336.00"
48,J.F. Drake State,90006063,VICTORIA FARRAR LONG,Aug,30,2013,Support Personnel Salaries - S,UNRESTRICTED,"$2,262.12"
48,J.F. Drake State,90006064,GAIL E FISCH,Aug,30,2013,Instructional Salaries - Regul,ADULT ED,"$6,270.84"
48,J.F. Drake State,90006065,EDWIN T FORBES,Aug,30,2013,Instructional Salaries - Regul,UNRESTRICTED,"$9,085.62"
48,J.F. Drake State,90006066,AMY E FANNING,Aug,30,2013,Instructional Salaries - Tempo,UNRESTRICTED,$516.25
48,J.F. Drake State,90006067,HORACE L FRANKLIN JR,Aug,30,2013,Administrative Salaries- Sched,UNRESTRICTED,"$7,165.50"
48,J.F. Drake State,90006068,DAVID E FREEMAN,Aug,30,2013,Instructional Salaries - Tempo,UNRESTRICTED,$180.00
48,J.F. Drake State,90006069,YIBELI GALINDO-BAIRD,Aug,30,2013,Other Professional Salaries -,UNRESTRICTED,"$4,000.00"
48,J.F. Drake State,90006070,DENISE CLEOSHI GAYMON,Aug,30,2013,Other Professional Salaries -,,"$4,152.75"
48,J.F. Drake State,90006071,SYMMETRIS K GOHANNA,Aug,30,2013,Instructional Salaries - Regul,UNRESTRICTED,"$10,965.71"
48,J.F. Drake State,90006072,LARDELL GOODLOE JR,Aug,30,2013,Instructional Salaries - Tempo,,"$4,646.34"
48,J.F. Drake State,90006073,TIFFANY R GREEN,Aug,30,2013,Support Personnel Salaries - S,,"$3,303.17"
48,J.F. Drake State,90006074,TIMOTHY RYAN GREEN,Aug,30,2013,Instructional Salaries - Regul,UNRESTRICTED,"$3,818.00"
48,J.F. Drake State,90006074,TIMOTHY RYAN GREEN,Aug,30,2013,Instructional Salaries - Tempo,UNRESTRICTED,$300.00
48,J.F. Drake State,90006075,VICKIE E GREEN,Aug,30,2013,Instructional Salaries - Regul,,"$8,587.25"
48,J.F. Drake State,90006076,ROBERT N GRISSIM,Aug,30,2013,Instructional Salaries - Regul,UNRESTRICTED,"$3,646.13"
48,J.F. Drake State,90006077,CHARLES GROSS,Aug,30,2013,Instructional Salaries - Tempo,UNRESTRICTED,$450.00
48,J.F. Drake State,90006078,SAMUEL V GUISHARD,Aug,30,2013,Instructional Salaries - Tempo,UNRESTRICTED,"$1,500.00"
48,J.F. Drake State,90006079,MANELZA CRAWFORD HAMBRICK,Aug,30,2013,Support Personnel Salaries - S,UNRESTRICTED,"$2,485.38"
48,J.F. Drake State,90006080,ARCHIE LEE HAMLET,Aug,30,2013,Hourly Wages,UNRESTRICTED,$960.00
48,J.F. Drake State,90006081,SHELIA D HAMMON,Aug,30,2013,Instructional Salaries - Regul,UNRESTRICTED,"$5,023.00"
48,J.F. Drake State,90006082,AUNDREA D HANSON,Aug,30,2013,Instructional Salaries - Tempo,UNRESTRICTED,$450.00
48,J.F. Drake State,90006083,GEORGE VICTOR HARLOW III,Aug,30,2013,Hourly Wages,,$560.00
48,J.F. Drake State,90006084,KATRINA J HARRIS,Aug,30,2013,Support Personnel Salaries - S,UNRESTRICTED,$974.50
48,J.F. Drake State,90006084,KATRINA J HARRIS,Aug,30,2013,Support Personnel Salaries - S,,"$2,923.50"
48,J.F. Drake State,90006085,NEDA L HAULE,Aug,30,2013,Hourly Wages,,$847.50
48,J.F. Drake State,90006086,CAROLYN HENDERSON,Aug,30,2013,Instructional Salaries - Regul,UNRESTRICTED,"$9,085.62"
48,J.F. Drake State,90006087,DEXTER R HENRY,Aug,30,2013,Instructional Salaries - Regul,UNRESTRICTED,"$5,951.34"
48,J.F. Drake State,90006088,KARL W HENRY SR,Aug,30,2013,Instructional Salaries - Regul,UNRESTRICTED,"$5,237.66"
48,J.F. Drake State,90006089,ELBREY WARREN HERRING,Aug,30,2013,Instructional Salaries - Tempo,ADULT ED,$960.00
48,J.F. Drake State,90006090,ISSAC D HINES,Aug,30,2013,Instructional Salaries - Tempo,UNRESTRICTED,"$1,350.00"
48,J.F. Drake State,90006090,ISSAC D HINES,Aug,30,2013,Hourly Wages,,$340.00
48,J.F. Drake State,90006091,DORIS HINTON,Aug,30,2013,Instructional Salaries - Regul,UNRESTRICTED,"$5,023.00"
48,J.F. Drake State,90006092,KHALID HOLMES,Aug,30,2013,Instructional Salaries - Regul,UNRESTRICTED,"$7,340.91"
48,J.F. Drake State,90006093,PORTIA S HOUSTON,Aug,30,2013,Instructional Salaries - Tempo,UNRESTRICTED,"$1,350.00"
48,J.F. Drake State,90006094,JAN J HYMAN,Aug,30,2013,Support Personnel Salaries - S,,"$3,229.00"
48,J.F. Drake State,90006096,NEOKA JANE IVEY,Aug,30,2013,Support Personnel Salaries - S,UNRESTRICTED,"$1,964.25"
48,J.F. Drake State,90006097,TERELL L JACKSON,Aug,30,2013,Support Personnel Salaries - S,UNRESTRICTED,"$2,262.08"
48,J.F. Drake State,90006098,SARAH J JAMAR,Aug,30,2013,Hourly Wages,STUDENT SUPPORT SERVICES,$322.50
48,J.F. Drake State,90006099,VICTORIA L JOINER-MILLER,Aug,30,2013,Instructional Salaries - Tempo,UNRESTRICTED,$450.00
48,J.F. Drake State,90006100,VICTOR G JOLLEY,Aug,30,2013,Instructional Salaries - Tempo,UNRESTRICTED,$750.00
48,J.F. Drake State,90006101,DONYALE D JONES,Aug,30,2013,Employee Taxable Per Diem,UNRESTRICTED,$11.25
48,J.F. Drake State,90006101,DONYALE D JONES,Aug,30,2013,Support Personnel Salaries - S,UNRESTRICTED,"$3,303.38"
48,J.F. Drake State,90006102,PINEY L JORDAN,Aug,30,2013,Instructional Salaries - Tempo,UNRESTRICTED,"$1,560.00"
48,J.F. Drake State,90006103,NGOZI A KAMALU,Aug,30,2013,Instructional Salaries - Tempo,UNRESTRICTED,"$1,305.00"
48,J.F. Drake State,90006104,JUSTIN M KELLY,Aug,30,2013,Instructional Salaries - Tempo,UNRESTRICTED,$450.00
48,J.F. Drake State,90006104,JUSTIN M KELLY,Aug,30,2013,Hourly Wages,,$900.00
48,J.F. Drake State,90006105,CHERYL P KEMP,Aug,30,2013,Instructional Salaries - Tempo,UNRESTRICTED,"$1,140.00"
48,J.F. Drake State,90006106,THOMAS B KIBLER,Aug,30,2013,Hourly Wages,,"$1,582.50"
48,J.F. Drake State,90006107,NICHOLAS PAUL KSEPKA,Aug,30,2013,Hourly Wages,UNRESTRICTED,"$2,257.50"
48,J.F. Drake State,90006108,JESSICA LAUREN KYLES,Aug,30,2013,Hourly Wages,,$410.00
48,J.F. Drake State,90006109,HONG THUYDUC LAM,Aug,30,2013,Instructional Salaries - Regul,UNRESTRICTED,"$6,495.34"
48,J.F. Drake State,90006110,JOYCE P LAMAR,Aug,30,2013,Support Personnel Salaries - S,UNRESTRICTED,"$4,568.12"
48,J.F. Drake State,90006111,DIANNE T LANZA,Aug,30,2013,Instructional Salaries - Tempo,ADULT ED,$494.00
48,J.F. Drake State,90006112,JOHN CHRISTOPHER LEE JR,Aug,30,2013,Hourly Wages,,$600.00
48,J.F. Drake State,90006113,SHANISSA SHANTE LONDON,Aug,30,2013,Hourly Wages,,$260.00
48,J.F. Drake State,90006114,PAMELA LONG,Aug,30,2013,Instructional Salaries - Tempo,UNRESTRICTED,$900.00
48,J.F. Drake State,90006115,VALERIE E LOTZ,Aug,30,2013,Instructional Salaries - Tempo,ADULT ED,$504.00
48,J.F. Drake State,90006116,MICHEAL V MAXTON,Aug,30,2013,Instructional Salaries - Tempo,UNRESTRICTED,$900.00
48,J.F. Drake State,90006117,AUBREY CLAY MCALLISTER,Aug,30,2013,Instructional Salaries - Tempo,UNRESTRICTED,"$1,500.00"
48,J.F. Drake State,90006118,HELEN T MCALPINE,Aug,30,2013,Administrative Salaries- Sched,UNRESTRICTED,"$14,266.38"
48,J.F. Drake State,90006118,HELEN T MCALPINE,Aug,30,2013,President's Expense Allowance,UNRESTRICTED,$200.00
48,J.F. Drake State,90006118,HELEN T MCALPINE,Aug,30,2013,Housing Allowance,UNRESTRICTED,"$1,000.00"
48,J.F. Drake State,90006120,DEMETIUS L MCCARTY,Aug,30,2013,Support Personnel Salaries - S,UNRESTRICTED,"$2,187.62"
48,J.F. Drake State,90006122,DARVIN D MCDANIEL,Aug,30,2013,Instructional Salaries - Tempo,UNRESTRICTED,"$1,050.00"
48,J.F. Drake State,90006123,SCOTTY MCLAUGHLIN,Aug,30,2013,Instructional Salaries - Regul,UNRESTRICTED,"$6,893.66"
48,J.F. Drake State,90006124,DEBORAH A MILLING,Aug,30,2013,Instructional Salaries - Regul,UNRESTRICTED,"$11,597.37"
48,J.F. Drake State,90006125,SAMMY J MILTON,Aug,30,2013,Support Personnel Salaries - S,UNRESTRICTED,"$3,452.87"
48,J.F. Drake State,90006126,ACOLEA J MOORE,Aug,30,2013,Instructional Salaries - Tempo,UNRESTRICTED,$450.00
48,J.F. Drake State,90006127,ALFRED CROSHAN MOORE,Aug,30,2013,Hourly Wages,,$600.00
48,J.F. Drake State,90006128,MICHAEL M MORRIS,Aug,30,2013,Instructional Salaries - Tempo,,"$2,340.00"
48,J.F. Drake State,90006129,BRUCE D MORRISON,Aug,30,2013,Support Personnel Salaries - S,UNRESTRICTED,"$4,196.13"
48,J.F. Drake State,90006130,JENNIFER O'LINGER,Aug,30,2013,Other Professional Salaries -,UNRESTRICTED,"$6,013.50"
48,J.F. Drake State,90006131,AKUA K OPOKU-BOATENG,Aug,30,2013,Support Personnel Salaries - S,,"$2,559.35"
48,J.F. Drake State,90006132,DONALD ORR,Aug,30,2013,Support Personnel Salaries - S,UNRESTRICTED,"$3,824.63"
48,J.F. Drake State,90006133,VALARIE L OWENS,Aug,30,2013,Support Personnel Salaries - S,STUDENT SUPPORT SERVICES,"$2,262.09"
48,J.F. Drake State,90006134,JERROLD DION PHIPPS,Aug,30,2013,Instructional Salaries - Tempo,UNRESTRICTED,"$1,350.00"
48,J.F. Drake State,90006135,INODU TONY PIRI,Aug,30,2013,Instructional Salaries - Tempo,UNRESTRICTED,$450.00
48,J.F. Drake State,90006136,GWENDOLYN D POPE,Aug,30,2013,Instructional Salaries - Regul,UNRESTRICTED,"$7,399.50"
48,J.F. Drake State,90006137,MICHAEL RADDEN,Aug,30,2013,Instructional Salaries - Tempo,UNRESTRICTED,$450.00
48,J.F. Drake State,90006138,ALICE G RAYMOND,Aug,30,2013,Other Professional Salaries -,,"$8,233.57"
48,J.F. Drake State,90006139,JOYCE L RENTZ,Aug,30,2013,Instructional Salaries - Regul,UNRESTRICTED,"$4,514.72"
48,J.F. Drake State,90006139,JOYCE L RENTZ,Aug,30,2013,Instructional Salaries - Tempo,UNRESTRICTED,$450.00
48,J.F. Drake State,90006139,JOYCE L RENTZ,Aug,30,2013,Other Professional Salaries -,UNRESTRICTED,"$7,849.60"
48,J.F. Drake State,90006140,JOHN REUTTER III,Aug,30,2013,Other Professional Salaries -,,"$7,053.25"
48,J.F. Drake State,90006141,LYSCELLE M REYES,Aug,30,2013,Instructional Salaries - Tempo,UNRESTRICTED,$450.00
48,J.F. Drake State,90006141,LYSCELLE M REYES,Aug,30,2013,Hourly Wages,,$560.00
48,J.F. Drake State,90006142,ROXANNE D RICHARDSON,Aug,30,2013,Support Personnel Salaries - S,UNRESTRICTED,"$3,079.87"
48,J.F. Drake State,90006143,BEVERLY NICOLE RICKS-CULB,Aug,30,2013,Hourly Wages,,$490.00
48,J.F. Drake State,90006144,WENDY L ROBERTS,Aug,30,2013,Other Professional Salaries -,ADULT ED,"$3,750.00"
48,J.F. Drake State,90006145,LAODECEA T SEAY,Aug,30,2013,Support Personnel Salaries - S,UNRESTRICTED,"$3,452.08"
48,J.F. Drake State,90006147,ROBERT ANDREW SHARP,Aug,30,2013,Hourly Wages,,$480.00
48,J.F. Drake State,90006148,JACQUELINE M SHIVERS,Aug,30,2013,Instructional Salaries - Tempo,ADULT ED,"$1,568.75"
48,J.F. Drake State,90006149,LESLEY SHOTTS,Aug,30,2013,Instructional Salaries - Tempo,,"$4,750.00"
48,J.F. Drake State,90006151,AMANDA R SIMPSON,Aug,30,2013,Support Personnel Salaries - S,UNRESTRICTED,"$2,016.00"
48,J.F. Drake State,90006152,PATRICIA GORDON SIMS,Aug,30,2013,Administrative Salaries- Sched,UNRESTRICTED,"$9,245.01"
48,J.F. Drake State,90006152,PATRICIA GORDON SIMS,Aug,30,2013,Employee Taxable Per Diem,,$11.25
48,J.F. Drake State,90006153,DELORIS A SMOTHERS,Aug,30,2013,Instructional Salaries - Tempo,UNRESTRICTED,$450.00
48,J.F. Drake State,90006153,DELORIS A SMOTHERS,Aug,30,2013,Instructional Salaries - Regul,UNRESTRICTED,"$6,765.34"
48,J.F. Drake State,90006154,JULIE P SPURGEON,Aug,30,2013,Support Personnel Salaries - S,UNRESTRICTED,"$3,303.13"
48,J.F. Drake State,90006154,JULIE P SPURGEON,Aug,30,2013,Employee Taxable Per Diem,,$33.75
48,J.F. Drake State,90006155,JASON M STEPHENS,Aug,30,2013,Hourly Wages,STUDENT SUPPORT SERVICES,$562.50
48,J.F. Drake State,90006156,JON D STEPHENSON,Aug,30,2013,Support Personnel Salaries - S,,"$3,392.68"
48,J.F. Drake State,90006157,VERLINDSEY B STEWART,Aug,30,2013,Instructional Salaries - Regul,UNRESTRICTED,"$6,493.66"
48,J.F. Drake State,90006158,KIMBEL LAURENCE STROUT,Aug,30,2013,Instructional Salaries - Tempo,,$480.00
48,J.F. Drake State,90006159,KIMBERLY DEE SULLIVAN,Aug,30,2013,Hourly Wages,,$510.00
48,J.F. Drake State,90006160,SHANNON SUMMERS,Aug,30,2013,Instructional Salaries - Tempo,ADULT ED,$418.00
48,J.F. Drake State,90006161,NATHAN W TATE JR,Aug,30,2013,Hourly Wages,,$510.00
48,J.F. Drake State,90006162,DOCQUINN N TAYLOR,Aug,30,2013,Instructional Salaries - Tempo,UNRESTRICTED,$450.00
48,J.F. Drake State,90006162,DOCQUINN N TAYLOR,Aug,30,2013,Hourly Wages,STUDENT SUPPORT SERVICES,$378.75
48,J.F. Drake State,90006163,MALCOLM G TAYLOR,Aug,30,2013,Instructional Salaries - Tempo,UNRESTRICTED,$900.00
48,J.F. Drake State,90006164,FORREST BRYANT TEAGUE,Aug,30,2013,Hourly Wages,UNRESTRICTED,"$1,440.00"
48,J.F. Drake State,90006165,DAWN G THOMAS,Aug,30,2013,Hourly Wages,,$190.00
48,J.F. Drake State,90006166,JOY D TORNQUIST,Aug,30,2013,Instructional Salaries - Tempo,UNRESTRICTED,"$2,280.00"
48,J.F. Drake State,90006167,KRISTIN TREADWAY,Aug,30,2013,Support Personnel Salaries - S,,"$2,931.13"
48,J.F. Drake State,90006168,ELIZABETH A TUGGLE,Aug,30,2013,Instructional Salaries - Tempo,ADULT ED,"$1,274.00"
48,J.F. Drake State,90006169,GILBERT T TURLEY,Aug,30,2013,Other Professional Salaries -,UNRESTRICTED,"$6,886.62"
48,J.F. Drake State,90006170,LARRY CHARLES TURNER,Aug,30,2013,Hourly Wages,,$450.00
48,J.F. Drake State,90006171,KAROL C WADDELL,Aug,30,2013,Hourly Wages,READY TO WORK,"$2,235.00"
48,J.F. Drake State,90006172,ANITA G WALKER,Aug,30,2013,Hourly Wages,,"$1,620.00"
48,J.F. Drake State,90006173,LETITIA E WALKER,Aug,30,2013,Support Personnel Salaries - S,UNRESTRICTED,"$3,229.38"
48,J.F. Drake State,90006174,DEVONA WARNER,Aug,30,2013,Hourly Wages,,$630.00
48,J.F. Drake State,90006175,BETH S WESTER,Aug,30,2013,Other Professional Salaries -,,"$6,013.50"
48,J.F. Drake State,90006175,BETH S WESTER,Aug,30,2013,Employee Taxable Per Diem,,$41.25
48,J.F. Drake State,90006176,DWAYNIA WILKERSON,Aug,30,2013,Instructional Salaries - Tempo,UNRESTRICTED,$150.00
48,J.F. Drake State,90006177,CALANDRA S WILLIAMS,Aug,30,2013,Instructional Salaries - Tempo,ADULT ED,$529.00
48,J.F. Drake State,90006178,DAYMETRIE D WILLIAMS,Aug,30,2013,Hourly Wages,,$375.00
48,J.F. Drake State,90006179,KELLY L WILLIAMS,Aug,30,2013,Instructional Salaries - Tempo,UNRESTRICTED,"$1,350.00"
48,J.F. Drake State,90006180,BRANDI G WINCHESTER,Aug,30,2013,Instructional Salaries - Regul,UNRESTRICTED,"$3,617.87"
48,J.F. Drake State,90006181,GEORGE R WINN,Aug,30,2013,Instructional Salaries - Regul,UNRESTRICTED,"$5,261.34"
48,J.F. Drake State,90006182,CHARLES R WINTER,Aug,30,2013,Support Personnel Salaries - S,UNRESTRICTED,"$1,889.83"
48,J.F. Drake State,90006183,DELESHIA D YOUNG,Aug,30,2013,Support Personnel Salaries - S,UNRESTRICTED,"$3,079.87"
48,J.F. Drake State,302681,KEMBA CHAMBERS,Aug,30,2013,Annual Leave - Retirement/Term,UNRESTRICTED,"$14,500.09"
48,J.F. Drake State,302682,BHESHAM JERRY SINGH,Aug,30,2013,Hourly Wages,,$660.00
48,J.F. Drake State,210344,"CAMCAD TECHNOLOGIES, INC",Aug,29,2013,Computer Software,,"$2,400.00"
48,J.F. Drake State,210345,CEDRIC ARRINGTON,Aug,29,2013,In-State Travel,,$242.22
48,J.F. Drake State,210346,CONDITIONED AIR SOLUTIONS,Aug,29,2013,Maintenance and Repairs,,"$7,286.98"
48,J.F. Drake State,210347,ENTERPRISE RENT-A-CAR,Aug,29,2013,Out-of-State Travel,,$272.16
48,J.F. Drake State,210348,GREY HOUSE PUB,Aug,29,2013,Books,,$469.00
48,J.F. Drake State,210349,HOMEWOOD SUITES,Aug,29,2013,Out-of-State Travel,,$387.00
48,J.F. Drake State,210350,INTERNATIONAL CODE COUNCI,Aug,29,2013,Books,,"$3,833.39"
48,J.F. Drake State,210351,LEARNING LABS INC.,Aug,29,2013,Computer Software,,"$3,380.00"
48,J.F. Drake State,210352,LIBRARICA LLC,Aug,29,2013,Subscriptions,,"$1,956.08"
48,J.F. Drake State,210353,UNIVERSITY OF ALABAMA,Aug,29,2013,In-State Travel,,"$2,800.00"
48,J.F. Drake State,107332,ALAPCAE,Aug,28,2013,In-State Travel,,$160.00
48,J.F. Drake State,107333,BANKS INDUSTRIES INC.,Aug,28,2013,Materials and Supplies,UNRESTRICTED,"$1,375.62"
48,J.F. Drake State,107334,"DYNAMIC SECURITY, INC.",Aug,28,2013,Other Contractual Services,UNRESTRICTED,"$5,418.72"
48,J.F. Drake State,107335,ESSENTIAL EDUCATION,Aug,28,2013,Materials and Supplies,,"$9,955.00"
48,J.F. Drake State,107336,GRAYBAR,Aug,28,2013,Materials and Supplies,UNRESTRICTED,$378.98
48,J.F. Drake State,107337,KOORSEN PROTECTION SERVIC,Aug,28,2013,Materials and Supplies,UNRESTRICTED,$265.00
48,J.F. Drake State,107338,LOOMIS,Aug,28,2013,Other Contractual Services,UNRESTRICTED,$125.35
48,J.F. Drake State,107339,MINUTEMAN PRESS,Aug,28,2013,Other Contractual Services,UNRESTRICTED,$179.14
48,J.F. Drake State,107339,MINUTEMAN PRESS,Aug,28,2013,Materials and Supplies,UNRESTRICTED,$89.10
48,J.F. Drake State,107340,MULLINS FIVE POINTS RENTA,Aug,28,2013,Materials and Supplies,UNRESTRICTED,$153.90
48,J.F. Drake State,107341,PHI THETA KAPPA HONOR SOC,Aug,28,2013,In-State Travel,UNRESTRICTED,$325.00
48,J.F. Drake State,107342,UPS,Aug,28,2013,Freight,UNRESTRICTED,$14.50
48,J.F. Drake State,107315,ACCSFMA,Aug,27,2013,Memberships,UNRESTRICTED,$300.00
48,J.F. Drake State,107316,BERNEY OFFICE SOLUTIONS,Aug,27,2013,Other Contractual Services,UNRESTRICTED,"$1,633.76"
48,J.F. Drake State,107317,CHEVRON CARD SERVICES,Aug,27,2013,Gasoline and Oil - Motor Vehic,UNRESTRICTED,$226.66
48,J.F. Drake State,107318,PETTY CASH,Aug,27,2013,Materials and Supplies,UNRESTRICTED,$320.09
48,J.F. Drake State,107319,"ELLUCIAN CO,LP",Aug,27,2013,Construction in Progress,PLANT FUNDS,"$37,659.33"
48,J.F. Drake State,107320,ELSEVIER/HESI,Aug,27,2013,Purchases for Resale,AUXILIARY,"$2,482.76"
48,J.F. Drake State,107321,FEDEX,Aug,27,2013,Freight,UNRESTRICTED,$289.59
48,J.F. Drake State,107322,HOUGHTON MIFFLIN COMPANY,Aug,27,2013,Materials and Supplies,ADULT ED,"$1,309.38"
48,J.F. Drake State,107323,CHAMBER OF COMMERCE,Aug,27,2013,Advertising and Promotions,UNRESTRICTED,$800.00
48,J.F. Drake State,107324,KHALID HOLMES,Aug,27,2013,In-State Travel,UNRESTRICTED,$435.00
48,J.F. Drake State,107325,KOORSEN PROTECTION SERVIC,Aug,27,2013,Other Contractual Services,UNRESTRICTED,$325.00
48,J.F. Drake State,107326,SAM'S CLUB/WALMART,Aug,27,2013,Materials and Supplies,UNRESTRICTED,$187.30
48,J.F. Drake State,107327,"TRUESCREEN, INC",Aug,27,2013,Other Contractual Services,UNRESTRICTED,$65.00
48,J.F. Drake State,210062,"CAREERAMERICA, LLC",Aug,27,2013,Other Contractual Services,,"$4,500.00"
48,J.F. Drake State,210063,DAVID M. HATA,Aug,27,2013,Other Contractual Services,,"$4,092.41"
48,J.F. Drake State,210065,PETTY CASH,Aug,27,2013,Materials and Supplies,,$57.62
48,J.F. Drake State,210066,"ELLUCIAN CO,LP",Aug,27,2013,Construction in Progress,,"$2,855.42"
48,J.F. Drake State,210067,"OFFICE DEPOT, INC.",Aug,27,2013,Materials and Supplies,,$22.58
48,J.F. Drake State,210068,"ROBERT, GRISSIM",Aug,27,2013,Out-of-State Travel,,"$2,864.70"
48,J.F. Drake State,210069,RONALD EGSON,Aug,27,2013,Out-of-State Travel,,$266.14
48,J.F. Drake State,210070,TIFFANY GREEN,Aug,27,2013,Out-of-State Travel,,"$1,040.67"
48,J.F. Drake State,107306,ACT,Aug,26,2013,Materials and Supplies,UNRESTRICTED,$660.41
48,J.F. Drake State,107307,AMERICAN COUNCIL OF EDUCA,Aug,26,2013,Materials and Supplies,UNRESTRICTED,$735.00
48,J.F. Drake State,107308,COPELAND CLEANERS,Aug,26,2013,Other Contractual Services,UNRESTRICTED,$17.00
48,J.F. Drake State,107309,DEPT OF FINANCE,Aug,26,2013,Communications,UNRESTRICTED,$45.78
48,J.F. Drake State,107310,ESSENTIAL EDUCATION,Aug,26,2013,Materials and Supplies,ADULT ED,"$4,455.00"
48,J.F. Drake State,107311,MINUTEMAN PRESS,Aug,26,2013,Materials and Supplies,UNRESTRICTED,$399.85
48,J.F. Drake State,107311,MINUTEMAN PRESS,Aug,26,2013,Other Contractual Services,UNRESTRICTED,$757.40
48,J.F. Drake State,107312,TEKNIMEDIA CORP,Aug,26,2013,Materials and Supplies,,"$4,585.00"
48,J.F. Drake State,107313,THE ALABAMA LAWNMASTERS,Aug,26,2013,Other Contractual Services,ARMY GRANT,$650.00
48,J.F. Drake State,107313,THE ALABAMA LAWNMASTERS,Aug,26,2013,Other Contractual Services,UNRESTRICTED,"$3,045.00"
48,J.F. Drake State,107286,CAMBRIDGE UNIVERSITY PRES,Aug,19,2013,Materials and Supplies,ADULT ED,"$1,284.62"
48,J.F. Drake State,107287,CASTLEBRANCH,Aug,19,2013,Purchases for Resale,AUXILIARY,$25.00
48,J.F. Drake State,107288,CROWN TROPHY,Aug,19,2013,Materials and Supplies,UNRESTRICTED,$50.00
48,J.F. Drake State,107289,"DYNAMIC SECURITY, INC.",Aug,19,2013,Other Contractual Services,UNRESTRICTED,"$5,940.48"
48,J.F. Drake State,107290,GED TESTING PROGRAM,Aug,19,2013,Materials and Supplies,UNRESTRICTED,$146.00
48,J.F. Drake State,107291,HUNTSVILLE TIMES,Aug,19,2013,Advertising and Promotions,UNRESTRICTED,$555.40
48,J.F. Drake State,107292,KOORSEN PROTECTION SERVIC,Aug,19,2013,Other Contractual Services,UNRESTRICTED,$485.00
48,J.F. Drake State,107293,LEADERSHIP ALABAMA,Aug,19,2013,Memberships,UNRESTRICTED,$175.00
48,J.F. Drake State,107294,LEADERSHIP ALABAMA,Aug,19,2013,Memberships,UNRESTRICTED,$175.00
48,J.F. Drake State,107295,PAPERCLIP COMMUNICATIONS,Aug,19,2013,State-Funded Professional Deve,UNRESTRICTED,$296.00
48,J.F. Drake State,107296,RANDALL A SCHRIMSHER,Aug,19,2013,Rent - Facilities,UNRESTRICTED,"$6,475.00"
48,J.F. Drake State,107297,RYDIN SIGN AND DECAL,Aug,19,2013,Advertising and Promotions,UNRESTRICTED,$680.51
48,J.F. Drake State,107298,SYSCO CENTRAL ALABAMA,Aug,19,2013,Purchases for Resale,UNRESTRICTED,$548.34
48,J.F. Drake State,107300,"THE SOLUTIONS TEAM, INC",Aug,19,2013,Other Contractual Services,UNRESTRICTED,$200.00
48,J.F. Drake State,107301,UNION CHAPEL CHRISTIAN,Aug,19,2013,Advertising and Promotions,UNRESTRICTED,"$3,000.00"
48,J.F. Drake State,107302,VERIZON WIRELESS,Aug,19,2013,Communications,UNRESTRICTED,"$1,848.86"
48,J.F. Drake State,210004,ACAPNEP,Aug,19,2013,Memberships,,$50.00
48,J.F. Drake State,210005,ACCA,Aug,19,2013,In-State Travel,,"$2,800.00"
48,J.F. Drake State,210006,"ANATOMAGE, INC.",Aug,19,2013,Materials and Supplies,,"$35,818.16"
48,J.F. Drake State,210006,"ANATOMAGE, INC.",Aug,19,2013,Furniture and Equipment,,"$35,818.16"
48,J.F. Drake State,210007,NICOLE BELL,Aug,19,2013,Out-of-State Travel,,$235.24
48,J.F. Drake State,210008,CDW-G,Aug,19,2013,Materials and Supplies,,"$1,242.92"
48,J.F. Drake State,210009,CEDRIC ARRINGTON,Aug,19,2013,In-State Travel,,$225.00
48,J.F. Drake State,210010,COMPANSOL,Aug,19,2013,Other Contractual Services,STUDENT SUPPORT SERVICES,$299.00
48,J.F. Drake State,210011,"ELLUCIAN CO,LP",Aug,19,2013,Construction in Progress,,"$79,207.00"
48,J.F. Drake State,210012,ELSEVIER/HESI,Aug,19,2013,Materials and Supplies,,$188.00
48,J.F. Drake State,210013,HORACE FRANKLIN,Aug,19,2013,In-State Travel,,$723.76
48,J.F. Drake State,210014,LOWE'S,Aug,19,2013,Materials and Supplies,,$39.30
48,J.F. Drake State,210015,NORTHEAST ALABAMA STATE C,Aug,19,2013,In-State Travel,,$200.00
48,J.F. Drake State,210016,"RENTZ, JOYCE L.",Aug,19,2013,Out-of-State Travel,,$235.66
48,J.F. Drake State,210017,SARGENT-WELCH,Aug,19,2013,Materials and Supplies,,"$6,195.39"
48,J.F. Drake State,210018,SYSCO CENTRAL ALABAMA,Aug,19,2013,Materials and Supplies,,$548.34
48,J.F. Drake State,210019,GIL TURLEY,Aug,19,2013,In-State Travel,,"$1,170.36"
48,J.F. Drake State,210020,UNIVERSITY OF NEW MEXICO,Aug,19,2013,Institutional Use,,"$1,280.18"
48,J.F. Drake State,210021,WESTER BETH,Aug,19,2013,In-State Travel,,$138.64
48,J.F. Drake State,210022,WOLAVER,Aug,19,2013,Furniture and Equipment,,"$9,500.00"
48,J.F. Drake State,107285,JACQUELINE M SHIVERS,Aug,7,2013,In-State Travel,,$378.52
48,J.F. Drake State,209982,EDMONDS MONICA,Aug,6,2013,In-State Travel,,$991.65
48,J.F. Drake State,209983,"HENRY, DEXTER",Aug,6,2013,In-State Travel,,$440.04
48,J.F. Drake State,209984,LAERDAL,Aug,6,2013,Materials and Supplies,,$88.44
48,J.F. Drake State,209985,NORTHEAST ALABAMA STATE C,Aug,6,2013,In-State Travel,,$200.00
48,J.F. Drake State,209986,"OFFICE DEPOT, INC.",Aug,6,2013,Materials and Supplies,,$657.92
48,J.F. Drake State,209987,PENSACOLA STATE COLLEGE,Aug,6,2013,Other Contractual Services,,$200.00
48,J.F. Drake State,209988,PESI HEALTHCARE,Aug,6,2013,Materials and Supplies,,$52.50
48,J.F. Drake State,209989,SEXTON WELDING SUPPLY,Aug,6,2013,Materials and Supplies,,$151.00
48,J.F. Drake State,209990,"SHOTTS, LESLEY",Aug,6,2013,Out-of-State Travel,,$176.97
48,J.F. Drake State,107262,DEIONE CRUTCHER,Aug,6,2013,In-State Travel,,$225.00
48,J.F. Drake State,107263,"DYNAMIC SECURITY, INC.",Aug,6,2013,Other Contractual Services,UNRESTRICTED,"$5,940.48"
48,J.F. Drake State,107264,"FUTURE TEK, INC",Aug,6,2013,Institutional Use,,"$7,977.00"
48,J.F. Drake State,107265,"HENRY, KARL W. SR.",Aug,6,2013,Materials and Supplies,UNRESTRICTED,$110.00
48,J.F. Drake State,107265,"HENRY, KARL W. SR.",Aug,6,2013,Out-of-State Travel,,$158.05
48,J.F. Drake State,107266,JACQUELYN T MICHAEL,Aug,6,2013,In-State Travel,,$378.52
48,J.F. Drake State,107267,KERMIT ELLIOTT,Aug,6,2013,In-State Travel,,$366.52
48,J.F. Drake State,107268,"LANZA, DIANNE",Aug,6,2013,In-State Travel,,$358.52
48,J.F. Drake State,107269,LARDELL GOODLOE,Aug,6,2013,Out-of-State Travel,,$725.70
48,J.F. Drake State,107270,LIME FRESH MEXICAN GRILL,Aug,6,2013,Institutional Use,UNRESTRICTED,"$1,232.00"
48,J.F. Drake State,107271,LOTZ VALERIE,Aug,6,2013,In-State Travel,,$267.52
48,J.F. Drake State,107272,LOWE'S,Aug,6,2013,Maintenance and Repairs,UNRESTRICTED,"$1,467.89"
48,J.F. Drake State,107272,LOWE'S,Aug,6,2013,Materials and Supplies,,"$4,304.24"
48,J.F. Drake State,107273,MCGRAW HILL EDUCATION,Aug,6,2013,Materials and Supplies,ADULT ED,$553.12
48,J.F. Drake State,107274,"MOBILE MINI, INC",Aug,6,2013,Materials and Supplies,UNRESTRICTED,$345.03
48,J.F. Drake State,107275,"POPE, GWENDOLYN M.",Aug,6,2013,Out-of-State Travel,UNRESTRICTED,$183.68
48,J.F. Drake State,107276,RANDALL A SCHRIMSHER,Aug,6,2013,Rent - Facilities,UNRESTRICTED,"$6,475.00"
48,J.F. Drake State,107277,SOUTHLAND DISTRIBUTORS,Aug,6,2013,Materials and Supplies,,"$1,910.94"
48,J.F. Drake State,107278,"THE SOLUTIONS TEAM, INC",Aug,6,2013,Other Contractual Services,UNRESTRICTED,$200.00
48,J.F. Drake State,107279,TUGGLE ELIZABETH,Aug,6,2013,In-State Travel,,$225.00
48,J.F. Drake State,107280,WENDY ROBERTS,Aug,6,2013,In-State Travel,,$366.52
48,J.F. Drake State,107281,WESTIN HOTELS & RESORT,Aug,6,2013,Institutional Use,UNRESTRICTED,"$8,765.12"
48,J.F. Drake State,90005835,JOY M AGEE,Jul,31,2013,Hourly Wages,,$480.00
48,J.F. Drake State,90005836,DEMICA SHERMIR ALLISON,Jul,31,2013,Hourly Wages,,$760.00
48,J.F. Drake State,90005837,TRINA A ALTMAN,Jul,31,2013,Instructional Salaries - Regul,UNRESTRICTED,"$3,753.42"
48,J.F. Drake State,90005838,CEDRIC D ARRINGTON SR,Jul,31,2013,Other Professional Salaries -,UNRESTRICTED,"$6,450.08"
48,J.F. Drake State,90005838,CEDRIC D ARRINGTON SR,Jul,31,2013,In-State Travel,,$33.75
48,J.F. Drake State,90005839,KEVIN STEVEN ATCHLEY,Jul,31,2013,Hourly Wages,,$600.00
48,J.F. Drake State,90005840,LYSA AUGUSTIN,Jul,31,2013,Instructional Salaries - Tempo,ADULT ED,$462.00
48,J.F. Drake State,90005842,CAROLYN AVRITTE,Jul,31,2013,Instructional Salaries - Tempo,UNRESTRICTED,"$1,350.00"
48,J.F. Drake State,90005843,ZELDA M AZOR,Jul,31,2013,Instructional Salaries - Tempo,UNRESTRICTED,"$2,160.00"
48,J.F. Drake State,90005844,NELSON E BARNES,Jul,31,2013,Instructional Salaries - Tempo,UNRESTRICTED,$450.00
48,J.F. Drake State,90005845,NICOLE CLARESE BARNETT,Jul,31,2013,Other Professional Salaries -,,"$5,743.59"
48,J.F. Drake State,90005846,BEN BATTLE,Jul,31,2013,Instructional Salaries - Regul,UNRESTRICTED,"$5,198.33"
48,J.F. Drake State,90005847,ANGELA NICOLE BELL,Jul,31,2013,Instructional Salaries - Regul,UNRESTRICTED,"$5,147.00"
48,J.F. Drake State,90005849,PATRICE BIVINS,Jul,31,2013,Support Personnel Salaries - S,,"$2,484.00"
48,J.F. Drake State,90005850,BOEDVAR INGI BOEDVARSSON,Jul,31,2013,Hourly Wages,,$430.00
48,J.F. Drake State,90005851,CHERYL BRAWLEY-KELLY,Jul,31,2013,Instructional Salaries - Tempo,UNRESTRICTED,$640.00
48,J.F. Drake State,90005852,BRUCE A BULLUCK,Jul,31,2013,Other Professional Salaries -,UNRESTRICTED,"$6,450.08"
48,J.F. Drake State,90005853,KWAME OMARIO BURNETT,Jul,31,2013,Hourly Wages,,$600.00
48,J.F. Drake State,90005854,KHALILAH BURTON,Jul,31,2013,Instructional Salaries - Tempo,UNRESTRICTED,"$1,500.00"
48,J.F. Drake State,90005855,DERICK R CARPENAY,Jul,31,2013,Instructional Salaries - Tempo,UNRESTRICTED,$450.00
48,J.F. Drake State,90005856,KEMBA CHAMBERS,Jul,31,2013,Other Professional Salaries -,UNRESTRICTED,"$7,360.42"
48,J.F. Drake State,90005856,KEMBA CHAMBERS,Jul,31,2013,In-State Travel,,$33.75
48,J.F. Drake State,90005857,KATIE E CHANCE,Jul,31,2013,Support Personnel Salaries - S,UNRESTRICTED,"$3,452.08"
48,J.F. Drake State,90005858,ROGER CHEN,Jul,31,2013,Hourly Wages,,"$2,215.50"
48,J.F. Drake State,90005859,ADAM CLARK,Jul,31,2013,Instructional Salaries - Regul,UNRESTRICTED,"$4,847.00"
48,J.F. Drake State,90005860,TASKA S CLARK,Jul,31,2013,Support Personnel Salaries - S,UNRESTRICTED,"$2,262.08"
48,J.F. Drake State,90005862,CARLA R CLIFT,Jul,31,2013,Other Professional Salaries -,UNRESTRICTED,"$5,609.75"
48,J.F. Drake State,90005863,RICHARD COLLIE,Jul,31,2013,Other Professional Salaries -,STUDENT SUPPORT SERVICES,"$3,750.00"
48,J.F. Drake State,90005864,TOMACENIA CHANTRELL CROSB,Jul,31,2013,Hourly Wages,,$630.00
48,J.F. Drake State,90005865,TOMEKA CROSS,Jul,31,2013,Support Personnel Salaries - S,UNRESTRICTED,"$2,187.33"
48,J.F. Drake State,90005866,DEIONE L CRUTCHER,Jul,31,2013,Hourly Wages,ADULT ED,"$1,230.00"
48,J.F. Drake State,90005867,CODY GLENN DAVIS,Jul,31,2013,Hourly Wages,,$450.00
48,J.F. Drake State,90005868,MATTIE D DAVIS,Jul,31,2013,Instructional Salaries - Regul,UNRESTRICTED,"$6,157.00"
48,J.F. Drake State,90005869,BRANDIE A DEL VALLE,Jul,31,2013,Instructional Salaries - Tempo,UNRESTRICTED,$840.00
48,J.F. Drake State,90005871,MARLO DRAKE,Jul,31,2013,Support Personnel Salaries - S,UNRESTRICTED,"$2,477.38"
48,J.F. Drake State,90005871,MARLO DRAKE,Jul,31,2013,Support Personnel Salaries - S,,$825.79
48,J.F. Drake State,90005873,ANTHONY H DRAPER,Jul,31,2013,Instructional Salaries - Tempo,UNRESTRICTED,$300.00
48,J.F. Drake State,90005874,AMELIA J DUKEMINEER,Jul,31,2013,Hourly Wages,,"$1,600.00"
48,J.F. Drake State,90005875,DARRELL J ECHOLS,Jul,31,2013,Instructional Salaries - Regul,UNRESTRICTED,"$4,232.33"
48,J.F. Drake State,90005877,VERNESSA M EDWARDS,Jul,31,2013,Hourly Wages,,$480.00
48,J.F. Drake State,90005878,RONALD E EGSON,Jul,31,2013,Instructional Salaries - Tempo,UNRESTRICTED,"$4,506.67"
48,J.F. Drake State,90005879,JAMES J EISNER,Jul,31,2013,Support Personnel Salaries - S,UNRESTRICTED,"$2,633.83"
48,J.F. Drake State,90005880,ROSELINE C ELIKE,Jul,31,2013,Instructional Salaries - Tempo,UNRESTRICTED,$840.00
48,J.F. Drake State,90005881,LESLEY-ANNE TOYO ENG,Jul,31,2013,Hourly Wages,UNRESTRICTED,"$1,730.00"
48,J.F. Drake State,90005882,TIMOTHY J FAIRCHILD,Jul,31,2013,Hourly Wages,,"$2,336.00"
48,J.F. Drake State,90005883,VICTORIA FARRAR LONG,Jul,31,2013,Support Personnel Salaries - S,UNRESTRICTED,"$2,262.08"
48,J.F. Drake State,90005884,GAIL E FISCH,Jul,31,2013,Instructional Salaries - Regul,ADULT ED,"$6,270.83"
48,J.F. Drake State,90005885,EDWIN T FORBES,Jul,31,2013,Instructional Salaries - Regul,UNRESTRICTED,"$9,085.58"
48,J.F. Drake State,90005886,AMY E FANNING,Jul,31,2013,Instructional Salaries - Tempo,UNRESTRICTED,$752.50
48,J.F. Drake State,90005887,HORACE L FRANKLIN JR,Jul,31,2013,Administrative Salaries- Sched,UNRESTRICTED,"$7,165.50"
48,J.F. Drake State,90005888,YIBELI GALINDO-BAIRD,Jul,31,2013,Other Professional Salaries -,UNRESTRICTED,"$4,000.00"
48,J.F. Drake State,90005889,DENISE CLEOSHI GAYMON,Jul,31,2013,Other Professional Salaries -,,"$4,152.75"
48,J.F. Drake State,90005890,SYMMETRIS K GOHANNA,Jul,31,2013,Instructional Salaries - Regul,UNRESTRICTED,"$10,965.66"
48,J.F. Drake State,90005891,LARDELL GOODLOE JR,Jul,31,2013,Instructional Salaries - Tempo,,"$4,646.33"
48,J.F. Drake State,90005891,LARDELL GOODLOE JR,Jul,31,2013,Instructional Salaries - Tempo,SESP,$600.00
48,J.F. Drake State,90005892,TIFFANY R GREEN,Jul,31,2013,Support Personnel Salaries - S,,"$3,303.17"
48,J.F. Drake State,90005893,TIMOTHY RYAN GREEN,Jul,31,2013,Instructional Salaries - Regul,UNRESTRICTED,"$3,818.00"
48,J.F. Drake State,90005893,TIMOTHY RYAN GREEN,Jul,31,2013,Instructional Salaries - Tempo,UNRESTRICTED,$300.00
48,J.F. Drake State,90005894,VICKIE E GREEN,Jul,31,2013,Instructional Salaries - Regul,,"$8,587.25"
48,J.F. Drake State,90005895,ROBERT N GRISSIM,Jul,31,2013,Instructional Salaries - Regul,UNRESTRICTED,"$3,646.17"
48,J.F. Drake State,90005896,CHARLES GROSS,Jul,31,2013,Instructional Salaries - Tempo,UNRESTRICTED,$450.00
48,J.F. Drake State,90005897,SAMUEL V GUISHARD,Jul,31,2013,Instructional Salaries - Tempo,UNRESTRICTED,"$1,500.00"
48,J.F. Drake State,90005898,MANELZA CRAWFORD HAMBRICK,Jul,31,2013,Support Personnel Salaries - S,UNRESTRICTED,"$2,485.42"
48,J.F. Drake State,90005899,ARCHIE LEE HAMLET,Jul,31,2013,Hourly Wages,UNRESTRICTED,$996.00
48,J.F. Drake State,90005900,SHELIA D HAMMON,Jul,31,2013,Instructional Salaries - Regul,UNRESTRICTED,"$5,023.00"
48,J.F. Drake State,90005901,AUNDREA D HANSON,Jul,31,2013,Instructional Salaries - Tempo,UNRESTRICTED,$450.00
48,J.F. Drake State,90005902,GEORGE VICTOR HARLOW III,Jul,31,2013,Hourly Wages,,$387.50
48,J.F. Drake State,90005903,KATRINA J HARRIS,Jul,31,2013,Support Personnel Salaries - S,UNRESTRICTED,$974.50
48,J.F. Drake State,90005903,KATRINA J HARRIS,Jul,31,2013,Support Personnel Salaries - S,,"$2,923.50"
48,J.F. Drake State,90005904,CAROLYN HENDERSON,Jul,31,2013,Instructional Salaries - Regul,UNRESTRICTED,"$9,085.58"
48,J.F. Drake State,90005905,DEXTER R HENRY,Jul,31,2013,Instructional Salaries - Regul,UNRESTRICTED,"$5,951.33"
48,J.F. Drake State,90005905,DEXTER R HENRY,Jul,31,2013,Instructional Salaries - Tempo,SESP,$480.00
48,J.F. Drake State,90005906,KARL W HENRY SR,Jul,31,2013,Instructional Salaries - Regul,UNRESTRICTED,"$5,237.66"
48,J.F. Drake State,90005907,ELBREY WARREN HERRING,Jul,31,2013,Instructional Salaries - Tempo,ADULT ED,"$1,152.00"
48,J.F. Drake State,90005908,ISSAC D HINES,Jul,31,2013,Instructional Salaries - Tempo,UNRESTRICTED,"$1,350.00"
48,J.F. Drake State,90005908,ISSAC D HINES,Jul,31,2013,Hourly Wages,,$440.00
48,J.F. Drake State,90005909,DORIS HINTON,Jul,31,2013,Instructional Salaries - Regul,UNRESTRICTED,"$5,023.00"
48,J.F. Drake State,90005910,KHALID HOLMES,Jul,31,2013,Instructional Salaries - Regul,UNRESTRICTED,"$7,340.92"
48,J.F. Drake State,90005911,PORTIA S HOUSTON,Jul,31,2013,Instructional Salaries - Tempo,UNRESTRICTED,"$1,350.00"
48,J.F. Drake State,90005912,JAN J HYMAN,Jul,31,2013,Support Personnel Salaries - S,,"$3,229.00"
48,J.F. Drake State,90005914,NEOKA JANE IVEY,Jul,31,2013,Support Personnel Salaries - S,UNRESTRICTED,"$1,964.25"
48,J.F. Drake State,90005915,TERELL L JACKSON,Jul,31,2013,Support Personnel Salaries - S,UNRESTRICTED,"$2,262.08"
48,J.F. Drake State,90005916,SARAH J JAMAR,Jul,31,2013,Hourly Wages,STUDENT SUPPORT SERVICES,$416.25
48,J.F. Drake State,90005917,VICTORIA L JOINER-MILLER,Jul,31,2013,Instructional Salaries - Tempo,UNRESTRICTED,$450.00
48,J.F. Drake State,90005918,VICTOR G JOLLEY,Jul,31,2013,Instructional Salaries - Tempo,UNRESTRICTED,$750.00
48,J.F. Drake State,90005919,DONYALE D JONES,Jul,31,2013,Support Personnel Salaries - S,UNRESTRICTED,"$3,303.42"
48,J.F. Drake State,90005920,PINEY L JORDAN,Jul,31,2013,Instructional Salaries - Tempo,UNRESTRICTED,"$1,830.00"
48,J.F. Drake State,90005921,NGOZI A KAMALU,Jul,31,2013,Instructional Salaries - Tempo,UNRESTRICTED,"$2,490.00"
48,J.F. Drake State,90005922,JUSTIN M KELLY,Jul,31,2013,Instructional Salaries - Tempo,UNRESTRICTED,$450.00
48,J.F. Drake State,90005922,JUSTIN M KELLY,Jul,31,2013,Hourly Wages,,$900.00
48,J.F. Drake State,90005923,CHERYL P KEMP,Jul,31,2013,Instructional Salaries - Tempo,UNRESTRICTED,"$1,710.00"
48,J.F. Drake State,90005924,THOMAS B KIBLER,Jul,31,2013,Hourly Wages,,"$1,470.00"
48,J.F. Drake State,90005925,NICHOLAS PAUL KSEPKA,Jul,31,2013,Hourly Wages,UNRESTRICTED,"$2,499.00"
48,J.F. Drake State,90005926,JESSICA LAUREN KYLES,Jul,31,2013,Hourly Wages,,$700.00
48,J.F. Drake State,90005927,HONG THUYDUC LAM,Jul,31,2013,Instructional Salaries - Regul,UNRESTRICTED,"$6,495.33"
48,J.F. Drake State,90005928,JOYCE P LAMAR,Jul,31,2013,Support Personnel Salaries - S,UNRESTRICTED,"$4,568.08"
48,J.F. Drake State,90005929,DIANNE T LANZA,Jul,31,2013,Instructional Salaries - Tempo,ADULT ED,$546.00
48,J.F. Drake State,90005929,DIANNE T LANZA,Jul,31,2013,In-State Travel,,$78.00
48,J.F. Drake State,90005930,JOHN CHRISTOPHER LEE JR,Jul,31,2013,Hourly Wages,,$635.00
48,J.F. Drake State,90005931,SHANISSA SHANTE LONDON,Jul,31,2013,Hourly Wages,,$520.00
48,J.F. Drake State,90005932,PAMELA LONG,Jul,31,2013,Instructional Salaries - Tempo,UNRESTRICTED,$900.00
48,J.F. Drake State,90005933,KATHERINE MARIE LONGMORE,Jul,31,2013,Hourly Wages,,$680.00
48,J.F. Drake State,90005934,FRANKLIN ESONO NUMA LONJE,Jul,31,2013,Hourly Wages,,$455.00
48,J.F. Drake State,90005935,VALERIE E LOTZ,Jul,31,2013,Instructional Salaries - Tempo,ADULT ED,$792.00
48,J.F. Drake State,90005936,MICHEAL V MAXTON,Jul,31,2013,Instructional Salaries - Tempo,UNRESTRICTED,$900.00
48,J.F. Drake State,90005937,AUBREY CLAY MCALLISTER,Jul,31,2013,Instructional Salaries - Tempo,UNRESTRICTED,"$1,500.00"
48,J.F. Drake State,90005938,HELEN T MCALPINE,Jul,31,2013,Administrative Salaries- Sched,UNRESTRICTED,"$14,266.42"
48,J.F. Drake State,90005938,HELEN T MCALPINE,Jul,31,2013,President's Expense Allowance,UNRESTRICTED,$200.00
48,J.F. Drake State,90005938,HELEN T MCALPINE,Jul,31,2013,Housing Allowance,UNRESTRICTED,"$1,000.00"
48,J.F. Drake State,90005938,HELEN T MCALPINE,Jul,31,2013,In-State Travel,UNRESTRICTED,$11.25
48,J.F. Drake State,90005940,DEMETIUS L MCCARTY,Jul,31,2013,Support Personnel Salaries - S,UNRESTRICTED,"$2,187.58"
48,J.F. Drake State,90005942,DARVIN D MCDANIEL,Jul,31,2013,Instructional Salaries - Tempo,UNRESTRICTED,"$1,050.00"
48,J.F. Drake State,90005943,SCOTTY MCLAUGHLIN,Jul,31,2013,Instructional Salaries - Regul,UNRESTRICTED,"$6,893.67"
48,J.F. Drake State,90005944,MARIA YVETTE MEADOR,Jul,31,2013,Support Personnel Salaries - S,STUDENT SUPPORT SERVICES,"$2,559.33"
48,J.F. Drake State,90005945,DEBORAH A MILLING,Jul,31,2013,Instructional Salaries - Regul,UNRESTRICTED,"$11,597.33"
48,J.F. Drake State,90005946,SAMMY J MILTON,Jul,31,2013,Support Personnel Salaries - S,UNRESTRICTED,"$3,452.83"
48,J.F. Drake State,90005947,ACOLEA J MOORE,Jul,31,2013,Instructional Salaries - Tempo,UNRESTRICTED,$450.00
48,J.F. Drake State,90005948,ALFRED CROSHAN MOORE,Jul,31,2013,Instructional Salaries - Tempo,,"$1,080.00"
48,J.F. Drake State,90005948,ALFRED CROSHAN MOORE,Jul,31,2013,Hourly Wages,,"$1,080.00"
48,J.F. Drake State,90005949,MICHAEL M MORRIS,Jul,31,2013,Instructional Salaries - Tempo,,"$1,980.00"
48,J.F. Drake State,90005950,BRUCE D MORRISON,Jul,31,2013,Support Personnel Salaries - S,UNRESTRICTED,"$4,196.17"
48,J.F. Drake State,90005951,JENNIFER O'LINGER,Jul,31,2013,Other Professional Salaries -,UNRESTRICTED,"$6,013.50"
48,J.F. Drake State,90005952,PROMISE C OGWU,Jul,31,2013,Hourly Wages,UNRESTRICTED,$864.00
48,J.F. Drake State,90005953,JUSTIN K OLIVER,Jul,31,2013,Hourly Wages,,$450.00
48,J.F. Drake State,90005954,AKUA K OPOKU-BOATENG,Jul,31,2013,Support Personnel Salaries - S,,"$2,559.34"
48,J.F. Drake State,90005955,DONALD ORR,Jul,31,2013,Support Personnel Salaries - S,UNRESTRICTED,"$3,824.67"
48,J.F. Drake State,90005956,VALARIE L OWENS,Jul,31,2013,Support Personnel Salaries - S,STUDENT SUPPORT SERVICES,"$2,262.08"
48,J.F. Drake State,90005957,JERROLD DION PHIPPS,Jul,31,2013,Instructional Salaries - Tempo,UNRESTRICTED,"$1,350.00"
48,J.F. Drake State,90005958,INODU TONY PIRI,Jul,31,2013,Instructional Salaries - Tempo,UNRESTRICTED,$450.00
48,J.F. Drake State,90005959,GWENDOLYN D POPE,Jul,31,2013,Instructional Salaries - Regul,UNRESTRICTED,"$7,399.50"
48,J.F. Drake State,90005960,MICHAEL RADDEN,Jul,31,2013,Instructional Salaries - Tempo,UNRESTRICTED,$450.00
48,J.F. Drake State,90005961,ALICE G RAYMOND,Jul,31,2013,Other Professional Salaries -,,"$8,233.59"
48,J.F. Drake State,90005962,JOYCE L RENTZ,Jul,31,2013,Instructional Salaries - Regul,UNRESTRICTED,"$6,251.00"
48,J.F. Drake State,90005962,JOYCE L RENTZ,Jul,31,2013,Instructional Salaries - Tempo,UNRESTRICTED,$450.00
48,J.F. Drake State,90005963,JOHN REUTTER III,Jul,31,2013,Other Professional Salaries -,,"$6,708.92"
48,J.F. Drake State,90005963,JOHN REUTTER III,Jul,31,2013,Other Professional Salaries -,SESP,$344.33
48,J.F. Drake State,90005964,LYSCELLE M REYES,Jul,31,2013,Instructional Salaries - Tempo,UNRESTRICTED,$450.00
48,J.F. Drake State,90005964,LYSCELLE M REYES,Jul,31,2013,Hourly Wages,,"$1,190.00"
48,J.F. Drake State,90005965,ROXANNE D RICHARDSON,Jul,31,2013,Support Personnel Salaries - S,UNRESTRICTED,"$3,079.83"
48,J.F. Drake State,90005966,BEVERLY NICOLE RICKS-CULB,Jul,31,2013,Hourly Wages,,$430.00
48,J.F. Drake State,90005967,JAMES T ROBERTS,Jul,31,2013,Instructional Salaries - Tempo,,"$1,980.00"
48,J.F. Drake State,90005968,WENDY L ROBERTS,Jul,31,2013,Other Professional Salaries -,ADULT ED,"$3,750.00"
48,J.F. Drake State,90005968,WENDY L ROBERTS,Jul,31,2013,Employee Taxable Per Diem,ADULT ED,$30.00
48,J.F. Drake State,90005969,LAODECEA T SEAY,Jul,31,2013,Support Personnel Salaries - S,UNRESTRICTED,"$3,452.08"
48,J.F. Drake State,90005969,LAODECEA T SEAY,Jul,31,2013,In-State Travel,,$33.75
48,J.F. Drake State,90005971,ROBERT ANDREW SHARP,Jul,31,2013,Hourly Wages,,$600.00
48,J.F. Drake State,90005972,JACQUELINE M SHIVERS,Jul,31,2013,Instructional Salaries - Tempo,ADULT ED,"$1,662.50"
48,J.F. Drake State,90005972,JACQUELINE M SHIVERS,Jul,31,2013,In-State Travel,,$237.50
48,J.F. Drake State,90005973,LESLEY SHOTTS,Jul,31,2013,Instructional Salaries - Tempo,,"$4,750.00"
48,J.F. Drake State,90005975,AMANDA R SIMPSON,Jul,31,2013,Support Personnel Salaries - S,UNRESTRICTED,"$2,112.00"
48,J.F. Drake State,90005976,PATRICIA GORDON SIMS,Jul,31,2013,Administrative Salaries- Sched,UNRESTRICTED,"$9,245.09"
48,J.F. Drake State,90005976,PATRICIA GORDON SIMS,Jul,31,2013,In-State Travel,,$11.25
48,J.F. Drake State,90005977,BHESHAM JERRY SINGH,Jul,31,2013,Hourly Wages,,"$1,582.50"
48,J.F. Drake State,90005978,DELORIS A SMOTHERS,Jul,31,2013,Instructional Salaries - Tempo,UNRESTRICTED,$450.00
48,J.F. Drake State,90005978,DELORIS A SMOTHERS,Jul,31,2013,Instructional Salaries - Regul,UNRESTRICTED,"$6,765.33"
48,J.F. Drake State,90005979,JULIE P SPURGEON,Jul,31,2013,Support Personnel Salaries - S,UNRESTRICTED,"$3,303.17"
48,J.F. Drake State,90005979,JULIE P SPURGEON,Jul,31,2013,In-State Travel,,$33.75
48,J.F. Drake State,90005980,JASON M STEPHENS,Jul,31,2013,Hourly Wages,STUDENT SUPPORT SERVICES,"$1,053.75"
48,J.F. Drake State,90005981,JON D STEPHENSON,Jul,31,2013,Support Personnel Salaries - S,,"$3,392.68"
48,J.F. Drake State,90005982,VERLINDSEY B STEWART,Jul,31,2013,Instructional Salaries - Regul,UNRESTRICTED,"$6,493.67"
48,J.F. Drake State,90005983,KIMBEL LAURENCE STROUT,Jul,31,2013,Instructional Salaries - Tempo,,$600.00
48,J.F. Drake State,90005984,KIMBERLY DEE SULLIVAN,Jul,31,2013,Hourly Wages,,$600.00
48,J.F. Drake State,90005985,SHANNON SUMMERS,Jul,31,2013,Instructional Salaries - Tempo,ADULT ED,$396.00
48,J.F. Drake State,90005986,NATHAN W TATE JR,Jul,31,2013,Hourly Wages,,"$1,260.00"
48,J.F. Drake State,90005987,DOCQUINN N TAYLOR,Jul,31,2013,Instructional Salaries - Tempo,UNRESTRICTED,$450.00
48,J.F. Drake State,90005987,DOCQUINN N TAYLOR,Jul,31,2013,Hourly Wages,STUDENT SUPPORT SERVICES,$862.50
48,J.F. Drake State,90005988,MALCOLM G TAYLOR,Jul,31,2013,Instructional Salaries - Tempo,UNRESTRICTED,$900.00
48,J.F. Drake State,90005989,FORREST BRYANT TEAGUE,Jul,31,2013,Hourly Wages,UNRESTRICTED,"$3,030.00"
48,J.F. Drake State,90005990,DAWN G THOMAS,Jul,31,2013,Hourly Wages,,$760.00
48,J.F. Drake State,90005991,JOY D TORNQUIST,Jul,31,2013,Instructional Salaries - Tempo,UNRESTRICTED,"$2,160.00"
48,J.F. Drake State,90005992,KRISTIN TREADWAY,Jul,31,2013,Support Personnel Salaries - S,,"$2,931.17"
48,J.F. Drake State,90005993,ELIZABETH A TUGGLE,Jul,31,2013,Instructional Salaries - Tempo,ADULT ED,"$1,248.00"
48,J.F. Drake State,90005994,GILBERT T TURLEY,Jul,31,2013,Other Professional Salaries -,UNRESTRICTED,"$6,886.58"
48,J.F. Drake State,90005995,LARRY CHARLES TURNER,Jul,31,2013,Hourly Wages,,$900.00
48,J.F. Drake State,90005996,KAROL C WADDELL,Jul,31,2013,Hourly Wages,READY TO WORK,"$2,070.00"
48,J.F. Drake State,90005997,ANITA G WALKER,Jul,31,2013,Hourly Wages,,"$1,600.00"
48,J.F. Drake State,90005998,LETITIA E WALKER,Jul,31,2013,Support Personnel Salaries - S,UNRESTRICTED,"$3,229.42"
48,J.F. Drake State,90005999,DEVONA WARNER,Jul,31,2013,Hourly Wages,,$960.00
48,J.F. Drake State,90006000,MICHELLE L WATKINS,Jul,31,2013,Instructional Salaries - Tempo,,$480.00
48,J.F. Drake State,90006001,BETH S WESTER,Jul,31,2013,Other Professional Salaries -,,"$6,013.50"
48,J.F. Drake State,90006001,BETH S WESTER,Jul,31,2013,In-State Travel,,$11.25
48,J.F. Drake State,90006002,DWAYNIA WILKERSON,Jul,31,2013,Instructional Salaries - Tempo,UNRESTRICTED,$150.00
48,J.F. Drake State,90006003,CALANDRA S WILLIAMS,Jul,31,2013,Instructional Salaries - Tempo,ADULT ED,$483.00
48,J.F. Drake State,90006004,DAYMETRIE D WILLIAMS,Jul,31,2013,Hourly Wages,,$937.50
48,J.F. Drake State,90006005,KELLY L WILLIAMS,Jul,31,2013,Instructional Salaries - Tempo,UNRESTRICTED,"$1,350.00"
48,J.F. Drake State,90006006,BRANDI G WINCHESTER,Jul,31,2013,Instructional Salaries - Regul,UNRESTRICTED,"$3,617.83"
48,J.F. Drake State,90006007,GEORGE R WINN,Jul,31,2013,Instructional Salaries - Regul,UNRESTRICTED,"$5,261.33"
48,J.F. Drake State,90006008,CHARLES R WINTER,Jul,31,2013,Support Personnel Salaries - S,UNRESTRICTED,"$1,889.83"
48,J.F. Drake State,90006009,DELESHIA D YOUNG,Jul,31,2013,Support Personnel Salaries - S,UNRESTRICTED,"$3,079.83"
48,J.F. Drake State,107248,CONDITIONED AIR SOLUTIONS,Jul,30,2013,Maintenance and Repairs,UNRESTRICTED,"$3,173.98"
48,J.F. Drake State,107249,CROSS TOMEKA,Jul,30,2013,In-State Travel,UNRESTRICTED,$123.02
48,J.F. Drake State,107250,DARRELL ECHOLS,Jul,30,2013,Out-of-State Travel,UNRESTRICTED,$204.44
48,J.F. Drake State,107251,"DYNAMIC SECURITY, INC.",Jul,30,2013,Other Contractual Services,UNRESTRICTED,"$5,940.48"
48,J.F. Drake State,107252,FOLLET SOFTWARE COMPANY,Jul,30,2013,Computer Software,UNRESTRICTED,$959.00
48,J.F. Drake State,107253,GED TESTING PROGRAM,Jul,30,2013,Materials and Supplies,UNRESTRICTED,$108.00
48,J.F. Drake State,107254,DONYALE JONES,Jul,30,2013,In-State Travel,UNRESTRICTED,$124.02
48,J.F. Drake State,107255,KOORSEN PROTECTION SERVIC,Jul,30,2013,Maintenance and Repairs,UNRESTRICTED,$703.21
48,J.F. Drake State,107256,PROFESSIONAL SALES,Jul,30,2013,Institutional Use,,$825.00
48,J.F. Drake State,107257,MR. ROOTER,Jul,30,2013,Maintenance and Repairs,UNRESTRICTED,$112.50
48,J.F. Drake State,107258,SCHINDLER ELEVATOR CORP,Jul,30,2013,Other Contractual Services,UNRESTRICTED,"$1,102.05"
48,J.F. Drake State,107259,SEXTON WELDING SUPPLY,Jul,30,2013,Materials and Supplies,,"$9,545.66"
48,J.F. Drake State,107259,SEXTON WELDING SUPPLY,Jul,30,2013,Institutional Use,,"$2,046.00"
48,J.F. Drake State,107260,SYSCO CENTRAL ALABAMA,Jul,30,2013,Purchases for Resale,UNRESTRICTED,$540.70
48,J.F. Drake State,107261,VILLAGE OF PROMISE,Jul,30,2013,Advertising and Promotions,UNRESTRICTED,"$1,000.00"
48,J.F. Drake State,209972,DOMINO'S PIZZA,Jul,30,2013,Materials and Supplies,,$82.00
48,J.F. Drake State,209973,GAUMARD SCIENTIFIC COMPAN,Jul,30,2013,Materials and Supplies,,$102.56
48,J.F. Drake State,209974,KATIE CHANCE,Jul,30,2013,In-State Travel,,$219.26
48,J.F. Drake State,209975,KHALID HOLMES,Jul,30,2013,In-State Travel,,$177.42
48,J.F. Drake State,209976,MICHIGAN TECH UNIVERSITY,Jul,30,2013,Institutional Use,,"$7,969.10"
48,J.F. Drake State,209977,NICOLE BARNETT,Jul,30,2013,Out-of-State Travel,,$33.00
48,J.F. Drake State,209978,PODS STORAGE,Jul,30,2013,Other Contractual Services,,$159.00
48,J.F. Drake State,209979,PROFESSIONAL SALES CO,Jul,30,2013,Institutional Use,,$340.00
48,J.F. Drake State,209980,SACS/COC ANNUAL MEETING,Jul,30,2013,Out-of-State Travel,,"$4,965.00"
48,J.F. Drake State,209981,STAPLES BUS ADVANTAGE,Jul,30,2013,Materials and Supplies,,$34.15
48,J.F. Drake State,107343,ALABAMA TWO-YEAR LIB ASSO,Jul,29,2013,Memberships,UNRESTRICTED,$25.00
48,J.F. Drake State,107344,BUSINESS COUNCIL OF AL,Jul,29,2013,Memberships,UNRESTRICTED,$550.00
48,J.F. Drake State,107345,CDW-G,Jul,29,2013,Materials and Supplies,ADULT ED,"$3,091.16"
48,J.F. Drake State,107345,CDW-G,Jul,29,2013,Institutional Use,ADULT ED,"$13,245.66"
48,J.F. Drake State,107346,CHEA,Jul,29,2013,Memberships,UNRESTRICTED,$550.00
48,J.F. Drake State,107347,INTERNATIONAL CODE COUNCI,Jul,29,2013,Materials and Supplies,,"$1,081.60"
48,J.F. Drake State,107348,MADISON COUNTY HEALTH DEP,Jul,29,2013,Other Professional Fees,UNRESTRICTED,$85.00
48,J.F. Drake State,107197,BANKS INDUSTRIES INC.,Jul,26,2013,Materials and Supplies,UNRESTRICTED,$40.00
48,J.F. Drake State,107197,BANKS INDUSTRIES INC.,Jul,26,2013,Materials and Supplies,ARMY GRANT,$705.95
48,J.F. Drake State,107198,BERNEY OFFICE SOLUTIONS,Jul,26,2013,Other Contractual Services,UNRESTRICTED,$460.32
48,J.F. Drake State,107199,DEPT OF FINANCE,Jul,26,2013,Communications,UNRESTRICTED,$45.78
48,J.F. Drake State,107200,"DYNAMIC SECURITY, INC.",Jul,26,2013,Other Contractual Services,UNRESTRICTED,"$12,099.36"
48,J.F. Drake State,107201,ELSEVIER/HESI,Jul,26,2013,Purchases for Resale,AUXILIARY,$855.00
48,J.F. Drake State,107202,HORACE FRANKLIN,Jul,26,2013,Communications,UNRESTRICTED,$545.13
48,J.F. Drake State,107203,IRLEN INSTITUTE,Jul,26,2013,Materials and Supplies,ADULT ED,$88.95
48,J.F. Drake State,107204,LOOMIS,Jul,26,2013,Other Contractual Services,UNRESTRICTED,$140.62
48,J.F. Drake State,107205,SUCCESS MARKETING,Jul,26,2013,Advertising and Promotions,UNRESTRICTED,$940.00
48,J.F. Drake State,107206,THE ALABAMA LAWNMASTERS,Jul,26,2013,Other Contractual Services,UNRESTRICTED,"$3,045.00"
48,J.F. Drake State,107206,THE ALABAMA LAWNMASTERS,Jul,26,2013,Other Contractual Services,ARMY GRANT,$650.00
48,J.F. Drake State,209960,CDW-G,Jul,26,2013,Materials and Supplies,,"$1,899.06"
48,J.F. Drake State,209961,"CERTIPORT, INC",Jul,26,2013,Materials and Supplies,,$990.00
48,J.F. Drake State,209962,"HENRY, KARL W. SR.",Jul,26,2013,Out-of-State Travel,,$687.48
48,J.F. Drake State,209963,JOY DUKEMINEER,Jul,26,2013,Materials and Supplies,,$60.83
48,J.F. Drake State,209964,"OFFICE DEPOT, INC.",Jul,26,2013,Materials and Supplies,,"$2,203.13"
48,J.F. Drake State,209965,PENSACOLA STATE COLLEGE,Jul,26,2013,Other Contractual Services,,"$1,200.00"
48,J.F. Drake State,209966,SCANTRON CORPORATION,Jul,26,2013,Service Contracts on Equipment,,$984.00
48,J.F. Drake State,209967,WESTER BETH,Jul,26,2013,In-State Travel,,$20.00
48,J.F. Drake State,107194,RENAISSANCE AUSTIN HOTEL,Jul,18,2013,Out-of-State Travel,,"$1,370.80"
48,J.F. Drake State,107171,ACT,Jul,17,2013,Materials and Supplies,UNRESTRICTED,$918.00
48,J.F. Drake State,107172,AL DEANS STUDENT/AFFAIRS,Jul,17,2013,Memberships,UNRESTRICTED,$275.00
48,J.F. Drake State,107173,BALDWIN COOKE COMPANY,Jul,17,2013,Materials and Supplies,UNRESTRICTED,$504.60
48,J.F. Drake State,107174,BANKS INDUSTRIES INC.,Jul,17,2013,Materials and Supplies,UNRESTRICTED,"$1,396.80"
48,J.F. Drake State,107175,BANKS INDUSTRIES INC.,Jul,17,2013,Materials and Supplies,UNRESTRICTED,$197.70
48,J.F. Drake State,107176,CHEVRON CARD SERVICES,Jul,17,2013,Gasoline and Oil - Motor Vehic,UNRESTRICTED,$183.06
48,J.F. Drake State,107177,COPELAND CLEANERS,Jul,17,2013,Other Contractual Services,UNRESTRICTED,$124.12
48,J.F. Drake State,107178,ELSEVIER/HESI,Jul,17,2013,Purchases for Resale,AUXILIARY,"$2,166.50"
48,J.F. Drake State,107180,HIGH GROUND SOLUTIONS,Jul,17,2013,Service Contracts on Equipment,UNRESTRICTED,"$3,375.00"
48,J.F. Drake State,107181,KEYPLUS SCHOOL PRODUCTS,Jul,17,2013,Institutional Use,UNRESTRICTED,$769.06
48,J.F. Drake State,107182,KOORSEN PROTECTION SERVIC,Jul,17,2013,Other Contractual Services,UNRESTRICTED,$189.20
48,J.F. Drake State,107183,LEADERSHIP FOR QUEENS,Jul,17,2013,Out-of-State Travel,UNRESTRICTED,$325.00
48,J.F. Drake State,107184,LOTZ VALERIE,Jul,17,2013,Institutional Use,ADULT ED,$59.57
48,J.F. Drake State,107185,LOWE'S,Jul,17,2013,Materials and Supplies,,"$5,745.75"
48,J.F. Drake State,107186,MINUTEMAN PRESS,Jul,17,2013,Other Contractual Services,UNRESTRICTED,$239.88
48,J.F. Drake State,107187,PEARSON,Jul,17,2013,Materials and Supplies,,$72.18
48,J.F. Drake State,107188,RONALD EGSON,Jul,17,2013,Out-of-State Travel,UNRESTRICTED,$186.54
48,J.F. Drake State,107189,SAFETY KLEEN CORPORATION,Jul,17,2013,Other Contractual Services,UNRESTRICTED,$654.74
48,J.F. Drake State,107190,SUCCESS MARKETING,Jul,17,2013,Advertising and Promotions,UNRESTRICTED,"$11,346.00"
48,J.F. Drake State,107191,THE PEABODY MEMPHIS,Jul,17,2013,Out-of-State Travel,UNRESTRICTED,$540.99
48,J.F. Drake State,107192,"TRUESCREEN, INC",Jul,17,2013,Other Contractual Services,UNRESTRICTED,$104.00
48,J.F. Drake State,107193,"WOODY ANDERSON FORD, INC.",Jul,17,2013,Maintenance and Repairs,UNRESTRICTED,$87.50
48,J.F. Drake State,209944,"CLIFT, CARLA",Jul,17,2013,In-State Travel,,$511.96
48,J.F. Drake State,209945,GAIL WALKER,Jul,17,2013,Materials and Supplies,,$31.25
48,J.F. Drake State,209945,GAIL WALKER,Jul,17,2013,In-State Travel,,$136.73
48,J.F. Drake State,209946,GREY HOUSE PUB,Jul,17,2013,Books,,$456.00
48,J.F. Drake State,209947,"HENRY, KARL W. SR.",Jul,17,2013,In-State Travel,,$219.50
48,J.F. Drake State,209948,HOMEWOOD SUITES,Jul,17,2013,Out-of-State Travel,,$516.00
48,J.F. Drake State,209949,JOY DUKEMINEER,Jul,17,2013,In-State Travel,,$98.31
48,J.F. Drake State,209950,NORTH AL ENGRAVING&STAMP,Jul,17,2013,Materials and Supplies,,$29.00
48,J.F. Drake State,209951,PESI HEALTHCARE,Jul,17,2013,Materials and Supplies,,$52.50
48,J.F. Drake State,209952,"RAYMOND, ALICE",Jul,17,2013,Out-of-State Travel,,"$1,304.49"
48,J.F. Drake State,209953,SEXTON WELDING SUPPLY,Jul,17,2013,Furniture and Equipment,,"$15,401.44"
48,J.F. Drake State,209954,STAPLES BUS ADVANTAGE,Jul,17,2013,Materials and Supplies,,"$1,393.20"
48,J.F. Drake State,209955,TERESA FARNUM & ASSOC.,Jul,17,2013,Out-of-State Travel,,$724.00
48,J.F. Drake State,209956,TRANE COMPANY,Jul,17,2013,Maintenance and Repairs,,"$5,203.14"
48,J.F. Drake State,209957,TUSCALOOSA LIBRARY BINDER,Jul,17,2013,Materials and Supplies,,"$3,491.10"
48,J.F. Drake State,209958,UNIVERSITY OF ALABAMA,Jul,17,2013,In-State Travel,,$95.00
48,J.F. Drake State,209959,WESTER BETH,Jul,17,2013,In-State Travel,,$176.88
48,J.F. Drake State,209808,AMERICAN WELDING SOCIETY,Jul,11,2013,Memberships,,$246.00
48,J.F. Drake State,209809,CDW-G,Jul,11,2013,Materials and Supplies,,$133.52
48,J.F. Drake State,209810,JON STEPHENSON,Jul,11,2013,In-State Travel,,$218.25
48,J.F. Drake State,209811,MICHIGAN TECH UNIVERSITY,Jul,11,2013,Institutional Use,,"$3,984.55"
48,J.F. Drake State,209813,POCKET NURSE,Jul,11,2013,Materials and Supplies,,"$2,161.35"
48,J.F. Drake State,209814,RENZO'S CATERING,Jul,11,2013,Other Contractual Services,,"$1,000.45"
48,J.F. Drake State,209815,RONALD EGSON,Jul,11,2013,In-State Travel,,$158.65
48,J.F. Drake State,209816,SEXTON WELDING SUPPLY,Jul,11,2013,Materials and Supplies,,$442.50
48,J.F. Drake State,209817,4IMPRINT,Jul,11,2013,Materials and Supplies,,$418.71
48,J.F. Drake State,107148,CDW-G,Jul,11,2013,Construction in Progress,PLANT FUNDS,"$22,345.12"
48,J.F. Drake State,107148,CDW-G,Jul,11,2013,Other Contractual Services,UNRESTRICTED,$873.74
48,J.F. Drake State,107148,CDW-G,Jul,11,2013,Computer Software,UNRESTRICTED,"$1,454.08"
48,J.F. Drake State,107149,CONDITIONED AIR SOLUTIONS,Jul,11,2013,Maintenance and Repairs,UNRESTRICTED,$150.00
48,J.F. Drake State,107150,DENISE GAYMON,Jul,11,2013,Out-of-State Travel,UNRESTRICTED,$200.00
48,J.F. Drake State,107151,"DYNAMIC SECURITY, INC.",Jul,11,2013,Other Contractual Services,UNRESTRICTED,"$5,940.48"
48,J.F. Drake State,107152,"HENRY, KARL W. SR.",Jul,11,2013,In-State Travel,,$114.14
48,J.F. Drake State,107154,LARDELL GOODLOE,Jul,11,2013,In-State Travel,,$114.14
48,J.F. Drake State,107155,LEADERSHIP FOR QUEENS,Jul,11,2013,Out-of-State Travel,UNRESTRICTED,$800.00
48,J.F. Drake State,107156,LOTZ VALERIE,Jul,11,2013,Institutional Use,ADULT ED,$44.07
48,J.F. Drake State,107157,LOWE'S,Jul,11,2013,Materials and Supplies,,"$17,145.67"
48,J.F. Drake State,107158,LOWE'S,Jul,11,2013,Materials and Supplies,UNRESTRICTED,$63.92
48,J.F. Drake State,107160,"MCALPINE, HELEN",Jul,11,2013,In-State Travel,UNRESTRICTED,$826.38
48,J.F. Drake State,107162,SCOTTSBORO DAILY SENTINEL,Jul,11,2013,Advertising and Promotions,UNRESTRICTED,"$2,037.50"
48,J.F. Drake State,107163,SCREENVISION,Jul,11,2013,Advertising and Promotions,UNRESTRICTED,$496.00
48,J.F. Drake State,107164,SYSCO CENTRAL ALABAMA,Jul,11,2013,Purchases for Resale,UNRESTRICTED,$516.38
48,J.F. Drake State,107165,THE PEABODY MEMPHIS,Jul,11,2013,Out-of-State Travel,UNRESTRICTED,$973.98
48,J.F. Drake State,107166,TN VALLEY JAZZ SOCIETY,Jul,11,2013,Materials and Supplies,UNRESTRICTED,$150.00
48,J.F. Drake State,107167,VERIZON WIRELESS,Jul,11,2013,Communications,UNRESTRICTED,"$1,808.03"
48,J.F. Drake State,107168,WENDY ROBERTS,Jul,11,2013,Institutional Use,ADULT ED,$218.45
48,J.F. Drake State,107125,ACT,Jul,3,2013,Materials and Supplies,UNRESTRICTED,$378.00
48,J.F. Drake State,107126,ALAPCAE,Jul,3,2013,In-State Travel,,"$1,800.00"
48,J.F. Drake State,107127,ALAPCAE,Jul,3,2013,Materials and Supplies,UNRESTRICTED,$125.00
48,J.F. Drake State,107128,ALAPCAE,Jul,3,2013,Materials and Supplies,UNRESTRICTED,$125.00
48,J.F. Drake State,107129,AMERICAN COUNCIL OF EDUCA,Jul,3,2013,Materials and Supplies,UNRESTRICTED,$12.00
48,J.F. Drake State,107130,BERNEY OFFICE SOLUTIONS,Jul,3,2013,Other Contractual Services,UNRESTRICTED,$187.02
48,J.F. Drake State,107131,CASTLEBRANCH,Jul,3,2013,Purchases for Resale,AUXILIARY,$930.00
48,J.F. Drake State,107132,COPELAND CLEANERS,Jul,3,2013,Institutional Use,UNRESTRICTED,$105.06
48,J.F. Drake State,107134,"DYNAMIC SECURITY, INC.",Jul,3,2013,Other Contractual Services,UNRESTRICTED,"$5,940.48"
48,J.F. Drake State,107135,NAFEO,Jul,3,2013,Memberships,UNRESTRICTED,"$2,000.00"
48,J.F. Drake State,107136,"OFFICE DEPOT, INC.",Jul,3,2013,Materials and Supplies,UNRESTRICTED,$354.58
48,J.F. Drake State,107136,"OFFICE DEPOT, INC.",Jul,3,2013,Materials and Supplies,ADULT ED,$689.77
48,J.F. Drake State,107138,PITNEY BOWES,Jul,3,2013,Postage,UNRESTRICTED,$630.00
48,J.F. Drake State,107139,SUCCESS MARKETING,Jul,3,2013,Advertising and Promotions,,"$1,123.77"
48,J.F. Drake State,209782,ACCSISA                .,Jul,3,2013,In-State Travel,,$900.00
48,J.F. Drake State,209783,NICOLE BELL,Jul,3,2013,In-State Travel,,$150.00
48,J.F. Drake State,209784,BERNEY OFFICE SOLUTIONS,Jul,3,2013,Materials and Supplies,,$196.00
48,J.F. Drake State,209785,KEMBA CHAMBERS,Jul,3,2013,In-State Travel,,$225.00
48,J.F. Drake State,209786,COPELAND CLEANERS,Jul,3,2013,Other Contractual Services,STUDENT SUPPORT SERVICES,$357.93
48,J.F. Drake State,209787,DENISE GAYMON,Jul,3,2013,In-State Travel,,$366.96
48,J.F. Drake State,209788,VISION BEAUTY DIST,Jul,3,2013,Materials and Supplies,,"$1,060.56"
48,J.F. Drake State,209790,"ELLUCIAN CO,LP",Jul,3,2013,Other Contractual Services,,"$17,716.00"
48,J.F. Drake State,209791,FAIRCHILD TIMOTHY,Jul,3,2013,In-State Travel,,$300.00
48,J.F. Drake State,209792,HOMEWOOD SUITES,Jul,3,2013,Out-of-State Travel,,$342.48
48,J.F. Drake State,209793,DONYALE JONES,Jul,3,2013,In-State Travel,,$42.94
48,J.F. Drake State,209794,KIBLER THOMAS,Jul,3,2013,In-State Travel,,$300.00
48,J.F. Drake State,209795,KUDER,Jul,3,2013,Computer Software,,"$5,368.64"
48,J.F. Drake State,209796,NICK KSEPKA,Jul,3,2013,In-State Travel,,$733.92
48,J.F. Drake State,209797,"OFFICE DEPOT, INC.",Jul,3,2013,Materials and Supplies,,"$2,544.86"
48,J.F. Drake State,209799,ROGER CHEN,Jul,3,2013,In-State Travel,,$625.38
48,J.F. Drake State,209800,RONALD EGSON,Jul,3,2013,Out-of-State Travel,,$152.94
48,J.F. Drake State,209801,RYAN GREEN,Jul,3,2013,In-State Travel,,$494.78
48,J.F. Drake State,209802,"SIMS, PATRICIA G.",Jul,3,2013,In-State Travel,,$305.73
48,J.F. Drake State,209803,UNIVERSITY OF NEW MEXICO,Jul,3,2013,Institutional Use,,"$5,309.77"
48,J.F. Drake State,90005644,JOY M AGEE,Jun,28,2013,Hourly Wages,,$480.00
48,J.F. Drake State,90005645,DEMICA SHERMIR ALLISON,Jun,28,2013,Hourly Wages,,$900.00
48,J.F. Drake State,90005646,TRINA A ALTMAN,Jun,28,2013,Instructional Salaries - Regul,UNRESTRICTED,"$3,753.42"
48,J.F. Drake State,90005647,CEDRIC D ARRINGTON SR,Jun,28,2013,Other Professional Salaries -,UNRESTRICTED,"$6,450.08"
48,J.F. Drake State,90005647,CEDRIC D ARRINGTON SR,Jun,28,2013,In-State Travel,,$33.75
48,J.F. Drake State,90005648,KEVIN STEVEN ATCHLEY,Jun,28,2013,Hourly Wages,,$750.00
48,J.F. Drake State,90005649,LYSA AUGUSTIN,Jun,28,2013,Instructional Salaries - Tempo,ADULT ED,$462.00
48,J.F. Drake State,90005651,CAROLYN AVRITTE,Jun,28,2013,Instructional Salaries - Tempo,UNRESTRICTED,"$1,500.00"
48,J.F. Drake State,90005652,ZELDA M AZOR,Jun,28,2013,Instructional Salaries - Tempo,UNRESTRICTED,"$1,500.00"
48,J.F. Drake State,90005653,NELSON E BARNES,Jun,28,2013,Instructional Salaries - Tempo,UNRESTRICTED,$450.00
48,J.F. Drake State,90005654,NICOLE CLARESE BARNETT,Jun,28,2013,Employee Taxable Per Diem,ADULT ED,$30.00
48,J.F. Drake State,90005654,NICOLE CLARESE BARNETT,Jun,28,2013,Other Professional Salaries -,,"$5,743.59"
48,J.F. Drake State,90005655,BEN BATTLE,Jun,28,2013,Instructional Salaries - Regul,UNRESTRICTED,"$5,198.33"
48,J.F. Drake State,90005656,ANGELA NICOLE BELL,Jun,28,2013,Instructional Salaries - Regul,UNRESTRICTED,"$5,147.00"
48,J.F. Drake State,90005658,PATRICE BIVINS,Jun,28,2013,Support Personnel Salaries - S,,"$2,484.00"
48,J.F. Drake State,90005659,BOEDVAR INGI BOEDVARSSON,Jun,28,2013,Hourly Wages,,$650.00
48,J.F. Drake State,90005660,CHERYL BRAWLEY-KELLY,Jun,28,2013,Instructional Salaries - Tempo,UNRESTRICTED,$850.00
48,J.F. Drake State,90005661,LATASHA R BROWN,Jun,28,2013,Hourly Wages,,"$1,920.00"
48,J.F. Drake State,90005662,BRUCE A BULLUCK,Jun,28,2013,Other Professional Salaries -,UNRESTRICTED,"$6,450.08"
48,J.F. Drake State,90005663,KWAME OMARIO BURNETT,Jun,28,2013,Hourly Wages,,$480.00
48,J.F. Drake State,90005664,KHALILAH BURTON,Jun,28,2013,Instructional Salaries - Tempo,UNRESTRICTED,"$1,500.00"
48,J.F. Drake State,90005665,DERICK R CARPENAY,Jun,28,2013,Instructional Salaries - Tempo,UNRESTRICTED,$450.00
48,J.F. Drake State,90005665,DERICK R CARPENAY,Jun,28,2013,Hourly Wages,,$480.00
48,J.F. Drake State,90005666,KEMBA CHAMBERS,Jun,28,2013,Other Professional Salaries -,UNRESTRICTED,"$7,360.42"
48,J.F. Drake State,90005667,KATIE E CHANCE,Jun,28,2013,Support Personnel Salaries - S,UNRESTRICTED,"$3,452.08"
48,J.F. Drake State,90005668,ROGER CHEN,Jun,28,2013,Hourly Wages,,"$3,423.00"
48,J.F. Drake State,90005669,ADAM CLARK,Jun,28,2013,Instructional Salaries - Regul,UNRESTRICTED,"$4,847.00"
48,J.F. Drake State,90005670,TASKA S CLARK,Jun,28,2013,Support Personnel Salaries - S,UNRESTRICTED,"$2,262.08"
48,J.F. Drake State,90005672,CARLA R CLIFT,Jun,28,2013,Other Professional Salaries -,UNRESTRICTED,"$5,609.75"
48,J.F. Drake State,90005673,RICHARD COLLIE,Jun,28,2013,Other Professional Salaries -,STUDENT SUPPORT SERVICES,"$3,750.00"
48,J.F. Drake State,90005674,TOMACENIA CHANTRELL CROSB,Jun,28,2013,Hourly Wages,,$715.00
48,J.F. Drake State,90005675,TOMEKA CROSS,Jun,28,2013,Support Personnel Salaries - S,UNRESTRICTED,"$2,187.33"
48,J.F. Drake State,90005676,DEIONE L CRUTCHER,Jun,28,2013,Hourly Wages,ADULT ED,"$1,237.50"
48,J.F. Drake State,90005677,MATTIE D DAVIS,Jun,28,2013,Instructional Salaries - Regul,UNRESTRICTED,"$6,157.00"
48,J.F. Drake State,90005678,BRANDIE A DEL VALLE,Jun,28,2013,Instructional Salaries - Tempo,UNRESTRICTED,$555.00
48,J.F. Drake State,90005680,MARLO DRAKE,Jun,28,2013,Support Personnel Salaries - S,UNRESTRICTED,"$2,477.38"
48,J.F. Drake State,90005680,MARLO DRAKE,Jun,28,2013,Support Personnel Salaries - S,,$825.79
48,J.F. Drake State,90005682,MARTHA W DUBEY,Jun,28,2013,Hourly Wages,UNRESTRICTED,$318.75
48,J.F. Drake State,90005683,AMELIA J DUKEMINEER,Jun,28,2013,Hourly Wages,,"$1,820.00"
48,J.F. Drake State,90005684,DARRELL J ECHOLS,Jun,28,2013,Instructional Salaries - Regul,UNRESTRICTED,"$4,232.33"
48,J.F. Drake State,90005684,DARRELL J ECHOLS,Jun,28,2013,In-State Travel,UNRESTRICTED,$11.25
48,J.F. Drake State,90005686,VERNESSA M EDWARDS,Jun,28,2013,Hourly Wages,,$480.00
48,J.F. Drake State,90005687,RONALD E EGSON,Jun,28,2013,Instructional Salaries - Tempo,UNRESTRICTED,"$4,506.67"
48,J.F. Drake State,90005688,JAMES J EISNER,Jun,28,2013,Support Personnel Salaries - S,UNRESTRICTED,"$2,633.83"
48,J.F. Drake State,90005688,JAMES J EISNER,Jun,28,2013,In-State Travel,,$33.75
48,J.F. Drake State,90005689,ROSELINE C ELIKE,Jun,28,2013,Instructional Salaries - Tempo,UNRESTRICTED,$750.00
48,J.F. Drake State,90005690,LESLEY-ANNE TOYO ENG,Jun,28,2013,Hourly Wages,UNRESTRICTED,"$1,870.00"
48,J.F. Drake State,90005691,TIMOTHY J FAIRCHILD,Jun,28,2013,Hourly Wages,,"$2,336.00"
48,J.F. Drake State,90005692,AVA D FARR,Jun,28,2013,Instructional Salaries - Regul,,"$4,613.63"
48,J.F. Drake State,90005693,VICTORIA FARRAR LONG,Jun,28,2013,Support Personnel Salaries - S,UNRESTRICTED,"$2,262.08"
48,J.F. Drake State,90005694,GAIL E FISCH,Jun,28,2013,Instructional Salaries - Regul,ADULT ED,"$6,270.83"
48,J.F. Drake State,90005695,EDWIN T FORBES,Jun,28,2013,Instructional Salaries - Regul,UNRESTRICTED,"$9,085.58"
48,J.F. Drake State,90005696,HORACE L FRANKLIN JR,Jun,28,2013,Administrative Salaries- Sched,UNRESTRICTED,"$7,165.50"
48,J.F. Drake State,90005697,MATTIE B FREEMAN,Jun,28,2013,Instructional Salaries - Tempo,UNRESTRICTED,$840.00
48,J.F. Drake State,90005698,YIBELI GALINDO-BAIRD,Jun,28,2013,Other Professional Salaries -,UNRESTRICTED,"$4,000.00"
48,J.F. Drake State,90005699,DENISE CLEOSHI GAYMON,Jun,28,2013,Other Professional Salaries -,,"$4,152.75"
48,J.F. Drake State,90005700,SYMMETRIS K GOHANNA,Jun,28,2013,Instructional Salaries - Regul,UNRESTRICTED,"$10,965.66"
48,J.F. Drake State,90005701,LARDELL GOODLOE JR,Jun,28,2013,Instructional Salaries - Tempo,,"$4,646.33"
48,J.F. Drake State,90005702,TIFFANY R GREEN,Jun,28,2013,Support Personnel Salaries - S,,"$3,303.17"
48,J.F. Drake State,90005703,TIMOTHY RYAN GREEN,Jun,28,2013,Instructional Salaries - Regul,UNRESTRICTED,"$3,818.00"
48,J.F. Drake State,90005703,TIMOTHY RYAN GREEN,Jun,28,2013,Instructional Salaries - Tempo,UNRESTRICTED,$300.00
48,J.F. Drake State,90005704,VICKIE E GREEN,Jun,28,2013,Instructional Salaries - Regul,,"$8,587.25"
48,J.F. Drake State,90005705,ROBERT N GRISSIM,Jun,28,2013,Instructional Salaries - Regul,UNRESTRICTED,"$3,646.17"
48,J.F. Drake State,90005706,CHARLES GROSS,Jun,28,2013,Instructional Salaries - Tempo,UNRESTRICTED,$450.00
48,J.F. Drake State,90005707,PADMAJA GUGGILLA,Jun,28,2013,Hourly Wages,,"$1,920.00"
48,J.F. Drake State,90005708,SAMUEL V GUISHARD,Jun,28,2013,Instructional Salaries - Tempo,UNRESTRICTED,"$1,500.00"
48,J.F. Drake State,90005709,MANELZA CRAWFORD HAMBRICK,Jun,28,2013,Support Personnel Salaries - S,UNRESTRICTED,"$2,485.42"
48,J.F. Drake State,90005710,ARCHIE LEE HAMLET,Jun,28,2013,Hourly Wages,UNRESTRICTED,"$1,056.00"
48,J.F. Drake State,90005711,SHELIA D HAMMON,Jun,28,2013,Instructional Salaries - Regul,UNRESTRICTED,"$5,023.00"
48,J.F. Drake State,90005712,AUNDREA D HANSON,Jun,28,2013,Instructional Salaries - Tempo,UNRESTRICTED,$450.00
48,J.F. Drake State,90005713,GEORGE VICTOR HARLOW III,Jun,28,2013,Hourly Wages,,$487.50
48,J.F. Drake State,90005714,KATRINA J HARRIS,Jun,28,2013,Support Personnel Salaries - S,UNRESTRICTED,$974.50
48,J.F. Drake State,90005714,KATRINA J HARRIS,Jun,28,2013,Support Personnel Salaries - S,,"$2,923.50"
48,J.F. Drake State,90005715,HENRY C HAWKINS,Jun,28,2013,Instructional Salaries - Tempo,SESP,$600.00
48,J.F. Drake State,90005716,CAROLYN HENDERSON,Jun,28,2013,Instructional Salaries - Regul,UNRESTRICTED,"$9,085.58"
48,J.F. Drake State,90005717,ROSALYN ELISE HENDERSON,Jun,28,2013,Hourly Wages,,$350.00
48,J.F. Drake State,90005718,DEXTER R HENRY,Jun,28,2013,Instructional Salaries - Regul,UNRESTRICTED,"$5,951.33"
48,J.F. Drake State,90005718,DEXTER R HENRY,Jun,28,2013,Instructional Salaries - Tempo,SESP,$480.00
48,J.F. Drake State,90005719,KARL W HENRY SR,Jun,28,2013,Instructional Salaries - Regul,UNRESTRICTED,"$6,765.33"
48,J.F. Drake State,90005720,ELBREY WARREN HERRING,Jun,28,2013,Instructional Salaries - Tempo,ADULT ED,$504.00
48,J.F. Drake State,90005721,ISSAC D HINES,Jun,28,2013,Instructional Salaries - Tempo,UNRESTRICTED,"$1,350.00"
48,J.F. Drake State,90005721,ISSAC D HINES,Jun,28,2013,Hourly Wages,,$470.00
48,J.F. Drake State,90005722,DORIS HINTON,Jun,28,2013,Instructional Salaries - Regul,UNRESTRICTED,"$5,023.00"
48,J.F. Drake State,90005723,KHALID HOLMES,Jun,28,2013,Instructional Salaries - Regul,UNRESTRICTED,"$7,340.92"
48,J.F. Drake State,90005724,PORTIA S HOUSTON,Jun,28,2013,Instructional Salaries - Tempo,UNRESTRICTED,"$1,350.00"
48,J.F. Drake State,90005725,JAN J HYMAN,Jun,28,2013,Support Personnel Salaries - S,,"$3,229.00"
48,J.F. Drake State,90005727,NEOKA JANE IVEY,Jun,28,2013,Support Personnel Salaries - S,UNRESTRICTED,"$1,964.25"
48,J.F. Drake State,90005728,TERELL L JACKSON,Jun,28,2013,Support Personnel Salaries - S,UNRESTRICTED,"$2,262.08"
48,J.F. Drake State,90005729,SARAH J JAMAR,Jun,28,2013,Hourly Wages,STUDENT SUPPORT SERVICES,$615.00
48,J.F. Drake State,90005730,VICTORIA L JOINER-MILLER,Jun,28,2013,Instructional Salaries - Tempo,UNRESTRICTED,$450.00
48,J.F. Drake State,90005731,VICTOR G JOLLEY,Jun,28,2013,Instructional Salaries - Tempo,UNRESTRICTED,$750.00
48,J.F. Drake State,90005732,DONYALE D JONES,Jun,28,2013,Support Personnel Salaries - S,UNRESTRICTED,"$3,303.42"
48,J.F. Drake State,90005733,PINEY L JORDAN,Jun,28,2013,Instructional Salaries - Tempo,UNRESTRICTED,"$2,040.00"
48,J.F. Drake State,90005734,NGOZI A KAMALU,Jun,28,2013,Instructional Salaries - Tempo,UNRESTRICTED,"$1,740.00"
48,J.F. Drake State,90005735,JUSTIN M KELLY,Jun,28,2013,Instructional Salaries - Tempo,UNRESTRICTED,$450.00
48,J.F. Drake State,90005735,JUSTIN M KELLY,Jun,28,2013,Hourly Wages,,$900.00
48,J.F. Drake State,90005736,CHERYL P KEMP,Jun,28,2013,Instructional Salaries - Tempo,UNRESTRICTED,"$2,430.00"
48,J.F. Drake State,90005737,THOMAS B KIBLER,Jun,28,2013,Hourly Wages,,"$1,672.50"
48,J.F. Drake State,90005738,NICHOLAS PAUL KSEPKA,Jun,28,2013,Hourly Wages,UNRESTRICTED,"$3,118.50"
48,J.F. Drake State,90005739,JESSICA LAUREN KYLES,Jun,28,2013,Hourly Wages,,$645.00
48,J.F. Drake State,90005740,HONG THUYDUC LAM,Jun,28,2013,Instructional Salaries - Regul,UNRESTRICTED,"$6,495.33"
48,J.F. Drake State,90005741,JOYCE P LAMAR,Jun,28,2013,Support Personnel Salaries - S,UNRESTRICTED,"$4,568.08"
48,J.F. Drake State,90005742,DIANNE T LANZA,Jun,28,2013,Instructional Salaries - Tempo,ADULT ED,$624.00
48,J.F. Drake State,90005743,JOHN CHRISTOPHER LEE JR,Jun,28,2013,Hourly Wages,,$665.00
48,J.F. Drake State,90005744,SHANISSA SHANTE LONDON,Jun,28,2013,Hourly Wages,,$545.00
48,J.F. Drake State,90005745,PAMELA LONG,Jun,28,2013,Instructional Salaries - Tempo,UNRESTRICTED,$900.00
48,J.F. Drake State,90005746,KATHERINE MARIE LONGMORE,Jun,28,2013,Hourly Wages,,$450.00
48,J.F. Drake State,90005747,FRANKLIN ESONO NUMA LONJE,Jun,28,2013,Hourly Wages,,$410.00
48,J.F. Drake State,90005748,VALERIE E LOTZ,Jun,28,2013,Instructional Salaries - Tempo,ADULT ED,$666.00
48,J.F. Drake State,90005749,MICHEAL V MAXTON,Jun,28,2013,Instructional Salaries - Tempo,UNRESTRICTED,$900.00
48,J.F. Drake State,90005750,AUBREY CLAY MCALLISTER,Jun,28,2013,Instructional Salaries - Tempo,UNRESTRICTED,"$1,500.00"
48,J.F. Drake State,90005751,HELEN T MCALPINE,Jun,28,2013,Administrative Salaries- Sched,UNRESTRICTED,"$14,266.42"
48,J.F. Drake State,90005751,HELEN T MCALPINE,Jun,28,2013,President's Expense Allowance,UNRESTRICTED,$200.00
48,J.F. Drake State,90005751,HELEN T MCALPINE,Jun,28,2013,Housing Allowance,UNRESTRICTED,"$1,000.00"
48,J.F. Drake State,90005753,DEMETIUS L MCCARTY,Jun,28,2013,Support Personnel Salaries - S,UNRESTRICTED,"$2,187.58"
48,J.F. Drake State,90005754,DARVIN D MCDANIEL,Jun,28,2013,Instructional Salaries - Tempo,UNRESTRICTED,"$1,050.00"
48,J.F. Drake State,90005755,MISHIKI A MCINTYRE,Jun,28,2013,Hourly Wages,,$395.00
48,J.F. Drake State,90005756,SCOTTY MCLAUGHLIN,Jun,28,2013,Instructional Salaries - Regul,UNRESTRICTED,"$6,893.67"
48,J.F. Drake State,90005757,MARIA YVETTE MEADOR,Jun,28,2013,Support Personnel Salaries - S,STUDENT SUPPORT SERVICES,"$2,559.33"
48,J.F. Drake State,90005758,DEBORAH A MILLING,Jun,28,2013,Instructional Salaries - Regul,UNRESTRICTED,"$11,597.33"
48,J.F. Drake State,90005759,SAMMY J MILTON,Jun,28,2013,Support Personnel Salaries - S,UNRESTRICTED,"$3,452.83"
48,J.F. Drake State,90005760,ACOLEA J MOORE,Jun,28,2013,Instructional Salaries - Tempo,UNRESTRICTED,$450.00
48,J.F. Drake State,90005761,ALFRED CROSHAN MOORE,Jun,28,2013,Instructional Salaries - Tempo,,"$1,080.00"
48,J.F. Drake State,90005761,ALFRED CROSHAN MOORE,Jun,28,2013,Hourly Wages,,"$1,080.00"
48,J.F. Drake State,90005762,MICHAEL M MORRIS,Jun,28,2013,Instructional Salaries - Tempo,,"$2,250.00"
48,J.F. Drake State,90005763,BRUCE D MORRISON,Jun,28,2013,Support Personnel Salaries - S,UNRESTRICTED,"$4,196.17"
48,J.F. Drake State,90005764,JENNIFER O'LINGER,Jun,28,2013,Other Professional Salaries -,UNRESTRICTED,"$6,013.50"
48,J.F. Drake State,90005765,PROMISE C OGWU,Jun,28,2013,Hourly Wages,UNRESTRICTED,"$1,056.00"
48,J.F. Drake State,90005766,AKUA K OPOKU-BOATENG,Jun,28,2013,Support Personnel Salaries - S,,"$2,559.34"
48,J.F. Drake State,90005767,DONALD ORR,Jun,28,2013,Support Personnel Salaries - S,UNRESTRICTED,"$3,824.67"
48,J.F. Drake State,90005768,VALARIE L OWENS,Jun,28,2013,Support Personnel Salaries - S,STUDENT SUPPORT SERVICES,"$2,262.08"
48,J.F. Drake State,90005769,JERROLD DION PHIPPS,Jun,28,2013,Instructional Salaries - Tempo,UNRESTRICTED,"$1,350.00"
48,J.F. Drake State,90005770,INODU TONY PIRI,Jun,28,2013,Instructional Salaries - Tempo,UNRESTRICTED,$450.00
48,J.F. Drake State,90005772,MICHAEL RADDEN,Jun,28,2013,Instructional Salaries - Tempo,UNRESTRICTED,$450.00
48,J.F. Drake State,90005773,ALICE G RAYMOND,Jun,28,2013,Other Professional Salaries -,,"$8,233.59"
48,J.F. Drake State,90005774,JOYCE L RENTZ,Jun,28,2013,Instructional Salaries - Regul,UNRESTRICTED,"$6,251.00"
48,J.F. Drake State,90005774,JOYCE L RENTZ,Jun,28,2013,Instructional Salaries - Tempo,UNRESTRICTED,$450.00
48,J.F. Drake State,90005775,JOHN REUTTER III,Jun,28,2013,Other Professional Salaries -,,"$6,708.92"
48,J.F. Drake State,90005775,JOHN REUTTER III,Jun,28,2013,Other Professional Salaries -,SESP,$344.33
48,J.F. Drake State,90005776,LYSCELLE M REYES,Jun,28,2013,Instructional Salaries - Tempo,UNRESTRICTED,$450.00
48,J.F. Drake State,90005776,LYSCELLE M REYES,Jun,28,2013,Hourly Wages,,"$1,090.00"
48,J.F. Drake State,90005777,ROXANNE D RICHARDSON,Jun,28,2013,Support Personnel Salaries - S,UNRESTRICTED,"$3,079.83"
48,J.F. Drake State,90005778,BEVERLY NICOLE RICKS-CULB,Jun,28,2013,Hourly Wages,,$580.00
48,J.F. Drake State,90005779,JAMES T ROBERTS,Jun,28,2013,Instructional Salaries - Tempo,,"$5,220.00"
48,J.F. Drake State,90005780,WENDY L ROBERTS,Jun,28,2013,Support Personnel Salaries - S,UNRESTRICTED,$745.10
48,J.F. Drake State,90005780,WENDY L ROBERTS,Jun,28,2013,Other Professional Salaries -,ADULT ED,"$2,596.20"
48,J.F. Drake State,90005781,CHERILYN ROOKS,Jun,28,2013,Instructional Salaries - Tempo,UNRESTRICTED,$120.00
48,J.F. Drake State,90005782,LAODECEA T SEAY,Jun,28,2013,Support Personnel Salaries - S,UNRESTRICTED,"$3,452.08"
48,J.F. Drake State,90005782,LAODECEA T SEAY,Jun,28,2013,In-State Travel,,$33.75
48,J.F. Drake State,90005784,ROBERT ANDREW SHARP,Jun,28,2013,Hourly Wages,,$480.00
48,J.F. Drake State,90005785,JACQUELINE M SHIVERS,Jun,28,2013,Instructional Salaries - Tempo,ADULT ED,"$1,662.50"
48,J.F. Drake State,90005786,LESLEY SHOTTS,Jun,28,2013,Instructional Salaries - Tempo,,"$4,750.00"
48,J.F. Drake State,90005788,AMANDA R SIMPSON,Jun,28,2013,Support Personnel Salaries - S,UNRESTRICTED,"$2,208.00"
48,J.F. Drake State,90005789,PATRICIA GORDON SIMS,Jun,28,2013,Administrative Salaries- Sched,UNRESTRICTED,"$9,245.09"
48,J.F. Drake State,90005790,BHESHAM JERRY SINGH,Jun,28,2013,Hourly Wages,,"$1,792.50"
48,J.F. Drake State,90005791,DELORIS A SMOTHERS,Jun,28,2013,Instructional Salaries - Tempo,UNRESTRICTED,$450.00
48,J.F. Drake State,90005791,DELORIS A SMOTHERS,Jun,28,2013,Instructional Salaries - Regul,UNRESTRICTED,"$6,765.33"
48,J.F. Drake State,90005792,JULIE P SPURGEON,Jun,28,2013,Support Personnel Salaries - S,UNRESTRICTED,"$3,303.17"
48,J.F. Drake State,90005793,JASON M STEPHENS,Jun,28,2013,Hourly Wages,STUDENT SUPPORT SERVICES,"$1,308.75"
48,J.F. Drake State,90005794,JON D STEPHENSON,Jun,28,2013,Support Personnel Salaries - S,,"$3,392.68"
48,J.F. Drake State,90005795,VERLINDSEY B STEWART,Jun,28,2013,Instructional Salaries - Regul,UNRESTRICTED,"$6,493.67"
48,J.F. Drake State,90005796,KIMBEL LAURENCE STROUT,Jun,28,2013,Instructional Salaries - Tempo,,$160.00
48,J.F. Drake State,90005797,KIMBERLY DEE SULLIVAN,Jun,28,2013,Hourly Wages,,$750.00
48,J.F. Drake State,90005798,SHANNON SUMMERS,Jun,28,2013,Instructional Salaries - Tempo,ADULT ED,$528.00
48,J.F. Drake State,90005799,NATHAN W TATE JR,Jun,28,2013,Hourly Wages,,$260.00
48,J.F. Drake State,90005800,DOCQUINN N TAYLOR,Jun,28,2013,Instructional Salaries - Tempo,UNRESTRICTED,$450.00
48,J.F. Drake State,90005800,DOCQUINN N TAYLOR,Jun,28,2013,Hourly Wages,STUDENT SUPPORT SERVICES,"$1,068.75"
48,J.F. Drake State,90005801,MALCOLM G TAYLOR,Jun,28,2013,Instructional Salaries - Tempo,UNRESTRICTED,$900.00
48,J.F. Drake State,90005802,FORREST BRYANT TEAGUE,Jun,28,2013,Hourly Wages,UNRESTRICTED,"$3,135.00"
48,J.F. Drake State,90005803,DAWN G THOMAS,Jun,28,2013,Hourly Wages,,$760.00
48,J.F. Drake State,90005804,JOY D TORNQUIST,Jun,28,2013,Instructional Salaries - Tempo,UNRESTRICTED,"$1,710.00"
48,J.F. Drake State,90005805,KRISTIN TREADWAY,Jun,28,2013,Support Personnel Salaries - S,,"$2,931.17"
48,J.F. Drake State,90005805,KRISTIN TREADWAY,Jun,28,2013,In-State Travel,,$33.75
48,J.F. Drake State,90005806,ELIZABETH A TUGGLE,Jun,28,2013,Instructional Salaries - Tempo,ADULT ED,"$1,092.00"
48,J.F. Drake State,90005807,GILBERT T TURLEY,Jun,28,2013,Other Professional Salaries -,UNRESTRICTED,"$6,886.58"
48,J.F. Drake State,90005808,LARRY CHARLES TURNER,Jun,28,2013,Hourly Wages,,"$1,020.00"
48,J.F. Drake State,90005809,KAROL C WADDELL,Jun,28,2013,Hourly Wages,READY TO WORK,"$2,040.00"
48,J.F. Drake State,90005810,ANITA G WALKER,Jun,28,2013,Hourly Wages,,"$1,820.00"
48,J.F. Drake State,90005811,LETITIA E WALKER,Jun,28,2013,Support Personnel Salaries - S,UNRESTRICTED,"$3,229.42"
48,J.F. Drake State,90005812,DEVONA WARNER,Jun,28,2013,Hourly Wages,,"$1,065.00"
48,J.F. Drake State,90005813,MICHELLE L WATKINS,Jun,28,2013,Instructional Salaries - Tempo,,$480.00
48,J.F. Drake State,90005814,CHARLES E WEBB,Jun,28,2013,Hourly Wages,,"$1,920.00"
48,J.F. Drake State,90005815,BETH S WESTER,Jun,28,2013,Other Professional Salaries -,,"$6,013.50"
48,J.F. Drake State,90005816,DWAYNIA WILKERSON,Jun,28,2013,Instructional Salaries - Tempo,UNRESTRICTED,$150.00
48,J.F. Drake State,90005817,CALANDRA S WILLIAMS,Jun,28,2013,Instructional Salaries - Tempo,ADULT ED,$483.00
48,J.F. Drake State,90005818,DAYMETRIE D WILLIAMS,Jun,28,2013,Hourly Wages,,$718.75
48,J.F. Drake State,90005819,KELLY L WILLIAMS,Jun,28,2013,Instructional Salaries - Tempo,UNRESTRICTED,"$1,350.00"
48,J.F. Drake State,90005820,BRANDI G WINCHESTER,Jun,28,2013,Instructional Salaries - Regul,UNRESTRICTED,"$3,617.83"
48,J.F. Drake State,90005821,GEORGE R WINN,Jun,28,2013,Instructional Salaries - Regul,UNRESTRICTED,"$5,261.33"
48,J.F. Drake State,90005822,CHARLES R WINTER,Jun,28,2013,Support Personnel Salaries - S,UNRESTRICTED,"$1,889.83"
48,J.F. Drake State,90005823,DEBORA P WINTERS,Jun,28,2013,Instructional Salaries - Tempo,,"$1,920.00"
48,J.F. Drake State,90005824,DELESHIA D YOUNG,Jun,28,2013,Support Personnel Salaries - S,UNRESTRICTED,"$3,079.83"
48,J.F. Drake State,90005834,GWENDOLYN D POPE,Jun,28,2013,Instructional Salaries - Regul,UNRESTRICTED,"$7,399.50"
48,J.F. Drake State,209757,BUBBA'S,Jun,26,2013,Other Contractual Services,,$490.00
48,J.F. Drake State,209758,CALHOUN COMMUNITY COLLEGE,Jun,26,2013,In-State Travel,,$300.00
48,J.F. Drake State,209759,KEMBA CHAMBERS,Jun,26,2013,In-State Travel,,$150.00
48,J.F. Drake State,209760,DISCOVERY EDUCATION,Jun,26,2013,Audiovisuals,,$68.45
48,J.F. Drake State,209761,DOMINO'S PIZZA,Jun,26,2013,Materials and Supplies,,$329.50
48,J.F. Drake State,209762,"ICSEC, LLC",Jun,26,2013,Other Contractual Services,,"$1,249.94"
48,J.F. Drake State,209763,INSIGHT MEDIA,Jun,26,2013,Audiovisuals,,$843.76
48,J.F. Drake State,209764,MICHIGAN TECH UNIVERSITY,Jun,26,2013,Institutional Use,,"$1,532.80"
48,J.F. Drake State,209765,NICK KSEPKA,Jun,26,2013,In-State Travel,,$574.82
48,J.F. Drake State,209766,NOEL-LEVITZ,Jun,26,2013,Out-of-State Travel,,$625.00
48,J.F. Drake State,209767,"OFFICE DEPOT, INC.",Jun,26,2013,Materials and Supplies,,"$1,168.83"
48,J.F. Drake State,209768,PODS STORAGE,Jun,26,2013,Other Contractual Services,,$159.00
48,J.F. Drake State,209769,"SIMS, PATRICIA G.",Jun,26,2013,In-State Travel,,$150.00
48,J.F. Drake State,209770,BHESHAM SINGH,Jun,26,2013,In-State Travel,,$300.00
48,J.F. Drake State,209771,DELORIS SMOTHERS,Jun,26,2013,Out-of-State Travel,,$248.64
48,J.F. Drake State,209771,DELORIS SMOTHERS,Jun,26,2013,In-State Travel,,$150.00
48,J.F. Drake State,209772,SYSCO CENTRAL ALABAMA,Jun,26,2013,Materials and Supplies,,$776.53
48,J.F. Drake State,209773,TERESA FARNUM & ASSOC.,Jun,26,2013,Out-of-State Travel,,"$2,172.00"
48,J.F. Drake State,209774,UNIVERSITY OF ALABAMA,Jun,26,2013,In-State Travel,,$190.00
48,J.F. Drake State,209775,4IMPRINT,Jun,26,2013,Materials and Supplies,,"$3,316.15"
48,J.F. Drake State,107092,ALACRAO,Jun,26,2013,State-Funded Professional Deve,UNRESTRICTED,$75.00
48,J.F. Drake State,107093,"DYNAMIC SECURITY, INC.",Jun,26,2013,Other Contractual Services,UNRESTRICTED,"$5,940.48"
48,J.F. Drake State,107095,"GIGAPARTS, INC",Jun,26,2013,Purchases for Resale,UNRESTRICTED,$179.70
48,J.F. Drake State,107096,GRAINGER,Jun,26,2013,Institutional Use,,"$1,348.95"
48,J.F. Drake State,107097,GRAYBAR,Jun,26,2013,Materials and Supplies,UNRESTRICTED,$190.33
48,J.F. Drake State,107098,"LANIER,FORD,SHAVER &",Jun,26,2013,Legal Services,UNRESTRICTED,"$6,686.53"
48,J.F. Drake State,107099,"MOBILE MINI, INC",Jun,26,2013,Materials and Supplies,UNRESTRICTED,$345.03
48,J.F. Drake State,107100,PUBLIC AFFAIRS RESEARCH,Jun,26,2013,Memberships,UNRESTRICTED,$250.00
48,J.F. Drake State,107101,"SACJTC, DR. GEORGE EDWARD",Jun,26,2013,Memberships,UNRESTRICTED,$100.00
48,J.F. Drake State,107102,SACS,Jun,26,2013,Out-of-State Travel,UNRESTRICTED,$485.00
48,J.F. Drake State,107085,NEOKA IVEY,Jun,21,2013,Out-of-State Travel,UNRESTRICTED,$630.00
48,J.F. Drake State,107043,ALABAMA TECHNOLOGY NETWOR,Jun,19,2013,Other Contractual Services,,"$1,757.55"
48,J.F. Drake State,107044,CASTLEBRANCH,Jun,19,2013,Purchases for Resale,AUXILIARY,$470.00
48,J.F. Drake State,107045,DEPT OF FINANCE,Jun,19,2013,Communications,UNRESTRICTED,$45.78
48,J.F. Drake State,107046,PETTY CASH,Jun,19,2013,Materials and Supplies,UNRESTRICTED,$198.62
48,J.F. Drake State,107046,PETTY CASH,Jun,19,2013,Advertising and Promotions,UNRESTRICTED,$71.69
48,J.F. Drake State,107046,PETTY CASH,Jun,19,2013,Institutional Use,UNRESTRICTED,$24.81
48,J.F. Drake State,107047,"DYNAMIC SECURITY, INC.",Jun,19,2013,Other Contractual Services,UNRESTRICTED,"$6,246.24"
48,J.F. Drake State,107048,ELSEVIER/HESI,Jun,19,2013,Purchases for Resale,AUXILIARY,$988.00
48,J.F. Drake State,107049,HUNTSVILLE TIMES,Jun,19,2013,Advertising and Promotions,UNRESTRICTED,$80.00
48,J.F. Drake State,107050,JULIETTE DANIELLE PUGH,Jun,19,2013,Other Contractual Services,UNRESTRICTED,$150.00
48,J.F. Drake State,107051,KATIE CHANCE,Jun,19,2013,Materials and Supplies,UNRESTRICTED,$47.99
48,J.F. Drake State,107052,LOOMIS,Jun,19,2013,Other Contractual Services,UNRESTRICTED,$135.95
48,J.F. Drake State,107053,"MCALPINE, HELEN",Jun,19,2013,Materials and Supplies,UNRESTRICTED,$221.00
48,J.F. Drake State,107054,MCGRAW HILL EDUCATION,Jun,19,2013,Materials and Supplies,ADULT ED,"$3,858.52"
48,J.F. Drake State,107055,MCNEESE GLASS COMPANY,Jun,19,2013,Materials and Supplies,UNRESTRICTED,$79.70
48,J.F. Drake State,107056,MINUTEMAN PRESS,Jun,19,2013,Advertising and Promotions,UNRESTRICTED,$393.68
48,J.F. Drake State,107057,OMEGA PSI PHI,Jun,19,2013,Advertising and Promotions,UNRESTRICTED,$250.00
48,J.F. Drake State,107058,RANDALL A SCHRIMSHER,Jun,19,2013,Rent - Facilities,UNRESTRICTED,"$6,475.00"
48,J.F. Drake State,107059,SACSCOC,Jun,19,2013,Institutional Use,UNRESTRICTED,$300.00
48,J.F. Drake State,107060,SALLY BEAUTY SUPPLY,Jun,19,2013,Materials and Supplies,UNRESTRICTED,$109.80
48,J.F. Drake State,107061,SIGNS BY TOMORROW,Jun,19,2013,Materials and Supplies,UNRESTRICTED,$98.52
48,J.F. Drake State,107062,SUCCESS MARKETING,Jun,19,2013,Advertising and Promotions,UNRESTRICTED,$85.00
48,J.F. Drake State,107062,SUCCESS MARKETING,Jun,19,2013,Other Contractual Services,UNRESTRICTED,$95.00
48,J.F. Drake State,107063,SYSCO CENTRAL ALABAMA,Jun,19,2013,Materials and Supplies,UNRESTRICTED,$942.56
48,J.F. Drake State,107064,THE ALABAMA LAWNMASTERS,Jun,19,2013,Other Contractual Services,UNRESTRICTED,"$3,045.00"
48,J.F. Drake State,107064,THE ALABAMA LAWNMASTERS,Jun,19,2013,Other Contractual Services,ARMY GRANT,$650.00
48,J.F. Drake State,107064,THE ALABAMA LAWNMASTERS,Jun,19,2013,Maintenance and Repairs,UNRESTRICTED,$163.44
48,J.F. Drake State,107065,"THE SOLUTIONS TEAM, INC",Jun,19,2013,Other Contractual Services,UNRESTRICTED,$200.00
48,J.F. Drake State,107066,UPS,Jun,19,2013,Freight,UNRESTRICTED,$32.34
48,J.F. Drake State,209733,ARBOR SCIENTIFIC,Jun,19,2013,Materials and Supplies,,$51.64
48,J.F. Drake State,209734,CALHOUN COMMUNITY COLLEGE,Jun,19,2013,In-State Travel,,$900.00
48,J.F. Drake State,209735,CAROLINA BIOLOGICAL,Jun,19,2013,Materials and Supplies,,"$1,922.60"
48,J.F. Drake State,209736,CYN SHEA'S CATERING,Jun,19,2013,Institutional Use,,$379.93
48,J.F. Drake State,209737,PETTY CASH,Jun,19,2013,Materials and Supplies,,$21.57
48,J.F. Drake State,209738,EBSCO PUBLISHING,Jun,19,2013,Subscriptions,,"$7,665.00"
48,J.F. Drake State,209738,EBSCO PUBLISHING,Jun,19,2013,Materials and Supplies,,"$7,523.46"
48,J.F. Drake State,209739,LEAGUE FOR INNOVATION,Jun,19,2013,Memberships,,$743.00
48,J.F. Drake State,209740,MATCHWARE INC,Jun,19,2013,Computer Software,,"$1,134.00"
48,J.F. Drake State,209741,MIDWEST LIBRARY SERVICE,Jun,19,2013,Books,,"$9,112.59"
48,J.F. Drake State,209742,MUSEUM OF SCIENCE,Jun,19,2013,Audiovisuals,,$43.94
48,J.F. Drake State,209743,MYRTES DUNN GREEN,Jun,19,2013,Other Contractual Services,,$750.00
48,J.F. Drake State,209744,NACISSA,Jun,19,2013,Institutional Use,,"$1,000.00"
48,J.F. Drake State,209745,PASCO,Jun,19,2013,Materials and Supplies,,$673.00
48,J.F. Drake State,209746,SAM'S CLUB/WALMART,Jun,19,2013,Materials and Supplies,,$223.00
48,J.F. Drake State,209747,SEXTON WELDING SUPPLY,Jun,19,2013,Materials and Supplies,,"$2,326.88"
48,J.F. Drake State,209748,"THE PHYSICS TOOLBOX, INC",Jun,19,2013,Materials and Supplies,,$339.46
48,J.F. Drake State,209749,UNIVERSITY OF NEW MEXICO,Jun,19,2013,Institutional Use,,"$13,291.46"
48,J.F. Drake State,209750,4IMPRINT,Jun,19,2013,Materials and Supplies,,$0.00
48,J.F. Drake State,107084,VON BRAUN CENTER,Jun,19,2013,Institutional Use,UNRESTRICTED,"$9,434.75"
48,J.F. Drake State,61310,HUNTSVILLE UTILITIES,Jun,17,2013,Water and Sewer,UNRESTRICTED,"$2,322.37"
48,J.F. Drake State,61310,HUNTSVILLE UTILITIES,Jun,17,2013,Gas and Heating Fuel,UNRESTRICTED,$632.95
48,J.F. Drake State,61310,HUNTSVILLE UTILITIES,Jun,17,2013,Electricity,UNRESTRICTED,"$18,450.65"
48,J.F. Drake State,61311,WOW! BUSINESS,Jun,17,2013,Communications,UNRESTRICTED,"$1,008.22"
48,J.F. Drake State,107020,ACT,Jun,13,2013,Materials and Supplies,UNRESTRICTED,$660.41
48,J.F. Drake State,107021,AL DEANS STUDENT/AFFAIRS,Jun,13,2013,In-State Travel,UNRESTRICTED,$300.00
48,J.F. Drake State,107022,ALA. SUPERCOMPUTER FUND,Jun,13,2013,Other Contractual Services,UNRESTRICTED,"$9,718.00"
48,J.F. Drake State,107023,C. C. DICKSON COMPANY,Jun,13,2013,Materials and Supplies,UNRESTRICTED,$13.18
48,J.F. Drake State,107024,CONDITIONED AIR SOLUTIONS,Jun,13,2013,Maintenance and Repairs,ARMY GRANT,$139.00
48,J.F. Drake State,107025,CURBSTONE CORP.,Jun,13,2013,Computer Software,UNRESTRICTED,"$1,875.00"
48,J.F. Drake State,107026,"DYNAMIC SECURITY, INC.",Jun,13,2013,Other Contractual Services,UNRESTRICTED,"$5,940.48"
48,J.F. Drake State,107027,EDUCAUSE,Jun,13,2013,Other Contractual Services,UNRESTRICTED,$40.00
48,J.F. Drake State,107028,EXAMINERS OF PUBLIC ACCTS,Jun,13,2013,Accounting and Auditing Servic,UNRESTRICTED,"$5,250.00"
48,J.F. Drake State,107029,FEDEX,Jun,13,2013,Freight,UNRESTRICTED,$21.89
48,J.F. Drake State,107030,GLIDDEN PROFESSIONAL PAI,Jun,13,2013,Materials and Supplies,UNRESTRICTED,$203.80
48,J.F. Drake State,107031,HUNTSVILLE TIMES,Jun,13,2013,Advertising and Promotions,UNRESTRICTED,$242.60
48,J.F. Drake State,107032,KOORSEN PROTECTION SERVIC,Jun,13,2013,Other Contractual Services,ARMY GRANT,$297.60
48,J.F. Drake State,107033,LOOMIS,Jun,13,2013,Other Contractual Services,UNRESTRICTED,$130.15
48,J.F. Drake State,107035,MORRIS GREENHOUSES,Jun,13,2013,Institutional Use,UNRESTRICTED,$130.00
48,J.F. Drake State,107037,"OFFICE DEPOT, INC.",Jun,13,2013,Materials and Supplies,UNRESTRICTED,$536.02
48,J.F. Drake State,107038,"TRUESCREEN, INC",Jun,13,2013,Other Contractual Services,UNRESTRICTED,$156.00
48,J.F. Drake State,107039,VERIZON WIRELESS,Jun,13,2013,Communications,UNRESTRICTED,"$1,809.38"
48,J.F. Drake State,107040,"WOODY ANDERSON FORD, INC.",Jun,13,2013,Maintenance and Repairs,UNRESTRICTED,$70.00
48,J.F. Drake State,209721,ATLANTIC INFORMATION SERV,Jun,13,2013,Institutional Use,,$249.00
48,J.F. Drake State,209722,CEDRIC ARRINGTON,Jun,13,2013,Out-of-State Travel,,$243.28
48,J.F. Drake State,209723,"ELLUCIAN CO,LP",Jun,13,2013,Construction in Progress,,"$56,698.09"
48,J.F. Drake State,209724,"ELLUCIAN CO,LP",Jun,13,2013,Materials and Supplies,,"$17,716.00"
48,J.F. Drake State,209725,GAIL WALKER,Jun,13,2013,In-State Travel,,$163.85
48,J.F. Drake State,209726,INSTRUCTIONAL OFFICERS' A,Jun,13,2013,In-State Travel,,$200.00
48,J.F. Drake State,209727,JOY DUKEMINEER,Jun,13,2013,In-State Travel,,$57.63
48,J.F. Drake State,209728,"OFFICE DEPOT, INC.",Jun,13,2013,Materials and Supplies,,"$1,480.79"
48,J.F. Drake State,209729,PODS STORAGE,Jun,13,2013,Other Contractual Services,,$159.00
48,J.F. Drake State,209730,STAPLES BUS ADVANTAGE,Jun,13,2013,Materials and Supplies,,-$287.61
48,J.F. Drake State,209730,STAPLES BUS ADVANTAGE,Jun,13,2013,Materials and Supplies,STUDENT SUPPORT SERVICES,$538.68
48,J.F. Drake State,209731,KRISTIN TREADWAY,Jun,13,2013,Out-of-State Travel,,$384.68
48,J.F. Drake State,209732,AACUBO,Jun,13,2013,Institutional Use,,$450.00
48,J.F. Drake State,107041,AT&T,Jun,13,2013,Communications,UNRESTRICTED,$858.64
48,J.F. Drake State,107042,CHEVRON CARD SERVICES,Jun,13,2013,Gasoline and Oil - Motor Vehic,UNRESTRICTED,$226.83
48,J.F. Drake State,5201352,AT&T,Jun,13,2013,Communications,UNRESTRICTED,"$2,293.32"
48,J.F. Drake State,5201354,COMCAST,Jun,13,2013,Communications,UNRESTRICTED,$178.92
48,J.F. Drake State,5201355,COOK'S PEST CONTROL,Jun,13,2013,Other Contractual Services,UNRESTRICTED,$316.00
48,J.F. Drake State,5201355,COOK'S PEST CONTROL,Jun,13,2013,Other Contractual Services,ARMY GRANT,$70.00
48,J.F. Drake State,5201356,EARTHLINK/DELTACOM,Jun,13,2013,Communications,UNRESTRICTED,"$5,704.10"
48,J.F. Drake State,5201357,HUNTSVILLE UTILITIES,Jun,13,2013,Electricity,UNRESTRICTED,$853.59
48,J.F. Drake State,5201357,HUNTSVILLE UTILITIES,Jun,13,2013,Electricity,ARMY GRANT,"$2,713.94"
48,J.F. Drake State,5201357,HUNTSVILLE UTILITIES,Jun,13,2013,Gas and Heating Fuel,ARMY GRANT,$18.74
48,J.F. Drake State,5201358,WASTE MANAGEMENT OF NORTH,Jun,13,2013,Other Contractual Services,UNRESTRICTED,"$1,009.66"
48,J.F. Drake State,5201359,WEX BANK,Jun,13,2013,Gasoline and Oil - Motor Vehic,UNRESTRICTED,$273.56
48,J.F. Drake State,5201360,WOW! BUSINESS,Jun,13,2013,Communications,UNRESTRICTED,"$1,114.02"
48,J.F. Drake State,209696,SAM'S CLUB/WALMART,Jun,7,2013,Materials and Supplies,,$223.89
48,J.F. Drake State,209697,UNIVERSITY OF ALABAMA,Jun,7,2013,Other Contractual Services,,$300.00
48,J.F. Drake State,209695,HOMEWOOD SUITES,Jun,6,2013,Out-of-State Travel,,$431.52
48,J.F. Drake State,107011,"DYNAMIC SECURITY, INC.",Jun,5,2013,Other Contractual Services,UNRESTRICTED,"$5,940.48"
48,J.F. Drake State,107012,FREEDOM COURT REPORTING,Jun,5,2013,Legal Services,UNRESTRICTED,$375.00
48,J.F. Drake State,107013,GED TESTING PROGRAM,Jun,5,2013,Materials and Supplies,UNRESTRICTED,$264.00
48,J.F. Drake State,107014,"LAMAR, JOYCE",Jun,5,2013,Institutional Use,UNRESTRICTED,$60.00
48,J.F. Drake State,107015,LEADERSHIP HUNTSVILLE,Jun,5,2013,Memberships,UNRESTRICTED,"$3,925.00"
48,J.F. Drake State,107016,"MOBILE MINI, INC",Jun,5,2013,Materials and Supplies,UNRESTRICTED,$345.03
48,J.F. Drake State,107017,BURT WEBSTER,Jun,5,2013,Other Contractual Services,UNRESTRICTED,$480.00
48,J.F. Drake State,209690,CDW-G,Jun,5,2013,Materials and Supplies,,$319.00
48,J.F. Drake State,209691,"OFFICE DEPOT, INC.",Jun,5,2013,Materials and Supplies,,$83.36
48,J.F. Drake State,106989,NICOLE BELL,May,31,2013,In-State Travel,UNRESTRICTED,$249.00
48,J.F. Drake State,106990,DARRELL ECHOLS,May,31,2013,In-State Travel,UNRESTRICTED,$459.78
48,J.F. Drake State,106991,"MCLAUGHLIN, SCOTTY",May,31,2013,In-State Travel,UNRESTRICTED,$267.38
48,J.F. Drake State,106992,NICOLE BARNETT,May,31,2013,In-State Travel,UNRESTRICTED,$249.00
48,J.F. Drake State,90005451,DEMICA SHERMIR ALLISON,May,31,2013,Hourly Wages,,$570.00
48,J.F. Drake State,90005452,TRINA A ALTMAN,May,31,2013,Instructional Salaries - Regul,UNRESTRICTED,$692.92
48,J.F. Drake State,90005453,CEDRIC D ARRINGTON SR,May,31,2013,Other Professional Salaries -,UNRESTRICTED,"$6,450.08"
48,J.F. Drake State,90005454,KEVIN STEVEN ATCHLEY,May,31,2013,Hourly Wages,,$600.00
48,J.F. Drake State,90005455,LYSA AUGUSTIN,May,31,2013,Instructional Salaries - Tempo,ADULT ED,$330.00
48,J.F. Drake State,90005455,LYSA AUGUSTIN,May,31,2013,Institutional Use,ADULT ED,$121.00
48,J.F. Drake State,90005456,CAROLYN AVRITTE,May,31,2013,Instructional Salaries - Tempo,UNRESTRICTED,"$1,200.00"
48,J.F. Drake State,90005457,ZELDA M AZOR,May,31,2013,Instructional Salaries - Tempo,UNRESTRICTED,"$1,140.00"
48,J.F. Drake State,90005458,NELSON E BARNES,May,31,2013,Instructional Salaries - Tempo,UNRESTRICTED,"$1,012.50"
48,J.F. Drake State,90005459,NICOLE CLARESE BARNETT,May,31,2013,Other Professional Salaries -,,"$5,743.59"
48,J.F. Drake State,90005460,BEN BATTLE,May,31,2013,Instructional Salaries - Regul,UNRESTRICTED,"$5,602.88"
48,J.F. Drake State,90005461,ANGELA NICOLE BELL,May,31,2013,Instructional Salaries - Regul,UNRESTRICTED,"$5,520.36"
48,J.F. Drake State,90005463,PATRICE BIVINS,May,31,2013,Support Personnel Salaries - S,,"$2,484.00"
48,J.F. Drake State,90005464,BOEDVAR INGI BOEDVARSSON,May,31,2013,Hourly Wages,,$360.00
48,J.F. Drake State,90005465,STEPHANIE JONES BOUNDS,May,31,2013,Instructional Salaries - Tempo,UNRESTRICTED,"$1,462.50"
48,J.F. Drake State,90005466,CHERYL BRAWLEY-KELLY,May,31,2013,Instructional Salaries - Tempo,UNRESTRICTED,"$2,857.50"
48,J.F. Drake State,90005467,LASHONDA D BROWN,May,31,2013,Instructional Salaries - Tempo,UNRESTRICTED,$337.50
48,J.F. Drake State,90005468,BRUCE A BULLUCK,May,31,2013,Other Professional Salaries -,UNRESTRICTED,"$6,450.08"
48,J.F. Drake State,90005469,KWAME OMARIO BURNETT,May,31,2013,Hourly Wages,,$160.00
48,J.F. Drake State,90005470,KHALILAH BURTON,May,31,2013,Instructional Salaries - Tempo,UNRESTRICTED,"$1,125.00"
48,J.F. Drake State,90005471,DERICK R CARPENAY,May,31,2013,Instructional Salaries - Tempo,UNRESTRICTED,$675.00
48,J.F. Drake State,90005472,ONEITHA D CARVER,May,31,2013,Hourly Wages,,$50.00
48,J.F. Drake State,90005473,KEMBA CHAMBERS,May,31,2013,Other Professional Salaries -,UNRESTRICTED,"$7,360.42"
48,J.F. Drake State,90005474,KATIE E CHANCE,May,31,2013,Support Personnel Salaries - S,UNRESTRICTED,"$3,452.08"
48,J.F. Drake State,90005475,ROGER CHEN,May,31,2013,Hourly Wages,,"$2,100.00"
48,J.F. Drake State,90005476,ADAM CLARK,May,31,2013,Instructional Salaries - Regul,UNRESTRICTED,"$5,230.88"
48,J.F. Drake State,90005477,TASKA S CLARK,May,31,2013,Support Personnel Salaries - S,UNRESTRICTED,"$2,262.08"
48,J.F. Drake State,90005479,CARLA R CLIFT,May,31,2013,Other Professional Salaries -,UNRESTRICTED,"$5,609.75"
48,J.F. Drake State,90005480,RICHARD COLLIE,May,31,2013,Other Professional Salaries -,STUDENT SUPPORT SERVICES,"$3,750.00"
48,J.F. Drake State,90005481,TOMACENIA CHANTRELL CROSB,May,31,2013,Hourly Wages,,$300.00
48,J.F. Drake State,90005482,TOMEKA CROSS,May,31,2013,Support Personnel Salaries - S,UNRESTRICTED,"$2,187.33"
48,J.F. Drake State,90005483,DEIONE L CRUTCHER,May,31,2013,Hourly Wages,ADULT ED,"$1,140.00"
48,J.F. Drake State,90005484,CHRISTINE H DAVIS,May,31,2013,Instructional Salaries - Regul,UNRESTRICTED,"$5,602.88"
48,J.F. Drake State,90005485,MATTIE D DAVIS,May,31,2013,Instructional Salaries - Regul,UNRESTRICTED,"$6,641.88"
48,J.F. Drake State,90005487,MARLO DRAKE,May,31,2013,Support Personnel Salaries - S,UNRESTRICTED,"$2,477.38"
48,J.F. Drake State,90005487,MARLO DRAKE,May,31,2013,Support Personnel Salaries - S,,$825.79
48,J.F. Drake State,90005489,MARTHA W DUBEY,May,31,2013,Hourly Wages,UNRESTRICTED,"$1,781.25"
48,J.F. Drake State,90005490,AMELIA J DUKEMINEER,May,31,2013,Hourly Wages,,"$1,520.00"
48,J.F. Drake State,90005491,DARRELL J ECHOLS,May,31,2013,Instructional Salaries - Regul,UNRESTRICTED,"$4,565.12"
48,J.F. Drake State,90005493,MONICA L EDMONDS,May,31,2013,Instructional Salaries - Tempo,UNRESTRICTED,$675.00
48,J.F. Drake State,90005494,VERNESSA M EDWARDS,May,31,2013,Instructional Salaries - Tempo,UNRESTRICTED,"$1,125.00"
48,J.F. Drake State,90005495,RONALD E EGSON,May,31,2013,Instructional Salaries - Regul,UNRESTRICTED,"$4,379.00"
48,J.F. Drake State,90005496,JAMES J EISNER,May,31,2013,Support Personnel Salaries - S,UNRESTRICTED,"$2,633.83"
48,J.F. Drake State,90005497,ROSELINE C ELIKE,May,31,2013,Instructional Salaries - Tempo,UNRESTRICTED,"$1,140.00"
48,J.F. Drake State,90005498,LESLEY-ANNE TOYO ENG,May,31,2013,Hourly Wages,UNRESTRICTED,"$1,600.00"
48,J.F. Drake State,90005499,TIMOTHY J FAIRCHILD,May,31,2013,Hourly Wages,,"$1,995.63"
48,J.F. Drake State,90005500,AVA D FARR,May,31,2013,Instructional Salaries - Regul,,"$5,268.52"
48,J.F. Drake State,90005501,VICTORIA FARRAR LONG,May,31,2013,Support Personnel Salaries - S,UNRESTRICTED,"$2,262.08"
48,J.F. Drake State,90005502,GAIL E FISCH,May,31,2013,Instructional Salaries - Regul,ADULT ED,"$2,687.50"
48,J.F. Drake State,90005503,EDWIN T FORBES,May,31,2013,Instructional Salaries - Regul,UNRESTRICTED,"$4,062.58"
48,J.F. Drake State,90005503,EDWIN T FORBES,May,31,2013,Instructional Salaries - Tempo,UNRESTRICTED,$337.50
48,J.F. Drake State,90005504,HORACE L FRANKLIN JR,May,31,2013,Administrative Salaries- Sched,UNRESTRICTED,"$7,165.50"
48,J.F. Drake State,90005505,MATTIE B FREEMAN,May,31,2013,Instructional Salaries - Tempo,UNRESTRICTED,"$1,260.00"
48,J.F. Drake State,90005506,WENDY F GANNON,May,31,2013,Instructional Salaries - Tempo,UNRESTRICTED,"$1,800.00"
48,J.F. Drake State,90005506,WENDY F GANNON,May,31,2013,Instructional Salaries - Tempo,,$210.00
48,J.F. Drake State,90005507,DENISE CLEOSHI GAYMON,May,31,2013,Other Professional Salaries -,,"$3,166.67"
48,J.F. Drake State,90005508,SYMMETRIS K GOHANNA,May,31,2013,Instructional Salaries - Regul,UNRESTRICTED,"$4,890.33"
48,J.F. Drake State,90005508,SYMMETRIS K GOHANNA,May,31,2013,Instructional Salaries - Tempo,UNRESTRICTED,$675.00
48,J.F. Drake State,90005509,LARDELL GOODLOE JR,May,31,2013,Instructional Salaries - Regul,UNRESTRICTED,"$5,009.88"
48,J.F. Drake State,90005509,LARDELL GOODLOE JR,May,31,2013,Instructional Salaries - Tempo,SESP,$600.00
48,J.F. Drake State,90005510,TIFFANY R GREEN,May,31,2013,Support Personnel Salaries - S,CAREER COACHES,"$2,559.34"
48,J.F. Drake State,90005511,TIMOTHY RYAN GREEN,May,31,2013,Instructional Salaries - Regul,UNRESTRICTED,"$4,120.36"
48,J.F. Drake State,90005511,TIMOTHY RYAN GREEN,May,31,2013,Instructional Salaries - Tempo,UNRESTRICTED,"$1,462.50"
48,J.F. Drake State,90005512,VICKIE E GREEN,May,31,2013,Instructional Salaries - Regul,,"$3,840.25"
48,J.F. Drake State,90005513,ROBERT N GRISSIM,May,31,2013,Instructional Salaries - Regul,UNRESTRICTED,"$3,646.17"
48,J.F. Drake State,90005514,CHARLES GROSS,May,31,2013,Instructional Salaries - Tempo,UNRESTRICTED,"$1,012.50"
48,J.F. Drake State,90005515,SAMUEL V GUISHARD,May,31,2013,Instructional Salaries - Tempo,UNRESTRICTED,"$1,687.50"
48,J.F. Drake State,90005516,MANELZA CRAWFORD HAMBRICK,May,31,2013,Support Personnel Salaries - S,UNRESTRICTED,"$2,485.42"
48,J.F. Drake State,90005517,ARCHIE LEE HAMLET,May,31,2013,Hourly Wages,UNRESTRICTED,$912.00
48,J.F. Drake State,90005518,SHELIA D HAMMON,May,31,2013,Instructional Salaries - Regul,UNRESTRICTED,"$5,416.76"
48,J.F. Drake State,90005518,SHELIA D HAMMON,May,31,2013,Instructional Salaries - Tempo,UNRESTRICTED,$337.50
48,J.F. Drake State,90005519,AUNDREA D HANSON,May,31,2013,Instructional Salaries - Tempo,UNRESTRICTED,$675.00
48,J.F. Drake State,90005520,GEORGE VICTOR HARLOW III,May,31,2013,Hourly Wages,,$425.00
48,J.F. Drake State,90005521,KATRINA J HARRIS,May,31,2013,Support Personnel Salaries - S,UNRESTRICTED,$974.50
48,J.F. Drake State,90005521,KATRINA J HARRIS,May,31,2013,Support Personnel Salaries - S,,"$2,923.50"
48,J.F. Drake State,90005522,HENRY C HAWKINS,May,31,2013,Instructional Salaries - Tempo,SESP,$600.00
48,J.F. Drake State,90005523,CAROLYN HENDERSON,May,31,2013,Instructional Salaries - Tempo,UNRESTRICTED,$337.50
48,J.F. Drake State,90005523,CAROLYN HENDERSON,May,31,2013,Instructional Salaries - Regul,UNRESTRICTED,"$4,062.58"
48,J.F. Drake State,90005524,DEXTER R HENRY,May,31,2013,Instructional Salaries - Regul,UNRESTRICTED,"$6,416.88"
48,J.F. Drake State,90005524,DEXTER R HENRY,May,31,2013,Instructional Salaries - Tempo,SESP,$480.00
48,J.F. Drake State,90005525,KARL W HENRY SR,May,31,2013,Instructional Salaries - Regul,UNRESTRICTED,"$7,261.64"
48,J.F. Drake State,90005526,ELBREY WARREN HERRING,May,31,2013,Instructional Salaries - Tempo,ADULT ED,$864.00
48,J.F. Drake State,90005526,ELBREY WARREN HERRING,May,31,2013,Institutional Use,ADULT ED,$132.00
48,J.F. Drake State,90005527,ISSAC D HINES,May,31,2013,Instructional Salaries - Tempo,UNRESTRICTED,"$1,012.50"
48,J.F. Drake State,90005527,ISSAC D HINES,May,31,2013,Hourly Wages,,$500.00
48,J.F. Drake State,90005528,DORIS HINTON,May,31,2013,Instructional Salaries - Regul,UNRESTRICTED,"$5,416.76"
48,J.F. Drake State,90005529,KHALID HOLMES,May,31,2013,Instructional Salaries - Regul,UNRESTRICTED,"$3,284.25"
